Organisation Name,Organisation Code,Unique Ref No,Effective Date,Directorate where expenditure incurred,Supplier Name,Payment Date,Net Amount,Purpose of Spend,Procurement Classification (Higher Level),Procurement Classification (Lower Level),Capital/Revenue
Walsall Council,http://opendatacommunities.org/id/metropolitan-district-council/walsall,WC110-1,30/11/2019,Childrens,11KBW,04/11/2019,"3,700.00",73014-LEGAL FEES-PRIV CONTRACTOR FEES,GENERAL MANAGEMENT SUPPORT (INC LEGAL),Third Party Payments,Revenue
Walsall Council,http://opendatacommunities.org/id/metropolitan-district-council/walsall,WC110-2,30/11/2019,Resources and Transformation,11KBW,13/11/2019,"10,170.00",63116-EXTERNAL BARRISTERS-SERVICES-FEES,LAW LIBRARY,Supplies & Services,Revenue
Walsall Council,http://opendatacommunities.org/id/metropolitan-district-council/walsall,WC110-3,30/11/2019,Childrens,11KBW,06/11/2019,"11,575.00",73014-LEGAL FEES-PRIV CONTRACTOR FEES,GENERAL MANAGEMENT SUPPORT (INC LEGAL),Third Party Payments,Revenue
Walsall Council,http://opendatacommunities.org/id/metropolitan-district-council/walsall,WC110-4,30/11/2019,Childrens,247 CARS (WILLENHALL) LIMITED,08/11/2019,633.20,52000-WITH DRIVER-HIRE OF VEHICLES,HOME TO SCHOOL TRANSPORT,Transport,Revenue
Walsall Council,http://opendatacommunities.org/id/metropolitan-district-council/walsall,WC110-5,30/11/2019,Childrens,247 CARS (WILLENHALL) LIMITED,08/11/2019,633.20,52000-WITH DRIVER-HIRE OF VEHICLES,HOME TO SCHOOL TRANSPORT,Transport,Revenue
Walsall Council,http://opendatacommunities.org/id/metropolitan-district-council/walsall,WC110-6,30/11/2019,Childrens,247 CARS (WILLENHALL) LIMITED,08/11/2019,633.20,52000-WITH DRIVER-HIRE OF VEHICLES,HOME TO SCHOOL TRANSPORT,Transport,Revenue
Walsall Council,http://opendatacommunities.org/id/metropolitan-district-council/walsall,WC110-7,30/11/2019,Childrens,247 CARS (WILLENHALL) LIMITED,08/11/2019,"2,800.00",52000-WITH DRIVER-HIRE OF VEHICLES,HOME TO SCHOOL TRANSPORT,Transport,Revenue
Walsall Council,http://opendatacommunities.org/id/metropolitan-district-council/walsall,WC110-8,30/11/2019,Childrens,247 CARS (WILLENHALL) LIMITED,08/11/2019,"5,871.50",52000-WITH DRIVER-HIRE OF VEHICLES,HOME TO SCHOOL TRANSPORT,Transport,Revenue
Walsall Council,http://opendatacommunities.org/id/metropolitan-district-council/walsall,WC110-9,30/11/2019,Childrens,402K CONSULTANCY LTD,18/11/2019,"4,351.08",63102-CONSULTANTS FEES - CORPORATE,SAFEGUARDING BOARD,Supplies & Services,Revenue
Walsall Council,http://opendatacommunities.org/id/metropolitan-district-council/walsall,WC110-10,30/11/2019,Adult Social Care,5 CARE SERVICES LTD,11/11/2019,281.90,73507-DOMICILIARY CARE,PHYSICAL SUPPORT,Third Party Payments,Revenue
Walsall Council,http://opendatacommunities.org/id/metropolitan-district-council/walsall,WC110-11,30/11/2019,Adult Social Care,5 CARE SERVICES LTD,11/11/2019,328.54,73507-DOMICILIARY CARE,MENTAL HEALTH SUPPORT,Third Party Payments,Revenue
Walsall Council,http://opendatacommunities.org/id/metropolitan-district-council/walsall,WC110-12,30/11/2019,Adult Social Care,5 CARE SERVICES LTD,11/11/2019,331.85,73507-DOMICILIARY CARE,PHYSICAL SUPPORT,Third Party Payments,Revenue
Walsall Council,http://opendatacommunities.org/id/metropolitan-district-council/walsall,WC110-13,30/11/2019,Adult Social Care,5 CARE SERVICES LTD,11/11/2019,332.43,73507-DOMICILIARY CARE,SOCIAL SUPPORT,Third Party Payments,Revenue
Walsall Council,http://opendatacommunities.org/id/metropolitan-district-council/walsall,WC110-14,30/11/2019,Adult Social Care,5 CARE SERVICES LTD,11/11/2019,333.99,73507-DOMICILIARY CARE,PHYSICAL SUPPORT,Third Party Payments,Revenue
Walsall Council,http://opendatacommunities.org/id/metropolitan-district-council/walsall,WC110-15,30/11/2019,Adult Social Care,5 CARE SERVICES LTD,11/11/2019,372.64,73507-DOMICILIARY CARE,PHYSICAL SUPPORT,Third Party Payments,Revenue
Walsall Council,http://opendatacommunities.org/id/metropolitan-district-council/walsall,WC110-16,30/11/2019,Adult Social Care,5 CARE SERVICES LTD,11/11/2019,376.38,73507-DOMICILIARY CARE,PHYSICAL SUPPORT,Third Party Payments,Revenue
Walsall Council,http://opendatacommunities.org/id/metropolitan-district-council/walsall,WC110-17,30/11/2019,Adult Social Care,5 CARE SERVICES LTD,11/11/2019,380.31,73507-DOMICILIARY CARE,PHYSICAL SUPPORT,Third Party Payments,Revenue
Walsall Council,http://opendatacommunities.org/id/metropolitan-district-council/walsall,WC110-18,30/11/2019,Adult Social Care,5 CARE SERVICES LTD,11/11/2019,383.62,73507-DOMICILIARY CARE,PHYSICAL SUPPORT,Third Party Payments,Revenue
Walsall Council,http://opendatacommunities.org/id/metropolitan-district-council/walsall,WC110-19,30/11/2019,Adult Social Care,5 CARE SERVICES LTD,11/11/2019,383.86,73507-DOMICILIARY CARE,PHYSICAL SUPPORT,Third Party Payments,Revenue
Walsall Council,http://opendatacommunities.org/id/metropolitan-district-council/walsall,WC110-20,30/11/2019,Adult Social Care,5 CARE SERVICES LTD,11/11/2019,390.85,73507-DOMICILIARY CARE,PHYSICAL SUPPORT,Third Party Payments,Revenue
Walsall Council,http://opendatacommunities.org/id/metropolitan-district-council/walsall,WC110-21,30/11/2019,Adult Social Care,5 CARE SERVICES LTD,11/11/2019,398.62,73507-DOMICILIARY CARE,SENSORY SUPPORT,Third Party Payments,Revenue
Walsall Council,http://opendatacommunities.org/id/metropolitan-district-council/walsall,WC110-22,30/11/2019,Adult Social Care,5 CARE SERVICES LTD,11/11/2019,399.56,73507-DOMICILIARY CARE,PHYSICAL SUPPORT,Third Party Payments,Revenue
Walsall Council,http://opendatacommunities.org/id/metropolitan-district-council/walsall,WC110-23,30/11/2019,Adult Social Care,5 CARE SERVICES LTD,11/11/2019,399.58,73507-DOMICILIARY CARE,PHYSICAL SUPPORT,Third Party Payments,Revenue
Walsall Council,http://opendatacommunities.org/id/metropolitan-district-council/walsall,WC110-24,30/11/2019,Adult Social Care,5 CARE SERVICES LTD,11/11/2019,419.36,73507-DOMICILIARY CARE,PHYSICAL SUPPORT,Third Party Payments,Revenue
Walsall Council,http://opendatacommunities.org/id/metropolitan-district-council/walsall,WC110-25,30/11/2019,Adult Social Care,5 CARE SERVICES LTD,11/11/2019,444.19,73507-DOMICILIARY CARE,PHYSICAL SUPPORT,Third Party Payments,Revenue
Walsall Council,http://opendatacommunities.org/id/metropolitan-district-council/walsall,WC110-26,30/11/2019,Adult Social Care,5 CARE SERVICES LTD,11/11/2019,448.04,73025-PROFESSIONAL SERVICES-PRIV CONTRACTOR & OTHER AGENCIES,INTERMEDIATE CARE SERVICE,Third Party Payments,Revenue
Walsall Council,http://opendatacommunities.org/id/metropolitan-district-council/walsall,WC110-27,30/11/2019,Adult Social Care,5 CARE SERVICES LTD,11/11/2019,461.43,73507-DOMICILIARY CARE,SENSORY SUPPORT,Third Party Payments,Revenue
Walsall Council,http://opendatacommunities.org/id/metropolitan-district-council/walsall,WC110-28,30/11/2019,Adult Social Care,5 CARE SERVICES LTD,11/11/2019,466.05,73507-DOMICILIARY CARE,PHYSICAL SUPPORT,Third Party Payments,Revenue
Walsall Council,http://opendatacommunities.org/id/metropolitan-district-council/walsall,WC110-29,30/11/2019,Adult Social Care,5 CARE SERVICES LTD,11/11/2019,469.52,73507-DOMICILIARY CARE,PHYSICAL SUPPORT,Third Party Payments,Revenue
Walsall Council,http://opendatacommunities.org/id/metropolitan-district-council/walsall,WC110-30,30/11/2019,Adult Social Care,5 CARE SERVICES LTD,11/11/2019,480.15,73507-DOMICILIARY CARE,PHYSICAL SUPPORT,Third Party Payments,Revenue
Walsall Council,http://opendatacommunities.org/id/metropolitan-district-council/walsall,WC110-31,30/11/2019,Adult Social Care,5 CARE SERVICES LTD,11/11/2019,489.75,73507-DOMICILIARY CARE,PHYSICAL SUPPORT,Third Party Payments,Revenue
Walsall Council,http://opendatacommunities.org/id/metropolitan-district-council/walsall,WC110-32,30/11/2019,Adult Social Care,5 CARE SERVICES LTD,11/11/2019,511.79,73507-DOMICILIARY CARE,PHYSICAL SUPPORT,Third Party Payments,Revenue
Walsall Council,http://opendatacommunities.org/id/metropolitan-district-council/walsall,WC110-33,30/11/2019,Adult Social Care,5 CARE SERVICES LTD,11/11/2019,577.73,73507-DOMICILIARY CARE,PHYSICAL SUPPORT,Third Party Payments,Revenue
Walsall Council,http://opendatacommunities.org/id/metropolitan-district-council/walsall,WC110-34,30/11/2019,Adult Social Care,5 CARE SERVICES LTD,11/11/2019,602.28,73025-PROFESSIONAL SERVICES-PRIV CONTRACTOR & OTHER AGENCIES,INTERMEDIATE CARE SERVICE,Third Party Payments,Revenue
Walsall Council,http://opendatacommunities.org/id/metropolitan-district-council/walsall,WC110-35,30/11/2019,Adult Social Care,5 CARE SERVICES LTD,11/11/2019,606.18,73507-DOMICILIARY CARE,PHYSICAL SUPPORT,Third Party Payments,Revenue
Walsall Council,http://opendatacommunities.org/id/metropolitan-district-council/walsall,WC110-36,30/11/2019,Adult Social Care,5 CARE SERVICES LTD,11/11/2019,617.42,73507-DOMICILIARY CARE,PHYSICAL SUPPORT,Third Party Payments,Revenue
Walsall Council,http://opendatacommunities.org/id/metropolitan-district-council/walsall,WC110-37,30/11/2019,Adult Social Care,5 CARE SERVICES LTD,11/11/2019,623.40,73507-DOMICILIARY CARE,PHYSICAL SUPPORT,Third Party Payments,Revenue
Walsall Council,http://opendatacommunities.org/id/metropolitan-district-council/walsall,WC110-38,30/11/2019,Adult Social Care,5 CARE SERVICES LTD,04/11/2019,673.98,73025-PROFESSIONAL SERVICES-PRIV CONTRACTOR & OTHER AGENCIES,INTERMEDIATE CARE SERVICE,Third Party Payments,Revenue
Walsall Council,http://opendatacommunities.org/id/metropolitan-district-council/walsall,WC110-39,30/11/2019,Adult Social Care,5 CARE SERVICES LTD,11/11/2019,733.17,73507-DOMICILIARY CARE,PHYSICAL SUPPORT,Third Party Payments,Revenue
Walsall Council,http://opendatacommunities.org/id/metropolitan-district-council/walsall,WC110-40,30/11/2019,Adult Social Care,5 CARE SERVICES LTD,11/11/2019,789.32,73507-DOMICILIARY CARE,PHYSICAL SUPPORT,Third Party Payments,Revenue
Walsall Council,http://opendatacommunities.org/id/metropolitan-district-council/walsall,WC110-41,30/11/2019,Adult Social Care,5 CARE SERVICES LTD,11/11/2019,790.83,73507-DOMICILIARY CARE,LEARNING DISABILITY SUPPORT,Third Party Payments,Revenue
Walsall Council,http://opendatacommunities.org/id/metropolitan-district-council/walsall,WC110-42,30/11/2019,Adult Social Care,5 CARE SERVICES LTD,11/11/2019,801.39,73507-DOMICILIARY CARE,PHYSICAL SUPPORT,Third Party Payments,Revenue
Walsall Council,http://opendatacommunities.org/id/metropolitan-district-council/walsall,WC110-43,30/11/2019,Adult Social Care,5 CARE SERVICES LTD,11/11/2019,815.38,73507-DOMICILIARY CARE,PHYSICAL SUPPORT,Third Party Payments,Revenue
Walsall Council,http://opendatacommunities.org/id/metropolitan-district-council/walsall,WC110-44,30/11/2019,Adult Social Care,5 CARE SERVICES LTD,11/11/2019,818.99,73507-DOMICILIARY CARE,PHYSICAL SUPPORT,Third Party Payments,Revenue
Walsall Council,http://opendatacommunities.org/id/metropolitan-district-council/walsall,WC110-45,30/11/2019,Adult Social Care,5 CARE SERVICES LTD,11/11/2019,838.97,73507-DOMICILIARY CARE,PHYSICAL SUPPORT,Third Party Payments,Revenue
Walsall Council,http://opendatacommunities.org/id/metropolitan-district-council/walsall,WC110-46,30/11/2019,Adult Social Care,5 CARE SERVICES LTD,11/11/2019,896.00,73507-DOMICILIARY CARE,PHYSICAL SUPPORT,Third Party Payments,Revenue
Walsall Council,http://opendatacommunities.org/id/metropolitan-district-council/walsall,WC110-47,30/11/2019,Adult Social Care,5 CARE SERVICES LTD,11/11/2019,897.81,73507-DOMICILIARY CARE,PHYSICAL SUPPORT,Third Party Payments,Revenue
Walsall Council,http://opendatacommunities.org/id/metropolitan-district-council/walsall,WC110-48,30/11/2019,Adult Social Care,5 CARE SERVICES LTD,11/11/2019,903.28,73025-PROFESSIONAL SERVICES-PRIV CONTRACTOR & OTHER AGENCIES,INTERMEDIATE CARE SERVICE,Third Party Payments,Revenue
Walsall Council,http://opendatacommunities.org/id/metropolitan-district-council/walsall,WC110-49,30/11/2019,Adult Social Care,5 CARE SERVICES LTD,11/11/2019,903.71,73507-DOMICILIARY CARE,PHYSICAL SUPPORT,Third Party Payments,Revenue
Walsall Council,http://opendatacommunities.org/id/metropolitan-district-council/walsall,WC110-50,30/11/2019,Adult Social Care,5 CARE SERVICES LTD,11/11/2019,"1,062.57",73507-DOMICILIARY CARE,MENTAL HEALTH SUPPORT,Third Party Payments,Revenue
Walsall Council,http://opendatacommunities.org/id/metropolitan-district-council/walsall,WC110-51,30/11/2019,Adult Social Care,5 CARE SERVICES LTD,11/11/2019,"1,133.52",73507-DOMICILIARY CARE,LEARNING DISABILITY SUPPORT,Third Party Payments,Revenue
Walsall Council,http://opendatacommunities.org/id/metropolitan-district-council/walsall,WC110-52,30/11/2019,Adult Social Care,5 CARE SERVICES LTD,11/11/2019,"1,191.38",73507-DOMICILIARY CARE,PHYSICAL SUPPORT,Third Party Payments,Revenue
Walsall Council,http://opendatacommunities.org/id/metropolitan-district-council/walsall,WC110-53,30/11/2019,Adult Social Care,5 CARE SERVICES LTD,11/11/2019,"1,195.21",73507-DOMICILIARY CARE,PHYSICAL SUPPORT,Third Party Payments,Revenue
Walsall Council,http://opendatacommunities.org/id/metropolitan-district-council/walsall,WC110-54,30/11/2019,Adult Social Care,5 CARE SERVICES LTD,11/11/2019,"1,262.96",73507-DOMICILIARY CARE,PHYSICAL SUPPORT,Third Party Payments,Revenue
Walsall Council,http://opendatacommunities.org/id/metropolitan-district-council/walsall,WC110-55,30/11/2019,Adult Social Care,5 CARE SERVICES LTD,11/11/2019,"1,333.00",73507-DOMICILIARY CARE,PHYSICAL SUPPORT,Third Party Payments,Revenue
Walsall Council,http://opendatacommunities.org/id/metropolitan-district-council/walsall,WC110-56,30/11/2019,Adult Social Care,5 CARE SERVICES LTD,11/11/2019,"1,497.49",73507-DOMICILIARY CARE,PHYSICAL SUPPORT,Third Party Payments,Revenue
Walsall Council,http://opendatacommunities.org/id/metropolitan-district-council/walsall,WC110-57,30/11/2019,Adult Social Care,5 CARE SERVICES LTD,11/11/2019,"1,579.42",73507-DOMICILIARY CARE,PHYSICAL SUPPORT,Third Party Payments,Revenue
Walsall Council,http://opendatacommunities.org/id/metropolitan-district-council/walsall,WC110-58,30/11/2019,Adult Social Care,5 CARE SERVICES LTD,11/11/2019,"1,601.50",73507-DOMICILIARY CARE,PHYSICAL SUPPORT,Third Party Payments,Revenue
Walsall Council,http://opendatacommunities.org/id/metropolitan-district-council/walsall,WC110-59,30/11/2019,Adult Social Care,5 CARE SERVICES LTD,11/11/2019,"1,777.86",73507-DOMICILIARY CARE,PHYSICAL SUPPORT,Third Party Payments,Revenue
Walsall Council,http://opendatacommunities.org/id/metropolitan-district-council/walsall,WC110-60,30/11/2019,Adult Social Care,5 CARE SERVICES LTD,11/11/2019,"1,801.80",73507-DOMICILIARY CARE,MENTAL HEALTH SUPPORT,Third Party Payments,Revenue
Walsall Council,http://opendatacommunities.org/id/metropolitan-district-council/walsall,WC110-61,30/11/2019,Adult Social Care,5 CARE SERVICES LTD,11/11/2019,"1,819.90",73507-DOMICILIARY CARE,PHYSICAL SUPPORT,Third Party Payments,Revenue
Walsall Council,http://opendatacommunities.org/id/metropolitan-district-council/walsall,WC110-62,30/11/2019,Adult Social Care,5 CARE SERVICES LTD,11/11/2019,"1,955.33",73507-DOMICILIARY CARE,PHYSICAL SUPPORT,Third Party Payments,Revenue
Walsall Council,http://opendatacommunities.org/id/metropolitan-district-council/walsall,WC110-63,30/11/2019,Adult Social Care,5 CARE SERVICES LTD,11/11/2019,"1,980.82",73507-DOMICILIARY CARE,PHYSICAL SUPPORT,Third Party Payments,Revenue
Walsall Council,http://opendatacommunities.org/id/metropolitan-district-council/walsall,WC110-64,30/11/2019,Adult Social Care,5 CARE SERVICES LTD,11/11/2019,"2,088.30",73507-DOMICILIARY CARE,PHYSICAL SUPPORT,Third Party Payments,Revenue
Walsall Council,http://opendatacommunities.org/id/metropolitan-district-council/walsall,WC110-65,30/11/2019,Adult Social Care,5 CARE SERVICES LTD,11/11/2019,"2,326.60",73507-DOMICILIARY CARE,PHYSICAL SUPPORT,Third Party Payments,Revenue
Walsall Council,http://opendatacommunities.org/id/metropolitan-district-council/walsall,WC110-66,30/11/2019,Adult Social Care,A & A SERVICES WEST MIDLANDS,07/11/2019,"4,000.00",73025-PROFESSIONAL SERVICES-PRIV CONTRACTOR & OTHER AGENCIES,PHYSICAL SUPPORT,Third Party Payments,Revenue
Walsall Council,http://opendatacommunities.org/id/metropolitan-district-council/walsall,WC110-67,30/11/2019,Resources and Transformation,A D T FIRE AND SECURITY PLC,22/11/2019,449.12,73002-SECURITY-PRIV CONTRACTOR FEES,CENTRALISED MAINTENANCE,Third Party Payments,Revenue
Walsall Council,http://opendatacommunities.org/id/metropolitan-district-council/walsall,WC110-68,30/11/2019,Resources and Transformation,A D T FIRE AND SECURITY PLC,12/11/2019,453.52,73002-SECURITY-PRIV CONTRACTOR FEES,CENTRALISED MAINTENANCE,Third Party Payments,Revenue
Walsall Council,http://opendatacommunities.org/id/metropolitan-district-council/walsall,WC110-69,30/11/2019,Economy & Environment,A D T FIRE AND SECURITY PLC,11/11/2019,653.38,60500-GENERAL MATERIALS,ARBORETUM,Supplies & Services,Revenue
Walsall Council,http://opendatacommunities.org/id/metropolitan-district-council/walsall,WC110-70,30/11/2019,Childrens,A D T FIRE AND SECURITY PLC,14/11/2019,774.40,40000-OPERATIONAL MAINTENANCE,CONTACT SESSIONAL STAFF,Premises,Revenue
Walsall Council,http://opendatacommunities.org/id/metropolitan-district-council/walsall,WC110-71,30/11/2019,Economy & Environment,A D T FIRE AND SECURITY PLC,11/11/2019,918.08,60500-GENERAL MATERIALS,ARBORETUM,Supplies & Services,Revenue
Walsall Council,http://opendatacommunities.org/id/metropolitan-district-council/walsall,WC110-72,30/11/2019,Economy & Environment,A F BLAKEMORE & SON LTD,05/11/2019,266.89,61000-FOOD & DRINK SUPPLIES,OAK PARK,Supplies & Services,Revenue
Walsall Council,http://opendatacommunities.org/id/metropolitan-district-council/walsall,WC110-73,30/11/2019,Economy & Environment,A F BLAKEMORE & SON LTD,12/11/2019,316.11,61000-FOOD & DRINK SUPPLIES,OAK PARK,Supplies & Services,Revenue
Walsall Council,http://opendatacommunities.org/id/metropolitan-district-council/walsall,WC110-74,30/11/2019,Economy & Environment,A F BLAKEMORE & SON LTD,26/11/2019,324.83,61008-CONFECTIONERY/SNACKS-PROVISIONS,DARLASTON LEISURE CENTRE,Supplies & Services,Revenue
Walsall Council,http://opendatacommunities.org/id/metropolitan-district-council/walsall,WC110-75,30/11/2019,Adult Social Care,A F BLAKEMORE & SON LTD,22/11/2019,369.91,61016-FOOD AND BEVERAGES-PROVISIONS,GOSCOTE,Supplies & Services,Revenue
Walsall Council,http://opendatacommunities.org/id/metropolitan-district-council/walsall,WC110-76,30/11/2019,Economy & Environment,A F BLAKEMORE & SON LTD,19/11/2019,386.31,61000-FOOD & DRINK SUPPLIES,OAK PARK,Supplies & Services,Revenue
Walsall Council,http://opendatacommunities.org/id/metropolitan-district-council/walsall,WC110-77,30/11/2019,Economy & Environment,A F BLAKEMORE & SON LTD,12/11/2019,397.32,61000-FOOD & DRINK SUPPLIES,OAK PARK,Supplies & Services,Revenue
Walsall Council,http://opendatacommunities.org/id/metropolitan-district-council/walsall,WC110-78,30/11/2019,Adult Social Care,A F BLAKEMORE & SON LTD,05/11/2019,444.54,61016-FOOD AND BEVERAGES-PROVISIONS,GOSCOTE,Supplies & Services,Revenue
Walsall Council,http://opendatacommunities.org/id/metropolitan-district-council/walsall,WC110-79,30/11/2019,Economy & Environment,A F BLAKEMORE & SON LTD,25/11/2019,449.75,61000-FOOD & DRINK SUPPLIES,OAK PARK,Supplies & Services,Revenue
Walsall Council,http://opendatacommunities.org/id/metropolitan-district-council/walsall,WC110-80,30/11/2019,Adult Social Care,A F BLAKEMORE & SON LTD,12/11/2019,452.71,61016-FOOD AND BEVERAGES-PROVISIONS,GOSCOTE,Supplies & Services,Revenue
Walsall Council,http://opendatacommunities.org/id/metropolitan-district-council/walsall,WC110-81,30/11/2019,Economy & Environment,A F BLAKEMORE & SON LTD,12/11/2019,543.30,61000-FOOD & DRINK SUPPLIES,OAK PARK,Supplies & Services,Revenue
Walsall Council,http://opendatacommunities.org/id/metropolitan-district-council/walsall,WC110-82,30/11/2019,Economy & Environment,A F BLAKEMORE & SON LTD,22/11/2019,724.62,61000-FOOD & DRINK SUPPLIES,OAK PARK,Supplies & Services,Revenue
Walsall Council,http://opendatacommunities.org/id/metropolitan-district-council/walsall,WC110-83,30/11/2019,Economy & Environment,A F BLAKEMORE & SON LTD,15/11/2019,772.31,61016-FOOD AND BEVERAGES-PROVISIONS,BLOXWICH LEISURE CENTRE,Supplies & Services,Revenue
Walsall Council,http://opendatacommunities.org/id/metropolitan-district-council/walsall,WC110-84,30/11/2019,Economy & Environment,AAINA COMMUNITY HUB,13/11/2019,680.00,63253-PAYMENT TO CONTRACTOR,MENTAL HEALTH,Third Party Payments,Revenue
Walsall Council,http://opendatacommunities.org/id/metropolitan-district-council/walsall,WC110-85,30/11/2019,Resources and Transformation,AAINA COMMUNITY HUB,19/11/2019,"2,230.00",66500-GRANTS TO OTHER ORGS,AREA PARTNERSHIPS,Third Party Payments,Revenue
Walsall Council,http://opendatacommunities.org/id/metropolitan-district-council/walsall,WC110-86,30/11/2019,Resources and Transformation,AAINA COMMUNITY HUB,19/11/2019,"2,230.00",66500-GRANTS TO OTHER ORGS,INTEGRATED COMMUNITIES PROGRAMME,Third Party Payments,Revenue
Walsall Council,http://opendatacommunities.org/id/metropolitan-district-council/walsall,WC110-87,30/11/2019,Resources and Transformation,AAINA COMMUNITY HUB,13/11/2019,"23,092.00",63102-CONSULTANTS FEES - CORPORATE,INTEGRATED COMMUNITIES PROGRAMME,Supplies & Services,Revenue
Walsall Council,http://opendatacommunities.org/id/metropolitan-district-council/walsall,WC110-88,30/11/2019,Childrens,REDACTED,05/11/2019,712.12,73506-DIRECT PAYMENT,FAMILY SUPPORT - DIRECT PAYMENTS,Third Party Payments,Revenue
Walsall Council,http://opendatacommunities.org/id/metropolitan-district-council/walsall,WC110-89,30/11/2019,Adult Social Care,ABBEY COURT NURSING & RESIDEN,08/11/2019,"1,814.96",73500-RESIDENTIAL,PHYSICAL SUPPORT,Third Party Payments,Revenue
Walsall Council,http://opendatacommunities.org/id/metropolitan-district-council/walsall,WC110-90,30/11/2019,Adult Social Care,ABBEY COURT NURSING & RESIDEN,08/11/2019,"1,972.24",73501-RESIDENTIAL EMI,PHYSICAL SUPPORT,Third Party Payments,Revenue
Walsall Council,http://opendatacommunities.org/id/metropolitan-district-council/walsall,WC110-91,30/11/2019,Adult Social Care,ABBEY COURT NURSING & RESIDEN,08/11/2019,"1,972.24",73501-RESIDENTIAL EMI,SUPPORT WITH MEMORY & COGNITION,Third Party Payments,Revenue
Walsall Council,http://opendatacommunities.org/id/metropolitan-district-council/walsall,WC110-92,30/11/2019,Adult Social Care,ABBEY COURT NURSING & RESIDEN,08/11/2019,"1,972.24",73501-RESIDENTIAL EMI,PHYSICAL SUPPORT,Third Party Payments,Revenue
Walsall Council,http://opendatacommunities.org/id/metropolitan-district-council/walsall,WC110-93,30/11/2019,Adult Social Care,ABBEY COURT NURSING & RESIDEN,08/11/2019,"2,143.72",73502-NURSING,PHYSICAL SUPPORT,Third Party Payments,Revenue
Walsall Council,http://opendatacommunities.org/id/metropolitan-district-council/walsall,WC110-94,30/11/2019,Adult Social Care,ABBEY COURT NURSING & RESIDEN,08/11/2019,"2,358.08",73503-NURSING EMI,MENTAL HEALTH SUPPORT,Third Party Payments,Revenue
Walsall Council,http://opendatacommunities.org/id/metropolitan-district-council/walsall,WC110-95,30/11/2019,Adult Social Care,ABBEY COURT NURSING & RESIDEN,08/11/2019,"2,383.72",73502-NURSING,SUPPORT WITH MEMORY & COGNITION,Third Party Payments,Revenue
Walsall Council,http://opendatacommunities.org/id/metropolitan-district-council/walsall,WC110-96,30/11/2019,Adult Social Care,ABBEY HEALTHCARE HOMES LTD,08/11/2019,"2,317.04",73500-RESIDENTIAL,PHYSICAL SUPPORT,Third Party Payments,Revenue
Walsall Council,http://opendatacommunities.org/id/metropolitan-district-council/walsall,WC110-97,30/11/2019,Adult Social Care,ABBEY HEALTHCARE HOMES LTD,08/11/2019,"3,030.00",73500-RESIDENTIAL,LEARNING DISABILITY SUPPORT,Third Party Payments,Revenue
Walsall Council,http://opendatacommunities.org/id/metropolitan-district-council/walsall,WC110-98,30/11/2019,Adult Social Care,ABBEY HEALTHCARE HOMES LTD,08/11/2019,"3,030.00",73500-RESIDENTIAL,LEARNING DISABILITY SUPPORT,Third Party Payments,Revenue
Walsall Council,http://opendatacommunities.org/id/metropolitan-district-council/walsall,WC110-99,30/11/2019,Adult Social Care,ABBEY HEALTHCARE HOMES LTD,08/11/2019,"3,030.00",73500-RESIDENTIAL,PHYSICAL SUPPORT,Third Party Payments,Revenue
Walsall Council,http://opendatacommunities.org/id/metropolitan-district-council/walsall,WC110-100,30/11/2019,Adult Social Care,ABBEY HEALTHCARE HOMES LTD,08/11/2019,"3,434.00",73500-RESIDENTIAL,LEARNING DISABILITY SUPPORT,Third Party Payments,Revenue
Walsall Council,http://opendatacommunities.org/id/metropolitan-district-council/walsall,WC110-101,30/11/2019,Adult Social Care,ABBEY HEALTHCARE HOMES LTD,08/11/2019,"3,514.44",73503-NURSING EMI,PHYSICAL SUPPORT,Third Party Payments,Revenue
Walsall Council,http://opendatacommunities.org/id/metropolitan-district-council/walsall,WC110-102,30/11/2019,Adult Social Care,REDACTED,01/11/2019,"1,999.20",73506-DIRECT PAYMENT,LEARNING DISABILITY SUPPORT,Third Party Payments,Revenue
Walsall Council,http://opendatacommunities.org/id/metropolitan-district-council/walsall,WC110-103,30/11/2019,Childrens,ABLEWELL CARS,08/11/2019,328.00,52000-WITH DRIVER-HIRE OF VEHICLES,HOME TO SCHOOL TRANSPORT,Transport,Revenue
Walsall Council,http://opendatacommunities.org/id/metropolitan-district-council/walsall,WC110-104,30/11/2019,Childrens,ABLEWELL CARS,08/11/2019,500.00,52000-WITH DRIVER-HIRE OF VEHICLES,HOME TO SCHOOL TRANSPORT,Transport,Revenue
Walsall Council,http://opendatacommunities.org/id/metropolitan-district-council/walsall,WC110-105,30/11/2019,Childrens,ABLEWELL CARS,08/11/2019,500.00,52000-WITH DRIVER-HIRE OF VEHICLES,HOME TO SCHOOL TRANSPORT,Transport,Revenue
Walsall Council,http://opendatacommunities.org/id/metropolitan-district-council/walsall,WC110-106,30/11/2019,Childrens,ABLEWELL CARS,08/11/2019,656.00,52000-WITH DRIVER-HIRE OF VEHICLES,HOME TO SCHOOL TRANSPORT,Transport,Revenue
Walsall Council,http://opendatacommunities.org/id/metropolitan-district-council/walsall,WC110-107,30/11/2019,Childrens,ABLEWELL CARS,08/11/2019,"1,266.40",52000-WITH DRIVER-HIRE OF VEHICLES,HOME TO SCHOOL TRANSPORT,Transport,Revenue
Walsall Council,http://opendatacommunities.org/id/metropolitan-district-council/walsall,WC110-108,30/11/2019,Economy & Environment,ABRSM,18/11/2019,"1,421.00",63013-EXAMINATIONS-SERVICES,MUSIC HUB FOREST ARTS,Supplies & Services,Revenue
Walsall Council,http://opendatacommunities.org/id/metropolitan-district-council/walsall,WC110-109,30/11/2019,Adult Social Care,ACCORD HOUSING ASSOCIATION LIMITED - HOBS MEADOW,08/11/2019,"4,550.44",73500-RESIDENTIAL,LEARNING DISABILITY SUPPORT,Third Party Payments,Revenue
Walsall Council,http://opendatacommunities.org/id/metropolitan-district-council/walsall,WC110-110,30/11/2019,Adult Social Care,ACCORD HOUSING ASSOCIATION LIMITED - HOBS MEADOW,08/11/2019,"4,550.44",73500-RESIDENTIAL,LEARNING DISABILITY SUPPORT,Third Party Payments,Revenue
Walsall Council,http://opendatacommunities.org/id/metropolitan-district-council/walsall,WC110-111,30/11/2019,Adult Social Care,ACCORD HOUSING ASSOCIATION LIMITED - HOBS MEADOW,08/11/2019,"4,550.44",73500-RESIDENTIAL,LEARNING DISABILITY SUPPORT,Third Party Payments,Revenue
Walsall Council,http://opendatacommunities.org/id/metropolitan-district-council/walsall,WC110-112,30/11/2019,Adult Social Care,ACCORD HOUSING ASSOCIATION LIMITED - HOBS MEADOW,08/11/2019,"4,550.44",73500-RESIDENTIAL,LEARNING DISABILITY SUPPORT,Third Party Payments,Revenue
Walsall Council,http://opendatacommunities.org/id/metropolitan-district-council/walsall,WC110-113,30/11/2019,Adult Social Care,ACCORD HOUSING ASSOCIATION LTD#135,11/11/2019,-0.56,73508-COMMUNITY SUPPORTED LIVING/SUPPORTED ACCOMMODATION,MENTAL HEALTH SUPPORT,Third Party Payments,Revenue
Walsall Council,http://opendatacommunities.org/id/metropolitan-district-council/walsall,WC110-114,30/11/2019,Adult Social Care,ACCORD HOUSING ASSOCIATION LTD#135,11/11/2019,267.68,73507-DOMICILIARY CARE,MENTAL HEALTH SUPPORT,Third Party Payments,Revenue
Walsall Council,http://opendatacommunities.org/id/metropolitan-district-council/walsall,WC110-115,30/11/2019,Adult Social Care,ACCORD HOUSING ASSOCIATION LTD#135,11/11/2019,334.32,73507-DOMICILIARY CARE,MENTAL HEALTH SUPPORT,Third Party Payments,Revenue
Walsall Council,http://opendatacommunities.org/id/metropolitan-district-council/walsall,WC110-116,30/11/2019,Adult Social Care,ACCORD HOUSING ASSOCIATION LTD#135,11/11/2019,334.32,73507-DOMICILIARY CARE,MENTAL HEALTH SUPPORT,Third Party Payments,Revenue
Walsall Council,http://opendatacommunities.org/id/metropolitan-district-council/walsall,WC110-117,30/11/2019,Adult Social Care,ACCORD HOUSING ASSOCIATION LTD#135,11/11/2019,334.32,73508-COMMUNITY SUPPORTED LIVING/SUPPORTED ACCOMMODATION,LEARNING DISABILITY SUPPORT,Third Party Payments,Revenue
Walsall Council,http://opendatacommunities.org/id/metropolitan-district-council/walsall,WC110-118,30/11/2019,Childrens,ACCORD HOUSING ASSOCIATION LTD#135,20/11/2019,375.92,43000-RENTS,SAFEGUARDING & FAMILY SUPPORT,Premises,Revenue
Walsall Council,http://opendatacommunities.org/id/metropolitan-district-council/walsall,WC110-119,30/11/2019,Adult Social Care,ACCORD HOUSING ASSOCIATION LTD#135,11/11/2019,400.68,73507-DOMICILIARY CARE,SUPPORT WITH MEMORY & COGNITION,Third Party Payments,Revenue
Walsall Council,http://opendatacommunities.org/id/metropolitan-district-council/walsall,WC110-120,30/11/2019,Adult Social Care,ACCORD HOUSING ASSOCIATION LTD#135,11/11/2019,563.72,73507-DOMICILIARY CARE,PHYSICAL SUPPORT,Third Party Payments,Revenue
Walsall Council,http://opendatacommunities.org/id/metropolitan-district-council/walsall,WC110-121,30/11/2019,Adult Social Care,ACCORD HOUSING ASSOCIATION LTD#135,11/11/2019,563.76,73507-DOMICILIARY CARE,PHYSICAL SUPPORT,Third Party Payments,Revenue
Walsall Council,http://opendatacommunities.org/id/metropolitan-district-council/walsall,WC110-122,30/11/2019,Adult Social Care,ACCORD HOUSING ASSOCIATION LTD#135,11/11/2019,642.24,73507-DOMICILIARY CARE,MENTAL HEALTH SUPPORT,Third Party Payments,Revenue
Walsall Council,http://opendatacommunities.org/id/metropolitan-district-council/walsall,WC110-123,30/11/2019,Adult Social Care,ACCORD HOUSING ASSOCIATION LTD#135,11/11/2019,680.04,73508-COMMUNITY SUPPORTED LIVING/SUPPORTED ACCOMMODATION,MENTAL HEALTH SUPPORT,Third Party Payments,Revenue
Walsall Council,http://opendatacommunities.org/id/metropolitan-district-council/walsall,WC110-124,30/11/2019,Adult Social Care,ACCORD HOUSING ASSOCIATION LTD#135,11/11/2019,717.80,73508-COMMUNITY SUPPORTED LIVING/SUPPORTED ACCOMMODATION,MENTAL HEALTH SUPPORT,Third Party Payments,Revenue
Walsall Council,http://opendatacommunities.org/id/metropolitan-district-council/walsall,WC110-125,30/11/2019,Adult Social Care,ACCORD HOUSING ASSOCIATION LTD#135,11/11/2019,717.80,73508-COMMUNITY SUPPORTED LIVING/SUPPORTED ACCOMMODATION,MENTAL HEALTH SUPPORT,Third Party Payments,Revenue
Walsall Council,http://opendatacommunities.org/id/metropolitan-district-council/walsall,WC110-126,30/11/2019,Adult Social Care,ACCORD HOUSING ASSOCIATION LTD#135,11/11/2019,755.60,73508-COMMUNITY SUPPORTED LIVING/SUPPORTED ACCOMMODATION,MENTAL HEALTH SUPPORT,Third Party Payments,Revenue
Walsall Council,http://opendatacommunities.org/id/metropolitan-district-council/walsall,WC110-127,30/11/2019,Adult Social Care,ACCORD HOUSING ASSOCIATION LTD#135,11/11/2019,850.04,73508-COMMUNITY SUPPORTED LIVING/SUPPORTED ACCOMMODATION,MENTAL HEALTH SUPPORT,Third Party Payments,Revenue
Walsall Council,http://opendatacommunities.org/id/metropolitan-district-council/walsall,WC110-128,30/11/2019,Adult Social Care,ACCORD HOUSING ASSOCIATION LTD#135,11/11/2019,864.72,73507-DOMICILIARY CARE,SOCIAL SUPPORT,Third Party Payments,Revenue
Walsall Council,http://opendatacommunities.org/id/metropolitan-district-council/walsall,WC110-129,30/11/2019,Adult Social Care,ACCORD HOUSING ASSOCIATION LTD#135,11/11/2019,874.12,73507-DOMICILIARY CARE,LEARNING DISABILITY SUPPORT,Third Party Payments,Revenue
Walsall Council,http://opendatacommunities.org/id/metropolitan-district-council/walsall,WC110-130,30/11/2019,Adult Social Care,ACCORD HOUSING ASSOCIATION LTD#135,11/11/2019,892.88,73507-DOMICILIARY CARE,LEARNING DISABILITY SUPPORT,Third Party Payments,Revenue
Walsall Council,http://opendatacommunities.org/id/metropolitan-district-council/walsall,WC110-131,30/11/2019,Adult Social Care,ACCORD HOUSING ASSOCIATION LTD#135,11/11/2019,903.28,73507-DOMICILIARY CARE,PHYSICAL SUPPORT,Third Party Payments,Revenue
Walsall Council,http://opendatacommunities.org/id/metropolitan-district-council/walsall,WC110-132,30/11/2019,Adult Social Care,ACCORD HOUSING ASSOCIATION LTD#135,11/11/2019,969.04,73507-DOMICILIARY CARE,LEARNING DISABILITY SUPPORT,Third Party Payments,Revenue
Walsall Council,http://opendatacommunities.org/id/metropolitan-district-council/walsall,WC110-133,30/11/2019,Adult Social Care,ACCORD HOUSING ASSOCIATION LTD#135,11/11/2019,982.28,73507-DOMICILIARY CARE,MENTAL HEALTH SUPPORT,Third Party Payments,Revenue
Walsall Council,http://opendatacommunities.org/id/metropolitan-district-council/walsall,WC110-134,30/11/2019,Adult Social Care,ACCORD HOUSING ASSOCIATION LTD#135,11/11/2019,"1,002.68",73507-DOMICILIARY CARE,SOCIAL SUPPORT,Third Party Payments,Revenue
Walsall Council,http://opendatacommunities.org/id/metropolitan-district-council/walsall,WC110-135,30/11/2019,Adult Social Care,ACCORD HOUSING ASSOCIATION LTD#135,11/11/2019,"1,122.52",73507-DOMICILIARY CARE,PHYSICAL SUPPORT,Third Party Payments,Revenue
Walsall Council,http://opendatacommunities.org/id/metropolitan-district-council/walsall,WC110-136,30/11/2019,Adult Social Care,ACCORD HOUSING ASSOCIATION LTD#135,08/11/2019,"1,417.86",73500-RESIDENTIAL,LEARNING DISABILITY SUPPORT,Third Party Payments,Revenue
Walsall Council,http://opendatacommunities.org/id/metropolitan-district-council/walsall,WC110-137,30/11/2019,Adult Social Care,ACCORD HOUSING ASSOCIATION LTD#135,11/11/2019,"1,470.56",73507-DOMICILIARY CARE,MENTAL HEALTH SUPPORT,Third Party Payments,Revenue
Walsall Council,http://opendatacommunities.org/id/metropolitan-district-council/walsall,WC110-138,30/11/2019,Adult Social Care,ACCORD HOUSING ASSOCIATION LTD#135,11/11/2019,"1,676.61",73507-DOMICILIARY CARE,LEARNING DISABILITY SUPPORT,Third Party Payments,Revenue
Walsall Council,http://opendatacommunities.org/id/metropolitan-district-council/walsall,WC110-139,30/11/2019,Adult Social Care,ACCORD HOUSING ASSOCIATION LTD#135,11/11/2019,"1,705.48",73507-DOMICILIARY CARE,PHYSICAL SUPPORT,Third Party Payments,Revenue
Walsall Council,http://opendatacommunities.org/id/metropolitan-district-council/walsall,WC110-140,30/11/2019,Adult Social Care,ACCORD HOUSING ASSOCIATION LTD#135,18/11/2019,"5,199.60",70000-SOCIAL SERVICES-FEES TO VOLUNTARY BODIES,COMPLEX NEEDS SLA,Third Party Payments,Revenue
Walsall Council,http://opendatacommunities.org/id/metropolitan-district-council/walsall,WC110-141,30/11/2019,Adult Social Care,ACCORD HOUSING ASSOCIATION LTD#135,08/11/2019,"6,350.96",73500-RESIDENTIAL,LEARNING DISABILITY SUPPORT,Third Party Payments,Revenue
Walsall Council,http://opendatacommunities.org/id/metropolitan-district-council/walsall,WC110-142,30/11/2019,Adult Social Care,ACCORD HOUSING ASSOCIATION LTD#135,08/11/2019,"6,350.96",73500-RESIDENTIAL,LEARNING DISABILITY SUPPORT,Third Party Payments,Revenue
Walsall Council,http://opendatacommunities.org/id/metropolitan-district-council/walsall,WC110-143,30/11/2019,Economy & Environment,ACCORD HOUSING ASSOCIATION LTD#135,06/11/2019,"7,437.50",63253-PAYMENT TO CONTRACTOR,MENTAL HEALTH,Third Party Payments,Revenue
Walsall Council,http://opendatacommunities.org/id/metropolitan-district-council/walsall,WC110-144,30/11/2019,Adult Social Care,ACCORD HOUSING ASSOCIATION LTD#135,06/11/2019,"11,164.00",73365-BLOCK GROSS-SUPPORTING PEOPLE,OLDER PEOPLE SLA,Third Party Payments,Revenue
Walsall Council,http://opendatacommunities.org/id/metropolitan-district-council/walsall,WC110-145,30/11/2019,Economy & Environment,ACCORD HOUSING ASSOCIATION LTD#135,04/11/2019,"11,250.00",63253-PAYMENT TO CONTRACTOR,FALLS PREVENTION AGE UK,Third Party Payments,Revenue
Walsall Council,http://opendatacommunities.org/id/metropolitan-district-council/walsall,WC110-146,30/11/2019,Resources and Transformation,ACCORD HOUSING ASSOCIATION LTD#135,14/11/2019,"21,144.92",63000-PROFESSIONAL FEES AND SERVICES,HOMELESSNESS PREVENTION STRATEGY,Supplies & Services,Revenue
Walsall Council,http://opendatacommunities.org/id/metropolitan-district-council/walsall,WC110-147,30/11/2019,Adult Social Care,ACCORD HOUSING ASSOCIATION LTD#135,06/11/2019,"29,330.75",73365-BLOCK GROSS-SUPPORTING PEOPLE,OLDER PEOPLE SLA,Third Party Payments,Revenue
Walsall Council,http://opendatacommunities.org/id/metropolitan-district-council/walsall,WC110-148,30/11/2019,Childrens,ACE CARS & MINIBUSES LTD,08/11/2019,368.00,52000-WITH DRIVER-HIRE OF VEHICLES,HOME TO SCHOOL TRANSPORT,Transport,Revenue
Walsall Council,http://opendatacommunities.org/id/metropolitan-district-council/walsall,WC110-149,30/11/2019,Childrens,ACE CARS & MINIBUSES LTD,08/11/2019,368.00,52000-WITH DRIVER-HIRE OF VEHICLES,HOME TO SCHOOL TRANSPORT,Transport,Revenue
Walsall Council,http://opendatacommunities.org/id/metropolitan-district-council/walsall,WC110-150,30/11/2019,Childrens,ACE CARS & MINIBUSES LTD,08/11/2019,368.00,52000-WITH DRIVER-HIRE OF VEHICLES,HOME TO SCHOOL TRANSPORT,Transport,Revenue
Walsall Council,http://opendatacommunities.org/id/metropolitan-district-council/walsall,WC110-151,30/11/2019,Childrens,ACE CARS & MINIBUSES LTD,08/11/2019,368.00,52000-WITH DRIVER-HIRE OF VEHICLES,HOME TO SCHOOL TRANSPORT,Transport,Revenue
Walsall Council,http://opendatacommunities.org/id/metropolitan-district-council/walsall,WC110-152,30/11/2019,Childrens,ACE CARS & MINIBUSES LTD,08/11/2019,368.00,52000-WITH DRIVER-HIRE OF VEHICLES,HOME TO SCHOOL TRANSPORT,Transport,Revenue
Walsall Council,http://opendatacommunities.org/id/metropolitan-district-council/walsall,WC110-153,30/11/2019,Childrens,ACE CARS & MINIBUSES LTD,08/11/2019,383.60,52000-WITH DRIVER-HIRE OF VEHICLES,HOME TO SCHOOL TRANSPORT,Transport,Revenue
Walsall Council,http://opendatacommunities.org/id/metropolitan-district-council/walsall,WC110-154,30/11/2019,Childrens,ACE CARS & MINIBUSES LTD,08/11/2019,383.60,52000-WITH DRIVER-HIRE OF VEHICLES,HOME TO SCHOOL TRANSPORT,Transport,Revenue
Walsall Council,http://opendatacommunities.org/id/metropolitan-district-council/walsall,WC110-155,30/11/2019,Childrens,ACE CARS & MINIBUSES LTD,08/11/2019,383.60,52000-WITH DRIVER-HIRE OF VEHICLES,HOME TO SCHOOL TRANSPORT,Transport,Revenue
Walsall Council,http://opendatacommunities.org/id/metropolitan-district-council/walsall,WC110-156,30/11/2019,Childrens,ACE CARS & MINIBUSES LTD,08/11/2019,383.60,52000-WITH DRIVER-HIRE OF VEHICLES,HOME TO SCHOOL TRANSPORT,Transport,Revenue
Walsall Council,http://opendatacommunities.org/id/metropolitan-district-council/walsall,WC110-157,30/11/2019,Childrens,ACE CARS & MINIBUSES LTD,08/11/2019,383.60,52000-WITH DRIVER-HIRE OF VEHICLES,HOME TO SCHOOL TRANSPORT,Transport,Revenue
Walsall Council,http://opendatacommunities.org/id/metropolitan-district-council/walsall,WC110-158,30/11/2019,Childrens,ACE CARS & MINIBUSES LTD,08/11/2019,383.60,52000-WITH DRIVER-HIRE OF VEHICLES,HOME TO SCHOOL TRANSPORT,Transport,Revenue
Walsall Council,http://opendatacommunities.org/id/metropolitan-district-council/walsall,WC110-159,30/11/2019,Childrens,ACE CARS & MINIBUSES LTD,08/11/2019,414.00,52000-WITH DRIVER-HIRE OF VEHICLES,HOME TO SCHOOL TRANSPORT,Transport,Revenue
Walsall Council,http://opendatacommunities.org/id/metropolitan-district-council/walsall,WC110-160,30/11/2019,Childrens,ACE CARS & MINIBUSES LTD,08/11/2019,414.00,52000-WITH DRIVER-HIRE OF VEHICLES,HOME TO SCHOOL TRANSPORT,Transport,Revenue
Walsall Council,http://opendatacommunities.org/id/metropolitan-district-council/walsall,WC110-161,30/11/2019,Childrens,ACE CARS & MINIBUSES LTD,08/11/2019,414.00,52000-WITH DRIVER-HIRE OF VEHICLES,HOME TO SCHOOL TRANSPORT,Transport,Revenue
Walsall Council,http://opendatacommunities.org/id/metropolitan-district-council/walsall,WC110-162,30/11/2019,Childrens,ACE CARS & MINIBUSES LTD,08/11/2019,414.00,52000-WITH DRIVER-HIRE OF VEHICLES,HOME TO SCHOOL TRANSPORT,Transport,Revenue
Walsall Council,http://opendatacommunities.org/id/metropolitan-district-council/walsall,WC110-163,30/11/2019,Childrens,ACE CARS & MINIBUSES LTD,08/11/2019,414.00,52000-WITH DRIVER-HIRE OF VEHICLES,HOME TO SCHOOL TRANSPORT,Transport,Revenue
Walsall Council,http://opendatacommunities.org/id/metropolitan-district-council/walsall,WC110-164,30/11/2019,Childrens,ACE CARS & MINIBUSES LTD,08/11/2019,414.00,52000-WITH DRIVER-HIRE OF VEHICLES,HOME TO SCHOOL TRANSPORT,Transport,Revenue
Walsall Council,http://opendatacommunities.org/id/metropolitan-district-council/walsall,WC110-165,30/11/2019,Childrens,ACE CARS & MINIBUSES LTD,08/11/2019,414.00,52000-WITH DRIVER-HIRE OF VEHICLES,HOME TO SCHOOL TRANSPORT,Transport,Revenue
Walsall Council,http://opendatacommunities.org/id/metropolitan-district-council/walsall,WC110-166,30/11/2019,Childrens,ACE CARS & MINIBUSES LTD,08/11/2019,414.00,52000-WITH DRIVER-HIRE OF VEHICLES,HOME TO SCHOOL TRANSPORT,Transport,Revenue
Walsall Council,http://opendatacommunities.org/id/metropolitan-district-council/walsall,WC110-167,30/11/2019,Childrens,ACE CARS & MINIBUSES LTD,08/11/2019,414.00,52000-WITH DRIVER-HIRE OF VEHICLES,HOME TO SCHOOL TRANSPORT,Transport,Revenue
Walsall Council,http://opendatacommunities.org/id/metropolitan-district-council/walsall,WC110-168,30/11/2019,Childrens,ACE CARS & MINIBUSES LTD,08/11/2019,414.00,52000-WITH DRIVER-HIRE OF VEHICLES,HOME TO SCHOOL TRANSPORT,Transport,Revenue
Walsall Council,http://opendatacommunities.org/id/metropolitan-district-council/walsall,WC110-169,30/11/2019,Childrens,ACE CARS & MINIBUSES LTD,08/11/2019,437.00,52000-WITH DRIVER-HIRE OF VEHICLES,HOME TO SCHOOL TRANSPORT,Transport,Revenue
Walsall Council,http://opendatacommunities.org/id/metropolitan-district-council/walsall,WC110-170,30/11/2019,Childrens,ACE CARS & MINIBUSES LTD,08/11/2019,437.20,52000-WITH DRIVER-HIRE OF VEHICLES,HOME TO SCHOOL TRANSPORT,Transport,Revenue
Walsall Council,http://opendatacommunities.org/id/metropolitan-district-council/walsall,WC110-171,30/11/2019,Childrens,ACE CARS & MINIBUSES LTD,08/11/2019,437.20,52000-WITH DRIVER-HIRE OF VEHICLES,HOME TO SCHOOL TRANSPORT,Transport,Revenue
Walsall Council,http://opendatacommunities.org/id/metropolitan-district-council/walsall,WC110-172,30/11/2019,Childrens,ACE CARS & MINIBUSES LTD,08/11/2019,437.20,52000-WITH DRIVER-HIRE OF VEHICLES,HOME TO SCHOOL TRANSPORT,Transport,Revenue
Walsall Council,http://opendatacommunities.org/id/metropolitan-district-council/walsall,WC110-173,30/11/2019,Childrens,ACE CARS & MINIBUSES LTD,08/11/2019,437.20,52000-WITH DRIVER-HIRE OF VEHICLES,HOME TO SCHOOL TRANSPORT,Transport,Revenue
Walsall Council,http://opendatacommunities.org/id/metropolitan-district-council/walsall,WC110-174,30/11/2019,Childrens,ACE CARS & MINIBUSES LTD,08/11/2019,437.20,52000-WITH DRIVER-HIRE OF VEHICLES,HOME TO SCHOOL TRANSPORT,Transport,Revenue
Walsall Council,http://opendatacommunities.org/id/metropolitan-district-council/walsall,WC110-175,30/11/2019,Childrens,ACE CARS & MINIBUSES LTD,08/11/2019,437.20,52000-WITH DRIVER-HIRE OF VEHICLES,HOME TO SCHOOL TRANSPORT,Transport,Revenue
Walsall Council,http://opendatacommunities.org/id/metropolitan-district-council/walsall,WC110-176,30/11/2019,Childrens,ACE CARS & MINIBUSES LTD,08/11/2019,437.20,52000-WITH DRIVER-HIRE OF VEHICLES,HOME TO SCHOOL TRANSPORT,Transport,Revenue
Walsall Council,http://opendatacommunities.org/id/metropolitan-district-council/walsall,WC110-177,30/11/2019,Childrens,ACE CARS & MINIBUSES LTD,08/11/2019,437.20,52000-WITH DRIVER-HIRE OF VEHICLES,HOME TO SCHOOL TRANSPORT,Transport,Revenue
Walsall Council,http://opendatacommunities.org/id/metropolitan-district-council/walsall,WC110-178,30/11/2019,Childrens,ACE CARS & MINIBUSES LTD,08/11/2019,437.20,52000-WITH DRIVER-HIRE OF VEHICLES,HOME TO SCHOOL TRANSPORT,Transport,Revenue
Walsall Council,http://opendatacommunities.org/id/metropolitan-district-council/walsall,WC110-179,30/11/2019,Childrens,ACE CARS & MINIBUSES LTD,08/11/2019,450.00,52000-WITH DRIVER-HIRE OF VEHICLES,HOME TO SCHOOL TRANSPORT,Transport,Revenue
Walsall Council,http://opendatacommunities.org/id/metropolitan-district-council/walsall,WC110-180,30/11/2019,Childrens,ACE CARS & MINIBUSES LTD,08/11/2019,450.00,52000-WITH DRIVER-HIRE OF VEHICLES,HOME TO SCHOOL TRANSPORT,Transport,Revenue
Walsall Council,http://opendatacommunities.org/id/metropolitan-district-council/walsall,WC110-181,30/11/2019,Childrens,ACE CARS & MINIBUSES LTD,08/11/2019,506.00,52000-WITH DRIVER-HIRE OF VEHICLES,HOME TO SCHOOL TRANSPORT,Transport,Revenue
Walsall Council,http://opendatacommunities.org/id/metropolitan-district-council/walsall,WC110-182,30/11/2019,Childrens,ACE CARS & MINIBUSES LTD,08/11/2019,506.00,52000-WITH DRIVER-HIRE OF VEHICLES,HOME TO SCHOOL TRANSPORT,Transport,Revenue
Walsall Council,http://opendatacommunities.org/id/metropolitan-district-council/walsall,WC110-183,30/11/2019,Childrens,ACE CARS & MINIBUSES LTD,08/11/2019,506.00,52000-WITH DRIVER-HIRE OF VEHICLES,HOME TO SCHOOL TRANSPORT,Transport,Revenue
Walsall Council,http://opendatacommunities.org/id/metropolitan-district-council/walsall,WC110-184,30/11/2019,Childrens,ACE CARS & MINIBUSES LTD,08/11/2019,506.00,52000-WITH DRIVER-HIRE OF VEHICLES,HOME TO SCHOOL TRANSPORT,Transport,Revenue
Walsall Council,http://opendatacommunities.org/id/metropolitan-district-council/walsall,WC110-185,30/11/2019,Childrens,ACE CARS & MINIBUSES LTD,08/11/2019,506.00,52000-WITH DRIVER-HIRE OF VEHICLES,HOME TO SCHOOL TRANSPORT,Transport,Revenue
Walsall Council,http://opendatacommunities.org/id/metropolitan-district-council/walsall,WC110-186,30/11/2019,Childrens,ACE CARS & MINIBUSES LTD,08/11/2019,513.20,52000-WITH DRIVER-HIRE OF VEHICLES,HOME TO SCHOOL TRANSPORT,Transport,Revenue
Walsall Council,http://opendatacommunities.org/id/metropolitan-district-council/walsall,WC110-187,30/11/2019,Childrens,ACE CARS & MINIBUSES LTD,08/11/2019,513.20,52000-WITH DRIVER-HIRE OF VEHICLES,HOME TO SCHOOL TRANSPORT,Transport,Revenue
Walsall Council,http://opendatacommunities.org/id/metropolitan-district-council/walsall,WC110-188,30/11/2019,Childrens,ACE CARS & MINIBUSES LTD,08/11/2019,513.20,52000-WITH DRIVER-HIRE OF VEHICLES,HOME TO SCHOOL TRANSPORT,Transport,Revenue
Walsall Council,http://opendatacommunities.org/id/metropolitan-district-council/walsall,WC110-189,30/11/2019,Childrens,ACE CARS & MINIBUSES LTD,08/11/2019,513.20,52000-WITH DRIVER-HIRE OF VEHICLES,HOME TO SCHOOL TRANSPORT,Transport,Revenue
Walsall Council,http://opendatacommunities.org/id/metropolitan-district-council/walsall,WC110-190,30/11/2019,Childrens,ACE CARS & MINIBUSES LTD,08/11/2019,513.20,52000-WITH DRIVER-HIRE OF VEHICLES,HOME TO SCHOOL TRANSPORT,Transport,Revenue
Walsall Council,http://opendatacommunities.org/id/metropolitan-district-council/walsall,WC110-191,30/11/2019,Childrens,ACE CARS & MINIBUSES LTD,08/11/2019,513.20,52000-WITH DRIVER-HIRE OF VEHICLES,HOME TO SCHOOL TRANSPORT,Transport,Revenue
Walsall Council,http://opendatacommunities.org/id/metropolitan-district-council/walsall,WC110-192,30/11/2019,Childrens,ACE CARS & MINIBUSES LTD,08/11/2019,550.00,52000-WITH DRIVER-HIRE OF VEHICLES,HOME TO SCHOOL TRANSPORT,Transport,Revenue
Walsall Council,http://opendatacommunities.org/id/metropolitan-district-council/walsall,WC110-193,30/11/2019,Childrens,ACE CARS & MINIBUSES LTD,08/11/2019,550.00,52000-WITH DRIVER-HIRE OF VEHICLES,HOME TO SCHOOL TRANSPORT,Transport,Revenue
Walsall Council,http://opendatacommunities.org/id/metropolitan-district-council/walsall,WC110-194,30/11/2019,Childrens,ACE CARS & MINIBUSES LTD,08/11/2019,550.00,52000-WITH DRIVER-HIRE OF VEHICLES,HOME TO SCHOOL TRANSPORT,Transport,Revenue
Walsall Council,http://opendatacommunities.org/id/metropolitan-district-council/walsall,WC110-195,30/11/2019,Childrens,ACE CARS & MINIBUSES LTD,08/11/2019,550.00,52000-WITH DRIVER-HIRE OF VEHICLES,HOME TO SCHOOL TRANSPORT,Transport,Revenue
Walsall Council,http://opendatacommunities.org/id/metropolitan-district-council/walsall,WC110-196,30/11/2019,Childrens,ACE CARS & MINIBUSES LTD,08/11/2019,598.00,52000-WITH DRIVER-HIRE OF VEHICLES,HOME TO SCHOOL TRANSPORT,Transport,Revenue
Walsall Council,http://opendatacommunities.org/id/metropolitan-district-council/walsall,WC110-197,30/11/2019,Childrens,ACE CARS & MINIBUSES LTD,08/11/2019,598.00,52000-WITH DRIVER-HIRE OF VEHICLES,HOME TO SCHOOL TRANSPORT,Transport,Revenue
Walsall Council,http://opendatacommunities.org/id/metropolitan-district-council/walsall,WC110-198,30/11/2019,Childrens,ACE CARS & MINIBUSES LTD,08/11/2019,598.00,52000-WITH DRIVER-HIRE OF VEHICLES,HOME TO SCHOOL TRANSPORT,Transport,Revenue
Walsall Council,http://opendatacommunities.org/id/metropolitan-district-council/walsall,WC110-199,30/11/2019,Childrens,ACE CARS & MINIBUSES LTD,08/11/2019,598.00,52000-WITH DRIVER-HIRE OF VEHICLES,HOME TO SCHOOL TRANSPORT,Transport,Revenue
Walsall Council,http://opendatacommunities.org/id/metropolitan-district-council/walsall,WC110-200,30/11/2019,Childrens,ACE CARS & MINIBUSES LTD,08/11/2019,598.00,52000-WITH DRIVER-HIRE OF VEHICLES,HOME TO SCHOOL TRANSPORT,Transport,Revenue
Walsall Council,http://opendatacommunities.org/id/metropolitan-district-council/walsall,WC110-201,30/11/2019,Childrens,ACE CARS & MINIBUSES LTD,08/11/2019,618.00,52000-WITH DRIVER-HIRE OF VEHICLES,HOME TO SCHOOL TRANSPORT,Transport,Revenue
Walsall Council,http://opendatacommunities.org/id/metropolitan-district-council/walsall,WC110-202,30/11/2019,Childrens,ACE CARS & MINIBUSES LTD,08/11/2019,618.00,52000-WITH DRIVER-HIRE OF VEHICLES,HOME TO SCHOOL TRANSPORT,Transport,Revenue
Walsall Council,http://opendatacommunities.org/id/metropolitan-district-council/walsall,WC110-203,30/11/2019,Childrens,ACE CARS & MINIBUSES LTD,08/11/2019,618.00,52000-WITH DRIVER-HIRE OF VEHICLES,HOME TO SCHOOL TRANSPORT,Transport,Revenue
Walsall Council,http://opendatacommunities.org/id/metropolitan-district-council/walsall,WC110-204,30/11/2019,Childrens,ACE CARS & MINIBUSES LTD,08/11/2019,618.00,52000-WITH DRIVER-HIRE OF VEHICLES,HOME TO SCHOOL TRANSPORT,Transport,Revenue
Walsall Council,http://opendatacommunities.org/id/metropolitan-district-council/walsall,WC110-205,30/11/2019,Childrens,ACE CARS & MINIBUSES LTD,08/11/2019,618.00,52000-WITH DRIVER-HIRE OF VEHICLES,HOME TO SCHOOL TRANSPORT,Transport,Revenue
Walsall Council,http://opendatacommunities.org/id/metropolitan-district-council/walsall,WC110-206,30/11/2019,Childrens,ACE CARS & MINIBUSES LTD,08/11/2019,618.00,52000-WITH DRIVER-HIRE OF VEHICLES,HOME TO SCHOOL TRANSPORT,Transport,Revenue
Walsall Council,http://opendatacommunities.org/id/metropolitan-district-council/walsall,WC110-207,30/11/2019,Childrens,ACE CARS & MINIBUSES LTD,08/11/2019,618.00,52000-WITH DRIVER-HIRE OF VEHICLES,HOME TO SCHOOL TRANSPORT,Transport,Revenue
Walsall Council,http://opendatacommunities.org/id/metropolitan-district-council/walsall,WC110-208,30/11/2019,Childrens,ACE CARS & MINIBUSES LTD,08/11/2019,618.00,52000-WITH DRIVER-HIRE OF VEHICLES,HOME TO SCHOOL TRANSPORT,Transport,Revenue
Walsall Council,http://opendatacommunities.org/id/metropolitan-district-council/walsall,WC110-209,30/11/2019,Childrens,ACE CARS & MINIBUSES LTD,08/11/2019,618.00,52000-WITH DRIVER-HIRE OF VEHICLES,HOME TO SCHOOL TRANSPORT,Transport,Revenue
Walsall Council,http://opendatacommunities.org/id/metropolitan-district-council/walsall,WC110-210,30/11/2019,Childrens,ACE CARS & MINIBUSES LTD,08/11/2019,618.00,52000-WITH DRIVER-HIRE OF VEHICLES,HOME TO SCHOOL TRANSPORT,Transport,Revenue
Walsall Council,http://opendatacommunities.org/id/metropolitan-district-council/walsall,WC110-211,30/11/2019,Childrens,ACE CARS & MINIBUSES LTD,08/11/2019,632.40,52000-WITH DRIVER-HIRE OF VEHICLES,HOME TO SCHOOL TRANSPORT,Transport,Revenue
Walsall Council,http://opendatacommunities.org/id/metropolitan-district-council/walsall,WC110-212,30/11/2019,Childrens,ACE CARS & MINIBUSES LTD,08/11/2019,632.40,52000-WITH DRIVER-HIRE OF VEHICLES,HOME TO SCHOOL TRANSPORT,Transport,Revenue
Walsall Council,http://opendatacommunities.org/id/metropolitan-district-council/walsall,WC110-213,30/11/2019,Childrens,ACE CARS & MINIBUSES LTD,08/11/2019,632.40,52000-WITH DRIVER-HIRE OF VEHICLES,HOME TO SCHOOL TRANSPORT,Transport,Revenue
Walsall Council,http://opendatacommunities.org/id/metropolitan-district-council/walsall,WC110-214,30/11/2019,Childrens,ACE CARS & MINIBUSES LTD,08/11/2019,632.40,52000-WITH DRIVER-HIRE OF VEHICLES,HOME TO SCHOOL TRANSPORT,Transport,Revenue
Walsall Council,http://opendatacommunities.org/id/metropolitan-district-council/walsall,WC110-215,30/11/2019,Childrens,ACE CARS & MINIBUSES LTD,08/11/2019,687.60,52000-WITH DRIVER-HIRE OF VEHICLES,HOME TO SCHOOL TRANSPORT,Transport,Revenue
Walsall Council,http://opendatacommunities.org/id/metropolitan-district-council/walsall,WC110-216,30/11/2019,Childrens,ACE CARS & MINIBUSES LTD,08/11/2019,687.60,52000-WITH DRIVER-HIRE OF VEHICLES,HOME TO SCHOOL TRANSPORT,Transport,Revenue
Walsall Council,http://opendatacommunities.org/id/metropolitan-district-council/walsall,WC110-217,30/11/2019,Childrens,ACE CARS & MINIBUSES LTD,08/11/2019,687.60,52000-WITH DRIVER-HIRE OF VEHICLES,HOME TO SCHOOL TRANSPORT,Transport,Revenue
Walsall Council,http://opendatacommunities.org/id/metropolitan-district-council/walsall,WC110-218,30/11/2019,Childrens,ACE CARS & MINIBUSES LTD,08/11/2019,687.60,52000-WITH DRIVER-HIRE OF VEHICLES,HOME TO SCHOOL TRANSPORT,Transport,Revenue
Walsall Council,http://opendatacommunities.org/id/metropolitan-district-council/walsall,WC110-219,30/11/2019,Childrens,ACE CARS & MINIBUSES LTD,08/11/2019,690.00,52000-WITH DRIVER-HIRE OF VEHICLES,HOME TO SCHOOL TRANSPORT,Transport,Revenue
Walsall Council,http://opendatacommunities.org/id/metropolitan-district-council/walsall,WC110-220,30/11/2019,Childrens,ACE CARS & MINIBUSES LTD,08/11/2019,690.00,52000-WITH DRIVER-HIRE OF VEHICLES,HOME TO SCHOOL TRANSPORT,Transport,Revenue
Walsall Council,http://opendatacommunities.org/id/metropolitan-district-council/walsall,WC110-221,30/11/2019,Childrens,ACE CARS & MINIBUSES LTD,08/11/2019,690.00,52000-WITH DRIVER-HIRE OF VEHICLES,HOME TO SCHOOL TRANSPORT,Transport,Revenue
Walsall Council,http://opendatacommunities.org/id/metropolitan-district-council/walsall,WC110-222,30/11/2019,Childrens,ACE CARS & MINIBUSES LTD,08/11/2019,690.00,52000-WITH DRIVER-HIRE OF VEHICLES,HOME TO SCHOOL TRANSPORT,Transport,Revenue
Walsall Council,http://opendatacommunities.org/id/metropolitan-district-council/walsall,WC110-223,30/11/2019,Childrens,ACE CARS & MINIBUSES LTD,08/11/2019,710.00,52000-WITH DRIVER-HIRE OF VEHICLES,HOME TO SCHOOL TRANSPORT,Transport,Revenue
Walsall Council,http://opendatacommunities.org/id/metropolitan-district-council/walsall,WC110-224,30/11/2019,Childrens,ACE CARS & MINIBUSES LTD,08/11/2019,710.00,52000-WITH DRIVER-HIRE OF VEHICLES,HOME TO SCHOOL TRANSPORT,Transport,Revenue
Walsall Council,http://opendatacommunities.org/id/metropolitan-district-council/walsall,WC110-225,30/11/2019,Childrens,ACE CARS & MINIBUSES LTD,08/11/2019,772.40,52000-WITH DRIVER-HIRE OF VEHICLES,HOME TO SCHOOL TRANSPORT,Transport,Revenue
Walsall Council,http://opendatacommunities.org/id/metropolitan-district-council/walsall,WC110-226,30/11/2019,Childrens,ACE CARS & MINIBUSES LTD,08/11/2019,772.40,52000-WITH DRIVER-HIRE OF VEHICLES,HOME TO SCHOOL TRANSPORT,Transport,Revenue
Walsall Council,http://opendatacommunities.org/id/metropolitan-district-council/walsall,WC110-227,30/11/2019,Childrens,ACE CARS & MINIBUSES LTD,08/11/2019,772.40,52000-WITH DRIVER-HIRE OF VEHICLES,HOME TO SCHOOL TRANSPORT,Transport,Revenue
Walsall Council,http://opendatacommunities.org/id/metropolitan-district-council/walsall,WC110-228,30/11/2019,Childrens,ACE CARS & MINIBUSES LTD,08/11/2019,772.40,52000-WITH DRIVER-HIRE OF VEHICLES,HOME TO SCHOOL TRANSPORT,Transport,Revenue
Walsall Council,http://opendatacommunities.org/id/metropolitan-district-council/walsall,WC110-229,30/11/2019,Childrens,ACE CARS & MINIBUSES LTD,08/11/2019,800.00,52000-WITH DRIVER-HIRE OF VEHICLES,HOME TO SCHOOL TRANSPORT,Transport,Revenue
Walsall Council,http://opendatacommunities.org/id/metropolitan-district-council/walsall,WC110-230,30/11/2019,Childrens,ACE CARS & MINIBUSES LTD,08/11/2019,972.40,52000-WITH DRIVER-HIRE OF VEHICLES,HOME TO SCHOOL TRANSPORT,Transport,Revenue
Walsall Council,http://opendatacommunities.org/id/metropolitan-district-council/walsall,WC110-231,30/11/2019,Childrens,ACE CARS & MINIBUSES LTD,08/11/2019,972.40,52000-WITH DRIVER-HIRE OF VEHICLES,HOME TO SCHOOL TRANSPORT,Transport,Revenue
Walsall Council,http://opendatacommunities.org/id/metropolitan-district-council/walsall,WC110-232,30/11/2019,Childrens,ACE CARS & MINIBUSES LTD,08/11/2019,972.40,52000-WITH DRIVER-HIRE OF VEHICLES,HOME TO SCHOOL TRANSPORT,Transport,Revenue
Walsall Council,http://opendatacommunities.org/id/metropolitan-district-council/walsall,WC110-233,30/11/2019,Childrens,ACE CARS & MINIBUSES LTD,08/11/2019,972.40,52000-WITH DRIVER-HIRE OF VEHICLES,HOME TO SCHOOL TRANSPORT,Transport,Revenue
Walsall Council,http://opendatacommunities.org/id/metropolitan-district-council/walsall,WC110-234,30/11/2019,Childrens,ACE CARS & MINIBUSES LTD,08/11/2019,"1,000.00",52000-WITH DRIVER-HIRE OF VEHICLES,HOME TO SCHOOL TRANSPORT,Transport,Revenue
Walsall Council,http://opendatacommunities.org/id/metropolitan-district-council/walsall,WC110-235,30/11/2019,Childrens,ACE CARS & MINIBUSES LTD,08/11/2019,"1,000.00",52000-WITH DRIVER-HIRE OF VEHICLES,HOME TO SCHOOL TRANSPORT,Transport,Revenue
Walsall Council,http://opendatacommunities.org/id/metropolitan-district-council/walsall,WC110-236,30/11/2019,Childrens,ACE CARS & MINIBUSES LTD,08/11/2019,"1,000.00",52000-WITH DRIVER-HIRE OF VEHICLES,HOME TO SCHOOL TRANSPORT,Transport,Revenue
Walsall Council,http://opendatacommunities.org/id/metropolitan-district-council/walsall,WC110-237,30/11/2019,Childrens,ACE CARS & MINIBUSES LTD,08/11/2019,"1,250.00",52000-WITH DRIVER-HIRE OF VEHICLES,HOME TO SCHOOL TRANSPORT,Transport,Revenue
Walsall Council,http://opendatacommunities.org/id/metropolitan-district-council/walsall,WC110-238,30/11/2019,Childrens,ACE CARS & MINIBUSES LTD,08/11/2019,"1,250.00",52000-WITH DRIVER-HIRE OF VEHICLES,HOME TO SCHOOL TRANSPORT,Transport,Revenue
Walsall Council,http://opendatacommunities.org/id/metropolitan-district-council/walsall,WC110-239,30/11/2019,Childrens,ACE CARS & MINIBUSES LTD,08/11/2019,"1,250.00",52000-WITH DRIVER-HIRE OF VEHICLES,HOME TO SCHOOL TRANSPORT,Transport,Revenue
Walsall Council,http://opendatacommunities.org/id/metropolitan-district-council/walsall,WC110-240,30/11/2019,Childrens,ACE CARS & MINIBUSES LTD,08/11/2019,"1,300.00",52000-WITH DRIVER-HIRE OF VEHICLES,HOME TO SCHOOL TRANSPORT,Transport,Revenue
Walsall Council,http://opendatacommunities.org/id/metropolitan-district-council/walsall,WC110-241,30/11/2019,Childrens,ACE CARS & MINIBUSES LTD,08/11/2019,"1,400.00",52000-WITH DRIVER-HIRE OF VEHICLES,HOME TO SCHOOL TRANSPORT,Transport,Revenue
Walsall Council,http://opendatacommunities.org/id/metropolitan-district-council/walsall,WC110-242,30/11/2019,Childrens,ACE CARS & MINIBUSES LTD,08/11/2019,"1,500.00",52000-WITH DRIVER-HIRE OF VEHICLES,HOME TO SCHOOL TRANSPORT,Transport,Revenue
Walsall Council,http://opendatacommunities.org/id/metropolitan-district-council/walsall,WC110-243,30/11/2019,Childrens,ACE CARS & MINIBUSES LTD,08/11/2019,"1,540.00",52000-WITH DRIVER-HIRE OF VEHICLES,HOME TO SCHOOL TRANSPORT,Transport,Revenue
Walsall Council,http://opendatacommunities.org/id/metropolitan-district-council/walsall,WC110-244,30/11/2019,Childrens,ACE CARS & MINIBUSES LTD,08/11/2019,"1,560.00",52000-WITH DRIVER-HIRE OF VEHICLES,HOME TO SCHOOL TRANSPORT,Transport,Revenue
Walsall Council,http://opendatacommunities.org/id/metropolitan-district-council/walsall,WC110-245,30/11/2019,Childrens,ACE CARS & MINIBUSES LTD,08/11/2019,"1,560.00",52000-WITH DRIVER-HIRE OF VEHICLES,HOME TO SCHOOL TRANSPORT,Transport,Revenue
Walsall Council,http://opendatacommunities.org/id/metropolitan-district-council/walsall,WC110-246,30/11/2019,Childrens,ACE CARS & MINIBUSES LTD,08/11/2019,"1,580.00",52000-WITH DRIVER-HIRE OF VEHICLES,HOME TO SCHOOL TRANSPORT,Transport,Revenue
Walsall Council,http://opendatacommunities.org/id/metropolitan-district-council/walsall,WC110-247,30/11/2019,Adult Social Care,ACEPAY LTD (COTTAGE NUR HOME),08/11/2019,"1,774.96",73500-RESIDENTIAL,PHYSICAL SUPPORT,Third Party Payments,Revenue
Walsall Council,http://opendatacommunities.org/id/metropolitan-district-council/walsall,WC110-248,30/11/2019,Adult Social Care,ACEPAY LTD (COTTAGE NUR HOME),08/11/2019,"1,972.24",73501-RESIDENTIAL EMI,PHYSICAL SUPPORT,Third Party Payments,Revenue
Walsall Council,http://opendatacommunities.org/id/metropolitan-district-council/walsall,WC110-249,30/11/2019,Adult Social Care,ACEPAY LTD (COTTAGE NUR HOME),08/11/2019,"2,143.72",73502-NURSING,PHYSICAL SUPPORT,Third Party Payments,Revenue
Walsall Council,http://opendatacommunities.org/id/metropolitan-district-council/walsall,WC110-250,30/11/2019,Adult Social Care,ACEPAY LTD (COTTAGE NUR HOME),08/11/2019,"2,143.72",73502-NURSING,PHYSICAL SUPPORT,Third Party Payments,Revenue
Walsall Council,http://opendatacommunities.org/id/metropolitan-district-council/walsall,WC110-251,30/11/2019,Adult Social Care,ACEPAY LTD (COTTAGE NUR HOME),08/11/2019,"2,143.72",73502-NURSING,SUPPORT WITH MEMORY & COGNITION,Third Party Payments,Revenue
Walsall Council,http://opendatacommunities.org/id/metropolitan-district-council/walsall,WC110-252,30/11/2019,Adult Social Care,ACEPAY LTD (COTTAGE NUR HOME),08/11/2019,"2,143.72",73502-NURSING,PHYSICAL SUPPORT,Third Party Payments,Revenue
Walsall Council,http://opendatacommunities.org/id/metropolitan-district-council/walsall,WC110-253,30/11/2019,Adult Social Care,ACEPAY LTD (COTTAGE NUR HOME),08/11/2019,"2,143.72",73502-NURSING,SUPPORT WITH MEMORY & COGNITION,Third Party Payments,Revenue
Walsall Council,http://opendatacommunities.org/id/metropolitan-district-council/walsall,WC110-254,30/11/2019,Adult Social Care,ACEPAY LTD (COTTAGE NUR HOME),08/11/2019,"2,143.72",73502-NURSING,PHYSICAL SUPPORT,Third Party Payments,Revenue
Walsall Council,http://opendatacommunities.org/id/metropolitan-district-council/walsall,WC110-255,30/11/2019,Adult Social Care,ACEPAY LTD (COTTAGE NUR HOME),08/11/2019,"2,143.72",73502-NURSING,SOCIAL SUPPORT,Third Party Payments,Revenue
Walsall Council,http://opendatacommunities.org/id/metropolitan-district-council/walsall,WC110-256,30/11/2019,Adult Social Care,ACEPAY LTD (COTTAGE NUR HOME),08/11/2019,"2,143.72",73502-NURSING,PHYSICAL SUPPORT,Third Party Payments,Revenue
Walsall Council,http://opendatacommunities.org/id/metropolitan-district-council/walsall,WC110-257,30/11/2019,Adult Social Care,ACEPAY LTD (COTTAGE NUR HOME),08/11/2019,"2,143.72",73502-NURSING,PHYSICAL SUPPORT,Third Party Payments,Revenue
Walsall Council,http://opendatacommunities.org/id/metropolitan-district-council/walsall,WC110-258,30/11/2019,Adult Social Care,ACEPAY LTD (COTTAGE NUR HOME),08/11/2019,"2,143.72",73502-NURSING,PHYSICAL SUPPORT,Third Party Payments,Revenue
Walsall Council,http://opendatacommunities.org/id/metropolitan-district-council/walsall,WC110-259,30/11/2019,Adult Social Care,ACEPAY LTD (COTTAGE NUR HOME),08/11/2019,"2,143.72",73502-NURSING,PHYSICAL SUPPORT,Third Party Payments,Revenue
Walsall Council,http://opendatacommunities.org/id/metropolitan-district-council/walsall,WC110-260,30/11/2019,Adult Social Care,ACEPAY LTD (COTTAGE NUR HOME),08/11/2019,"2,143.72",73502-NURSING,SUPPORT WITH MEMORY & COGNITION,Third Party Payments,Revenue
Walsall Council,http://opendatacommunities.org/id/metropolitan-district-council/walsall,WC110-261,30/11/2019,Adult Social Care,ACEPAY LTD (COTTAGE NUR HOME),08/11/2019,"2,343.72",73502-NURSING,PHYSICAL SUPPORT,Third Party Payments,Revenue
Walsall Council,http://opendatacommunities.org/id/metropolitan-district-council/walsall,WC110-262,30/11/2019,Adult Social Care,ACORN REST HOME,08/11/2019,"1,774.96",73500-RESIDENTIAL,PHYSICAL SUPPORT,Third Party Payments,Revenue
Walsall Council,http://opendatacommunities.org/id/metropolitan-district-council/walsall,WC110-263,30/11/2019,Centrally Held,ACORNS CHILDRENS HOSPICE TRUST,26/11/2019,"100,000.00",66500-GRANTS TO OTHER ORGS,CORPORATE EXPENSES,Third Party Payments,Revenue
Walsall Council,http://opendatacommunities.org/id/metropolitan-district-council/walsall,WC110-264,30/11/2019,Economy & Environment,ACTION DIGITAL MEDIA LTD T/A ACTION GRAPHICS,25/11/2019,209.89,"62521-INTERPRETATION,TRANSLATION & HUMAN AIDS TO TRANSCRIPTION",NAG - TEMPORARY EXHIBITIONS,Supplies & Services,Revenue
Walsall Council,http://opendatacommunities.org/id/metropolitan-district-council/walsall,WC110-265,30/11/2019,Economy & Environment,ACTION DIGITAL MEDIA LTD T/A ACTION GRAPHICS,01/11/2019,280.08,"62521-INTERPRETATION,TRANSLATION & HUMAN AIDS TO TRANSCRIPTION",NAG - TEMPORARY EXHIBITIONS,Supplies & Services,Revenue
Walsall Council,http://opendatacommunities.org/id/metropolitan-district-council/walsall,WC110-266,30/11/2019,Childrens,ACTIVE CARE SOLUTIONS LTD,01/11/2019,"2,662.80",74037-INDEPENDENT FOSTER CARE-OTH AGENCY PROVISION,EXTERNAL FOSTER CARE PROVISION,Third Party Payments,Revenue
Walsall Council,http://opendatacommunities.org/id/metropolitan-district-council/walsall,WC110-267,30/11/2019,Childrens,ACTIVE CARE SOLUTIONS LTD,01/11/2019,"3,024.00",74037-INDEPENDENT FOSTER CARE-OTH AGENCY PROVISION,EXTERNAL FOSTER CARE PROVISION,Third Party Payments,Revenue
Walsall Council,http://opendatacommunities.org/id/metropolitan-district-council/walsall,WC110-268,30/11/2019,Childrens,ACTIVE CARE SOLUTIONS LTD,01/11/2019,"3,024.00",74037-INDEPENDENT FOSTER CARE-OTH AGENCY PROVISION,EXTERNAL FOSTER CARE PROVISION,Third Party Payments,Revenue
Walsall Council,http://opendatacommunities.org/id/metropolitan-district-council/walsall,WC110-269,30/11/2019,Childrens,ACTIVE CARE SOLUTIONS LTD,01/11/2019,"3,220.00",74037-INDEPENDENT FOSTER CARE-OTH AGENCY PROVISION,EXTERNAL FOSTER CARE PROVISION,Third Party Payments,Revenue
Walsall Council,http://opendatacommunities.org/id/metropolitan-district-council/walsall,WC110-270,30/11/2019,Adult Social Care,REDACTED,01/11/2019,442.52,73506-DIRECT PAYMENT,LEARNING DISABILITY SUPPORT,Third Party Payments,Revenue
Walsall Council,http://opendatacommunities.org/id/metropolitan-district-council/walsall,WC110-271,30/11/2019,Adult Social Care,REDACTED,01/11/2019,"1,033.16",73506-DIRECT PAYMENT,PHYSICAL SUPPORT,Third Party Payments,Revenue
Walsall Council,http://opendatacommunities.org/id/metropolitan-district-council/walsall,WC110-272,30/11/2019,Childrens,ADMIRAL SELF STORAGE LTD,15/11/2019,228.78,63000-PROFESSIONAL FEES AND SERVICES,CHILDREN'S COMMISSIONING,Supplies & Services,Revenue
Walsall Council,http://opendatacommunities.org/id/metropolitan-district-council/walsall,WC110-273,30/11/2019,Childrens,REDACTED,14/11/2019,333.12,74510-RESIDENTS ORDERS,ADOPTION ALLOWANCES,Third Party Payments,Revenue
Walsall Council,http://opendatacommunities.org/id/metropolitan-district-council/walsall,WC110-274,30/11/2019,Childrens,REDACTED,14/11/2019,361.12,74510-RESIDENTS ORDERS,ADOPTION ALLOWANCES,Third Party Payments,Revenue
Walsall Council,http://opendatacommunities.org/id/metropolitan-district-council/walsall,WC110-275,30/11/2019,Adult Social Care,REDACTED,01/11/2019,"2,083.20",73506-DIRECT PAYMENT,LEARNING DISABILITY SUPPORT,Third Party Payments,Revenue
Walsall Council,http://opendatacommunities.org/id/metropolitan-district-council/walsall,WC110-276,30/11/2019,Adult Social Care,ADVANCE HEALTH CARE (UK) LTD,11/11/2019,259.55,73507-DOMICILIARY CARE,PHYSICAL SUPPORT,Third Party Payments,Revenue
Walsall Council,http://opendatacommunities.org/id/metropolitan-district-council/walsall,WC110-277,30/11/2019,Adult Social Care,ADVANCE HEALTH CARE (UK) LTD,11/11/2019,272.27,73025-PROFESSIONAL SERVICES-PRIV CONTRACTOR & OTHER AGENCIES,INTERMEDIATE CARE SERVICE,Third Party Payments,Revenue
Walsall Council,http://opendatacommunities.org/id/metropolitan-district-council/walsall,WC110-278,30/11/2019,Adult Social Care,ADVANCE HEALTH CARE (UK) LTD,18/11/2019,336.76,73025-PROFESSIONAL SERVICES-PRIV CONTRACTOR & OTHER AGENCIES,INTERMEDIATE CARE SERVICE,Third Party Payments,Revenue
Walsall Council,http://opendatacommunities.org/id/metropolitan-district-council/walsall,WC110-279,30/11/2019,Adult Social Care,ADVANCE HEALTH CARE (UK) LTD,18/11/2019,351.09,73025-PROFESSIONAL SERVICES-PRIV CONTRACTOR & OTHER AGENCIES,INTERMEDIATE CARE SERVICE,Third Party Payments,Revenue
Walsall Council,http://opendatacommunities.org/id/metropolitan-district-council/walsall,WC110-280,30/11/2019,Adult Social Care,ADVANCE HEALTH CARE (UK) LTD,11/11/2019,375.60,73507-DOMICILIARY CARE,LEARNING DISABILITY SUPPORT,Third Party Payments,Revenue
Walsall Council,http://opendatacommunities.org/id/metropolitan-district-council/walsall,WC110-281,30/11/2019,Adult Social Care,ADVANCE HEALTH CARE (UK) LTD,22/11/2019,401.24,73025-PROFESSIONAL SERVICES-PRIV CONTRACTOR & OTHER AGENCIES,RAPID RESPONSE,Third Party Payments,Revenue
Walsall Council,http://opendatacommunities.org/id/metropolitan-district-council/walsall,WC110-282,30/11/2019,Adult Social Care,ADVANCE HEALTH CARE (UK) LTD,11/11/2019,432.37,73507-DOMICILIARY CARE,PHYSICAL SUPPORT,Third Party Payments,Revenue
Walsall Council,http://opendatacommunities.org/id/metropolitan-district-council/walsall,WC110-283,30/11/2019,Adult Social Care,ADVANCE HEALTH CARE (UK) LTD,11/11/2019,451.40,73025-PROFESSIONAL SERVICES-PRIV CONTRACTOR & OTHER AGENCIES,INTERMEDIATE CARE SERVICE,Third Party Payments,Revenue
Walsall Council,http://opendatacommunities.org/id/metropolitan-district-council/walsall,WC110-284,30/11/2019,Adult Social Care,ADVANCE HEALTH CARE (UK) LTD,11/11/2019,451.40,73025-PROFESSIONAL SERVICES-PRIV CONTRACTOR & OTHER AGENCIES,INTERMEDIATE CARE SERVICE,Third Party Payments,Revenue
Walsall Council,http://opendatacommunities.org/id/metropolitan-district-council/walsall,WC110-285,30/11/2019,Adult Social Care,ADVANCE HEALTH CARE (UK) LTD,11/11/2019,451.40,73025-PROFESSIONAL SERVICES-PRIV CONTRACTOR & OTHER AGENCIES,INTERMEDIATE CARE SERVICE,Third Party Payments,Revenue
Walsall Council,http://opendatacommunities.org/id/metropolitan-district-council/walsall,WC110-286,30/11/2019,Adult Social Care,ADVANCE HEALTH CARE (UK) LTD,11/11/2019,451.40,73025-PROFESSIONAL SERVICES-PRIV CONTRACTOR & OTHER AGENCIES,INTERMEDIATE CARE SERVICE,Third Party Payments,Revenue
Walsall Council,http://opendatacommunities.org/id/metropolitan-district-council/walsall,WC110-287,30/11/2019,Adult Social Care,ADVANCE HEALTH CARE (UK) LTD,11/11/2019,451.40,73025-PROFESSIONAL SERVICES-PRIV CONTRACTOR & OTHER AGENCIES,INTERMEDIATE CARE SERVICE,Third Party Payments,Revenue
Walsall Council,http://opendatacommunities.org/id/metropolitan-district-council/walsall,WC110-288,30/11/2019,Adult Social Care,ADVANCE HEALTH CARE (UK) LTD,11/11/2019,451.40,73025-PROFESSIONAL SERVICES-PRIV CONTRACTOR & OTHER AGENCIES,INTERMEDIATE CARE SERVICE,Third Party Payments,Revenue
Walsall Council,http://opendatacommunities.org/id/metropolitan-district-council/walsall,WC110-289,30/11/2019,Adult Social Care,ADVANCE HEALTH CARE (UK) LTD,11/11/2019,451.40,73025-PROFESSIONAL SERVICES-PRIV CONTRACTOR & OTHER AGENCIES,INTERMEDIATE CARE SERVICE,Third Party Payments,Revenue
Walsall Council,http://opendatacommunities.org/id/metropolitan-district-council/walsall,WC110-290,30/11/2019,Adult Social Care,ADVANCE HEALTH CARE (UK) LTD,11/11/2019,451.40,73025-PROFESSIONAL SERVICES-PRIV CONTRACTOR & OTHER AGENCIES,INTERMEDIATE CARE SERVICE,Third Party Payments,Revenue
Walsall Council,http://opendatacommunities.org/id/metropolitan-district-council/walsall,WC110-291,30/11/2019,Adult Social Care,ADVANCE HEALTH CARE (UK) LTD,18/11/2019,451.40,73025-PROFESSIONAL SERVICES-PRIV CONTRACTOR & OTHER AGENCIES,INTERMEDIATE CARE SERVICE,Third Party Payments,Revenue
Walsall Council,http://opendatacommunities.org/id/metropolitan-district-council/walsall,WC110-292,30/11/2019,Adult Social Care,ADVANCE HEALTH CARE (UK) LTD,19/11/2019,451.40,73025-PROFESSIONAL SERVICES-PRIV CONTRACTOR & OTHER AGENCIES,INTERMEDIATE CARE SERVICE,Third Party Payments,Revenue
Walsall Council,http://opendatacommunities.org/id/metropolitan-district-council/walsall,WC110-293,30/11/2019,Adult Social Care,ADVANCE HEALTH CARE (UK) LTD,19/11/2019,451.40,73025-PROFESSIONAL SERVICES-PRIV CONTRACTOR & OTHER AGENCIES,INTERMEDIATE CARE SERVICE,Third Party Payments,Revenue
Walsall Council,http://opendatacommunities.org/id/metropolitan-district-council/walsall,WC110-294,30/11/2019,Adult Social Care,ADVANCE HEALTH CARE (UK) LTD,19/11/2019,451.40,73025-PROFESSIONAL SERVICES-PRIV CONTRACTOR & OTHER AGENCIES,INTERMEDIATE CARE SERVICE,Third Party Payments,Revenue
Walsall Council,http://opendatacommunities.org/id/metropolitan-district-council/walsall,WC110-295,30/11/2019,Adult Social Care,ADVANCE HEALTH CARE (UK) LTD,11/11/2019,548.65,73507-DOMICILIARY CARE,PHYSICAL SUPPORT,Third Party Payments,Revenue
Walsall Council,http://opendatacommunities.org/id/metropolitan-district-council/walsall,WC110-296,30/11/2019,Adult Social Care,ADVANCE HEALTH CARE (UK) LTD,11/11/2019,555.96,73507-DOMICILIARY CARE,PHYSICAL SUPPORT,Third Party Payments,Revenue
Walsall Council,http://opendatacommunities.org/id/metropolitan-district-council/walsall,WC110-297,30/11/2019,Adult Social Care,ADVANCE HEALTH CARE (UK) LTD,19/11/2019,566.04,73025-PROFESSIONAL SERVICES-PRIV CONTRACTOR & OTHER AGENCIES,INTERMEDIATE CARE SERVICE,Third Party Payments,Revenue
Walsall Council,http://opendatacommunities.org/id/metropolitan-district-council/walsall,WC110-298,30/11/2019,Adult Social Care,ADVANCE HEALTH CARE (UK) LTD,11/11/2019,574.55,73507-DOMICILIARY CARE,PHYSICAL SUPPORT,Third Party Payments,Revenue
Walsall Council,http://opendatacommunities.org/id/metropolitan-district-council/walsall,WC110-299,30/11/2019,Adult Social Care,ADVANCE HEALTH CARE (UK) LTD,11/11/2019,580.02,73507-DOMICILIARY CARE,PHYSICAL SUPPORT,Third Party Payments,Revenue
Walsall Council,http://opendatacommunities.org/id/metropolitan-district-council/walsall,WC110-300,30/11/2019,Adult Social Care,ADVANCE HEALTH CARE (UK) LTD,11/11/2019,689.11,73025-PROFESSIONAL SERVICES-PRIV CONTRACTOR & OTHER AGENCIES,INTERMEDIATE CARE SERVICE,Third Party Payments,Revenue
Walsall Council,http://opendatacommunities.org/id/metropolitan-district-council/walsall,WC110-301,30/11/2019,Adult Social Care,ADVANCE HEALTH CARE (UK) LTD,11/11/2019,689.11,73025-PROFESSIONAL SERVICES-PRIV CONTRACTOR & OTHER AGENCIES,INTERMEDIATE CARE SERVICE,Third Party Payments,Revenue
Walsall Council,http://opendatacommunities.org/id/metropolitan-district-council/walsall,WC110-302,30/11/2019,Adult Social Care,ADVANCE HEALTH CARE (UK) LTD,19/11/2019,689.11,73025-PROFESSIONAL SERVICES-PRIV CONTRACTOR & OTHER AGENCIES,INTERMEDIATE CARE SERVICE,Third Party Payments,Revenue
Walsall Council,http://opendatacommunities.org/id/metropolitan-district-council/walsall,WC110-303,30/11/2019,Adult Social Care,ADVANCE HEALTH CARE (UK) LTD,11/11/2019,826.29,73507-DOMICILIARY CARE,PHYSICAL SUPPORT,Third Party Payments,Revenue
Walsall Council,http://opendatacommunities.org/id/metropolitan-district-council/walsall,WC110-304,30/11/2019,Adult Social Care,ADVANCE HEALTH CARE (UK) LTD,11/11/2019,847.64,73507-DOMICILIARY CARE,SUPPORT WITH MEMORY & COGNITION,Third Party Payments,Revenue
Walsall Council,http://opendatacommunities.org/id/metropolitan-district-council/walsall,WC110-305,30/11/2019,Adult Social Care,ADVANCE HEALTH CARE (UK) LTD,11/11/2019,861.37,73507-DOMICILIARY CARE,PHYSICAL SUPPORT,Third Party Payments,Revenue
Walsall Council,http://opendatacommunities.org/id/metropolitan-district-council/walsall,WC110-306,30/11/2019,Adult Social Care,ADVANCE HEALTH CARE (UK) LTD,11/11/2019,881.10,73507-DOMICILIARY CARE,PHYSICAL SUPPORT,Third Party Payments,Revenue
Walsall Council,http://opendatacommunities.org/id/metropolitan-district-council/walsall,WC110-307,30/11/2019,Adult Social Care,ADVANCE HEALTH CARE (UK) LTD,11/11/2019,883.57,73507-DOMICILIARY CARE,PHYSICAL SUPPORT,Third Party Payments,Revenue
Walsall Council,http://opendatacommunities.org/id/metropolitan-district-council/walsall,WC110-308,30/11/2019,Adult Social Care,ADVANCE HEALTH CARE (UK) LTD,11/11/2019,889.07,73507-DOMICILIARY CARE,PHYSICAL SUPPORT,Third Party Payments,Revenue
Walsall Council,http://opendatacommunities.org/id/metropolitan-district-council/walsall,WC110-309,30/11/2019,Adult Social Care,ADVANCE HEALTH CARE (UK) LTD,11/11/2019,920.02,73507-DOMICILIARY CARE,PHYSICAL SUPPORT,Third Party Payments,Revenue
Walsall Council,http://opendatacommunities.org/id/metropolitan-district-council/walsall,WC110-310,30/11/2019,Adult Social Care,ADVANCE HEALTH CARE (UK) LTD,11/11/2019,936.85,73507-DOMICILIARY CARE,PHYSICAL SUPPORT,Third Party Payments,Revenue
Walsall Council,http://opendatacommunities.org/id/metropolitan-district-council/walsall,WC110-311,30/11/2019,Adult Social Care,ADVANCE HEALTH CARE (UK) LTD,11/11/2019,"1,046.53",73507-DOMICILIARY CARE,PHYSICAL SUPPORT,Third Party Payments,Revenue
Walsall Council,http://opendatacommunities.org/id/metropolitan-district-council/walsall,WC110-312,30/11/2019,Adult Social Care,ADVANCE HEALTH CARE (UK) LTD,11/11/2019,"1,156.85",73507-DOMICILIARY CARE,PHYSICAL SUPPORT,Third Party Payments,Revenue
Walsall Council,http://opendatacommunities.org/id/metropolitan-district-council/walsall,WC110-313,30/11/2019,Adult Social Care,ADVANCE HEALTH CARE (UK) LTD,11/11/2019,"1,180.95",73507-DOMICILIARY CARE,PHYSICAL SUPPORT,Third Party Payments,Revenue
Walsall Council,http://opendatacommunities.org/id/metropolitan-district-council/walsall,WC110-314,30/11/2019,Adult Social Care,ADVANCE HEALTH CARE (UK) LTD,11/11/2019,"1,256.40",73507-DOMICILIARY CARE,PHYSICAL SUPPORT,Third Party Payments,Revenue
Walsall Council,http://opendatacommunities.org/id/metropolitan-district-council/walsall,WC110-315,30/11/2019,Adult Social Care,ADVANCE HEALTH CARE (UK) LTD,11/11/2019,"1,329.48",73507-DOMICILIARY CARE,SOCIAL SUPPORT,Third Party Payments,Revenue
Walsall Council,http://opendatacommunities.org/id/metropolitan-district-council/walsall,WC110-316,30/11/2019,Adult Social Care,ADVANCE HEALTH CARE (UK) LTD,11/11/2019,"1,348.13",73507-DOMICILIARY CARE,PHYSICAL SUPPORT,Third Party Payments,Revenue
Walsall Council,http://opendatacommunities.org/id/metropolitan-district-council/walsall,WC110-317,30/11/2019,Adult Social Care,ADVANCE HEALTH CARE (UK) LTD,11/11/2019,"1,377.24",73507-DOMICILIARY CARE,PHYSICAL SUPPORT,Third Party Payments,Revenue
Walsall Council,http://opendatacommunities.org/id/metropolitan-district-council/walsall,WC110-318,30/11/2019,Adult Social Care,ADVANCE HEALTH CARE (UK) LTD,11/11/2019,"1,602.30",73507-DOMICILIARY CARE,PHYSICAL SUPPORT,Third Party Payments,Revenue
Walsall Council,http://opendatacommunities.org/id/metropolitan-district-council/walsall,WC110-319,30/11/2019,Adult Social Care,ADVANCE HEALTH CARE (UK) LTD,11/11/2019,"1,659.64",73507-DOMICILIARY CARE,PHYSICAL SUPPORT,Third Party Payments,Revenue
Walsall Council,http://opendatacommunities.org/id/metropolitan-district-council/walsall,WC110-320,30/11/2019,Adult Social Care,ADVANCE HEALTH CARE (UK) LTD,11/11/2019,"1,661.48",73507-DOMICILIARY CARE,PHYSICAL SUPPORT,Third Party Payments,Revenue
Walsall Council,http://opendatacommunities.org/id/metropolitan-district-council/walsall,WC110-321,30/11/2019,Adult Social Care,ADVANCE HEALTH CARE (UK) LTD,11/11/2019,"1,663.39",73507-DOMICILIARY CARE,PHYSICAL SUPPORT,Third Party Payments,Revenue
Walsall Council,http://opendatacommunities.org/id/metropolitan-district-council/walsall,WC110-322,30/11/2019,Adult Social Care,ADVANCE HEALTH CARE (UK) LTD,11/11/2019,"1,709.05",73507-DOMICILIARY CARE,PHYSICAL SUPPORT,Third Party Payments,Revenue
Walsall Council,http://opendatacommunities.org/id/metropolitan-district-council/walsall,WC110-323,30/11/2019,Adult Social Care,ADVANCE HEALTH CARE (UK) LTD,11/11/2019,"1,750.62",73507-DOMICILIARY CARE,PHYSICAL SUPPORT,Third Party Payments,Revenue
Walsall Council,http://opendatacommunities.org/id/metropolitan-district-council/walsall,WC110-324,30/11/2019,Adult Social Care,ADVANCE HEALTH CARE (UK) LTD,11/11/2019,"1,780.93",73507-DOMICILIARY CARE,PHYSICAL SUPPORT,Third Party Payments,Revenue
Walsall Council,http://opendatacommunities.org/id/metropolitan-district-council/walsall,WC110-325,30/11/2019,Adult Social Care,ADVANCE HEALTH CARE (UK) LTD,11/11/2019,"1,785.79",73507-DOMICILIARY CARE,PHYSICAL SUPPORT,Third Party Payments,Revenue
Walsall Council,http://opendatacommunities.org/id/metropolitan-district-council/walsall,WC110-326,30/11/2019,Adult Social Care,ADVANCE HEALTH CARE (UK) LTD,11/11/2019,"1,813.73",73507-DOMICILIARY CARE,PHYSICAL SUPPORT,Third Party Payments,Revenue
Walsall Council,http://opendatacommunities.org/id/metropolitan-district-council/walsall,WC110-327,30/11/2019,Adult Social Care,ADVANCE HEALTH CARE (UK) LTD,11/11/2019,"1,813.73",73507-DOMICILIARY CARE,PHYSICAL SUPPORT,Third Party Payments,Revenue
Walsall Council,http://opendatacommunities.org/id/metropolitan-district-council/walsall,WC110-328,30/11/2019,Adult Social Care,ADVANCE HEALTH CARE (UK) LTD,11/11/2019,"1,820.90",73507-DOMICILIARY CARE,PHYSICAL SUPPORT,Third Party Payments,Revenue
Walsall Council,http://opendatacommunities.org/id/metropolitan-district-council/walsall,WC110-329,30/11/2019,Adult Social Care,ADVANCE HEALTH CARE (UK) LTD,11/11/2019,"1,841.68",73507-DOMICILIARY CARE,PHYSICAL SUPPORT,Third Party Payments,Revenue
Walsall Council,http://opendatacommunities.org/id/metropolitan-district-council/walsall,WC110-330,30/11/2019,Adult Social Care,ADVANCE HEALTH CARE (UK) LTD,11/11/2019,"1,856.55",73507-DOMICILIARY CARE,PHYSICAL SUPPORT,Third Party Payments,Revenue
Walsall Council,http://opendatacommunities.org/id/metropolitan-district-council/walsall,WC110-331,30/11/2019,Adult Social Care,ADVANCE HEALTH CARE (UK) LTD,11/11/2019,"1,858.61",73507-DOMICILIARY CARE,PHYSICAL SUPPORT,Third Party Payments,Revenue
Walsall Council,http://opendatacommunities.org/id/metropolitan-district-council/walsall,WC110-332,30/11/2019,Adult Social Care,ADVANCE HEALTH CARE (UK) LTD,11/11/2019,"1,858.84",73507-DOMICILIARY CARE,PHYSICAL SUPPORT,Third Party Payments,Revenue
Walsall Council,http://opendatacommunities.org/id/metropolitan-district-council/walsall,WC110-333,30/11/2019,Adult Social Care,ADVANCE HEALTH CARE (UK) LTD,11/11/2019,"1,861.03",73507-DOMICILIARY CARE,SOCIAL SUPPORT,Third Party Payments,Revenue
Walsall Council,http://opendatacommunities.org/id/metropolitan-district-council/walsall,WC110-334,30/11/2019,Adult Social Care,ADVANCE HEALTH CARE (UK) LTD,11/11/2019,"1,861.65",73507-DOMICILIARY CARE,PHYSICAL SUPPORT,Third Party Payments,Revenue
Walsall Council,http://opendatacommunities.org/id/metropolitan-district-council/walsall,WC110-335,30/11/2019,Adult Social Care,ADVANCE HEALTH CARE (UK) LTD,11/11/2019,"1,862.43",73507-DOMICILIARY CARE,PHYSICAL SUPPORT,Third Party Payments,Revenue
Walsall Council,http://opendatacommunities.org/id/metropolitan-district-council/walsall,WC110-336,30/11/2019,Adult Social Care,ADVANCE HEALTH CARE (UK) LTD,11/11/2019,"1,864.09",73507-DOMICILIARY CARE,PHYSICAL SUPPORT,Third Party Payments,Revenue
Walsall Council,http://opendatacommunities.org/id/metropolitan-district-council/walsall,WC110-337,30/11/2019,Adult Social Care,ADVANCE HEALTH CARE (UK) LTD,11/11/2019,"1,866.38",73507-DOMICILIARY CARE,PHYSICAL SUPPORT,Third Party Payments,Revenue
Walsall Council,http://opendatacommunities.org/id/metropolitan-district-council/walsall,WC110-338,30/11/2019,Adult Social Care,ADVANCE HEALTH CARE (UK) LTD,11/11/2019,"1,867.57",73507-DOMICILIARY CARE,PHYSICAL SUPPORT,Third Party Payments,Revenue
Walsall Council,http://opendatacommunities.org/id/metropolitan-district-council/walsall,WC110-339,30/11/2019,Adult Social Care,ADVANCE HEALTH CARE (UK) LTD,11/11/2019,"1,896.99",73507-DOMICILIARY CARE,PHYSICAL SUPPORT,Third Party Payments,Revenue
Walsall Council,http://opendatacommunities.org/id/metropolitan-district-council/walsall,WC110-340,30/11/2019,Adult Social Care,ADVANCE HEALTH CARE (UK) LTD,11/11/2019,"1,899.47",73507-DOMICILIARY CARE,PHYSICAL SUPPORT,Third Party Payments,Revenue
Walsall Council,http://opendatacommunities.org/id/metropolitan-district-council/walsall,WC110-341,30/11/2019,Adult Social Care,ADVANCE HEALTH CARE (UK) LTD,11/11/2019,"1,924.74",73507-DOMICILIARY CARE,PHYSICAL SUPPORT,Third Party Payments,Revenue
Walsall Council,http://opendatacommunities.org/id/metropolitan-district-council/walsall,WC110-342,30/11/2019,Adult Social Care,ADVANCE HEALTH CARE (UK) LTD,11/11/2019,"1,925.06",73507-DOMICILIARY CARE,PHYSICAL SUPPORT,Third Party Payments,Revenue
Walsall Council,http://opendatacommunities.org/id/metropolitan-district-council/walsall,WC110-343,30/11/2019,Adult Social Care,ADVANCE HEALTH CARE (UK) LTD,11/11/2019,"1,937.35",73507-DOMICILIARY CARE,PHYSICAL SUPPORT,Third Party Payments,Revenue
Walsall Council,http://opendatacommunities.org/id/metropolitan-district-council/walsall,WC110-344,30/11/2019,Adult Social Care,ADVANCE HEALTH CARE (UK) LTD,11/11/2019,"2,086.50",73507-DOMICILIARY CARE,PHYSICAL SUPPORT,Third Party Payments,Revenue
Walsall Council,http://opendatacommunities.org/id/metropolitan-district-council/walsall,WC110-345,30/11/2019,Adult Social Care,ADVANCE HEALTH CARE (UK) LTD,11/11/2019,"2,164.53",73507-DOMICILIARY CARE,PHYSICAL SUPPORT,Third Party Payments,Revenue
Walsall Council,http://opendatacommunities.org/id/metropolitan-district-council/walsall,WC110-346,30/11/2019,Adult Social Care,ADVANCE HEALTH CARE (UK) LTD,11/11/2019,"2,178.15",73507-DOMICILIARY CARE,PHYSICAL SUPPORT,Third Party Payments,Revenue
Walsall Council,http://opendatacommunities.org/id/metropolitan-district-council/walsall,WC110-347,30/11/2019,Adult Social Care,ADVANCE HEALTH CARE (UK) LTD,11/11/2019,"2,427.11",73507-DOMICILIARY CARE,PHYSICAL SUPPORT,Third Party Payments,Revenue
Walsall Council,http://opendatacommunities.org/id/metropolitan-district-council/walsall,WC110-348,30/11/2019,Adult Social Care,ADVANCE HEALTH CARE (UK) LTD,11/11/2019,"2,469.66",73507-DOMICILIARY CARE,PHYSICAL SUPPORT,Third Party Payments,Revenue
Walsall Council,http://opendatacommunities.org/id/metropolitan-district-council/walsall,WC110-349,30/11/2019,Adult Social Care,ADVANCE HEALTH CARE (UK) LTD,11/11/2019,"3,374.46",73507-DOMICILIARY CARE,SOCIAL SUPPORT,Third Party Payments,Revenue
Walsall Council,http://opendatacommunities.org/id/metropolitan-district-council/walsall,WC110-350,30/11/2019,Adult Social Care,ADVANCE HEALTH CARE (UK) LTD,11/11/2019,"4,796.97",73507-DOMICILIARY CARE,PHYSICAL SUPPORT,Third Party Payments,Revenue
Walsall Council,http://opendatacommunities.org/id/metropolitan-district-council/walsall,WC110-351,30/11/2019,Adult Social Care,ADVOCACY MATTERS LIMITED,13/11/2019,"14,482.82",70000-SOCIAL SERVICES-FEES TO VOLUNTARY BODIES,OLDER PEOPLE SLA,Third Party Payments,Revenue
Walsall Council,http://opendatacommunities.org/id/metropolitan-district-council/walsall,WC110-352,30/11/2019,Economy & Environment,AECOM LIMITED,11/11/2019,"2,401.65",73025-PROFESSIONAL SERVICES-PRIV CONTRACTOR & OTHER AGENCIES,DEVELOPERS DEPOSITS HOLDING ACCOUNT,Third Party Payments,Revenue
Walsall Council,http://opendatacommunities.org/id/metropolitan-district-council/walsall,WC110-353,30/11/2019,Economy & Environment,AGROVISTA UK LTD,18/11/2019,890.10,60500-GENERAL MATERIALS,GROUNDS,Supplies & Services,Revenue
Walsall Council,http://opendatacommunities.org/id/metropolitan-district-council/walsall,WC110-354,30/11/2019,Adult Social Care,REDACTED,01/11/2019,"2,325.60",73506-DIRECT PAYMENT,LEARNING DISABILITY SUPPORT,Third Party Payments,Revenue
Walsall Council,http://opendatacommunities.org/id/metropolitan-district-council/walsall,WC110-355,30/11/2019,Resources and Transformation,REDACTED,13/11/2019,250.00,62523-EVENTS AND VISUAL ARTS,INTEGRATED COMMUNITIES PROGRAMME,Supplies & Services,Revenue
Walsall Council,http://opendatacommunities.org/id/metropolitan-district-council/walsall,WC110-356,30/11/2019,Childrens,ALBRIGHTON CARE LTD,01/11/2019,"9,980.00",74036-EXTERNAL RESIDENTIAL CARE-OTH AGENCY PROVISION,INDEPENDENT RESIDENTIAL HOMES,Third Party Payments,Revenue
Walsall Council,http://opendatacommunities.org/id/metropolitan-district-council/walsall,WC110-357,30/11/2019,Economy & Environment,ALDERBROOK HEALTHCARE LTD,21/11/2019,"4,944.20",63000-PROFESSIONAL FEES AND SERVICES,CORONERS SERVICE,Supplies & Services,Revenue
Walsall Council,http://opendatacommunities.org/id/metropolitan-district-council/walsall,WC110-358,30/11/2019,Adult Social Care,ALDERGROVE MANOR LTD,08/11/2019,"1,972.24",73501-RESIDENTIAL EMI,PHYSICAL SUPPORT,Third Party Payments,Revenue
Walsall Council,http://opendatacommunities.org/id/metropolitan-district-council/walsall,WC110-359,30/11/2019,Adult Social Care,ALDERGROVE MANOR LTD,08/11/2019,"1,972.24",73501-RESIDENTIAL EMI,MENTAL HEALTH SUPPORT,Third Party Payments,Revenue
Walsall Council,http://opendatacommunities.org/id/metropolitan-district-council/walsall,WC110-360,30/11/2019,Adult Social Care,ALDERGROVE MANOR LTD,08/11/2019,"2,143.72",73502-NURSING,PHYSICAL SUPPORT,Third Party Payments,Revenue
Walsall Council,http://opendatacommunities.org/id/metropolitan-district-council/walsall,WC110-361,30/11/2019,Childrens,ALDRIDGE & BARONS LIMITED,08/11/2019,-446.50,52000-WITH DRIVER-HIRE OF VEHICLES,HOME TO SCHOOL TRANSPORT,Transport,Revenue
Walsall Council,http://opendatacommunities.org/id/metropolitan-district-council/walsall,WC110-362,30/11/2019,Childrens,ALDRIDGE & BARONS LIMITED,08/11/2019,297.20,52000-WITH DRIVER-HIRE OF VEHICLES,HOME TO SCHOOL TRANSPORT,Transport,Revenue
Walsall Council,http://opendatacommunities.org/id/metropolitan-district-council/walsall,WC110-363,30/11/2019,Childrens,ALDRIDGE & BARONS LIMITED,08/11/2019,297.20,52000-WITH DRIVER-HIRE OF VEHICLES,HOME TO SCHOOL TRANSPORT,Transport,Revenue
Walsall Council,http://opendatacommunities.org/id/metropolitan-district-council/walsall,WC110-364,30/11/2019,Childrens,ALDRIDGE & BARONS LIMITED,08/11/2019,297.20,52000-WITH DRIVER-HIRE OF VEHICLES,HOME TO SCHOOL TRANSPORT,Transport,Revenue
Walsall Council,http://opendatacommunities.org/id/metropolitan-district-council/walsall,WC110-365,30/11/2019,Childrens,ALDRIDGE & BARONS LIMITED,08/11/2019,297.20,52000-WITH DRIVER-HIRE OF VEHICLES,HOME TO SCHOOL TRANSPORT,Transport,Revenue
Walsall Council,http://opendatacommunities.org/id/metropolitan-district-council/walsall,WC110-366,30/11/2019,Childrens,ALDRIDGE & BARONS LIMITED,08/11/2019,297.20,52000-WITH DRIVER-HIRE OF VEHICLES,HOME TO SCHOOL TRANSPORT,Transport,Revenue
Walsall Council,http://opendatacommunities.org/id/metropolitan-district-council/walsall,WC110-367,30/11/2019,Childrens,ALDRIDGE & BARONS LIMITED,08/11/2019,297.20,52000-WITH DRIVER-HIRE OF VEHICLES,HOME TO SCHOOL TRANSPORT,Transport,Revenue
Walsall Council,http://opendatacommunities.org/id/metropolitan-district-council/walsall,WC110-368,30/11/2019,Childrens,ALDRIDGE & BARONS LIMITED,08/11/2019,297.20,52000-WITH DRIVER-HIRE OF VEHICLES,HOME TO SCHOOL TRANSPORT,Transport,Revenue
Walsall Council,http://opendatacommunities.org/id/metropolitan-district-council/walsall,WC110-369,30/11/2019,Childrens,ALDRIDGE & BARONS LIMITED,08/11/2019,310.80,52000-WITH DRIVER-HIRE OF VEHICLES,HOME TO SCHOOL TRANSPORT,Transport,Revenue
Walsall Council,http://opendatacommunities.org/id/metropolitan-district-council/walsall,WC110-370,30/11/2019,Childrens,ALDRIDGE & BARONS LIMITED,08/11/2019,310.80,52000-WITH DRIVER-HIRE OF VEHICLES,HOME TO SCHOOL TRANSPORT,Transport,Revenue
Walsall Council,http://opendatacommunities.org/id/metropolitan-district-council/walsall,WC110-371,30/11/2019,Childrens,ALDRIDGE & BARONS LIMITED,08/11/2019,310.80,52000-WITH DRIVER-HIRE OF VEHICLES,HOME TO SCHOOL TRANSPORT,Transport,Revenue
Walsall Council,http://opendatacommunities.org/id/metropolitan-district-council/walsall,WC110-372,30/11/2019,Childrens,ALDRIDGE & BARONS LIMITED,08/11/2019,320.00,52000-WITH DRIVER-HIRE OF VEHICLES,HOME TO SCHOOL TRANSPORT,Transport,Revenue
Walsall Council,http://opendatacommunities.org/id/metropolitan-district-council/walsall,WC110-373,30/11/2019,Childrens,ALDRIDGE & BARONS LIMITED,08/11/2019,320.00,52000-WITH DRIVER-HIRE OF VEHICLES,HOME TO SCHOOL TRANSPORT,Transport,Revenue
Walsall Council,http://opendatacommunities.org/id/metropolitan-district-council/walsall,WC110-374,30/11/2019,Childrens,ALDRIDGE & BARONS LIMITED,08/11/2019,320.00,52000-WITH DRIVER-HIRE OF VEHICLES,HOME TO SCHOOL TRANSPORT,Transport,Revenue
Walsall Council,http://opendatacommunities.org/id/metropolitan-district-council/walsall,WC110-375,30/11/2019,Childrens,ALDRIDGE & BARONS LIMITED,08/11/2019,320.00,52000-WITH DRIVER-HIRE OF VEHICLES,HOME TO SCHOOL TRANSPORT,Transport,Revenue
Walsall Council,http://opendatacommunities.org/id/metropolitan-district-council/walsall,WC110-376,30/11/2019,Childrens,ALDRIDGE & BARONS LIMITED,08/11/2019,320.00,52000-WITH DRIVER-HIRE OF VEHICLES,HOME TO SCHOOL TRANSPORT,Transport,Revenue
Walsall Council,http://opendatacommunities.org/id/metropolitan-district-council/walsall,WC110-377,30/11/2019,Childrens,ALDRIDGE & BARONS LIMITED,08/11/2019,320.00,52000-WITH DRIVER-HIRE OF VEHICLES,HOME TO SCHOOL TRANSPORT,Transport,Revenue
Walsall Council,http://opendatacommunities.org/id/metropolitan-district-council/walsall,WC110-378,30/11/2019,Childrens,ALDRIDGE & BARONS LIMITED,08/11/2019,320.00,52000-WITH DRIVER-HIRE OF VEHICLES,HOME TO SCHOOL TRANSPORT,Transport,Revenue
Walsall Council,http://opendatacommunities.org/id/metropolitan-district-council/walsall,WC110-379,30/11/2019,Childrens,ALDRIDGE & BARONS LIMITED,08/11/2019,320.00,52000-WITH DRIVER-HIRE OF VEHICLES,HOME TO SCHOOL TRANSPORT,Transport,Revenue
Walsall Council,http://opendatacommunities.org/id/metropolitan-district-council/walsall,WC110-380,30/11/2019,Childrens,ALDRIDGE & BARONS LIMITED,08/11/2019,320.00,52000-WITH DRIVER-HIRE OF VEHICLES,HOME TO SCHOOL TRANSPORT,Transport,Revenue
Walsall Council,http://opendatacommunities.org/id/metropolitan-district-council/walsall,WC110-381,30/11/2019,Childrens,ALDRIDGE & BARONS LIMITED,08/11/2019,320.00,52000-WITH DRIVER-HIRE OF VEHICLES,HOME TO SCHOOL TRANSPORT,Transport,Revenue
Walsall Council,http://opendatacommunities.org/id/metropolitan-district-council/walsall,WC110-382,30/11/2019,Childrens,ALDRIDGE & BARONS LIMITED,08/11/2019,325.16,52000-WITH DRIVER-HIRE OF VEHICLES,HOME TO SCHOOL TRANSPORT,Transport,Revenue
Walsall Council,http://opendatacommunities.org/id/metropolitan-district-council/walsall,WC110-383,30/11/2019,Childrens,ALDRIDGE & BARONS LIMITED,08/11/2019,331.60,52000-WITH DRIVER-HIRE OF VEHICLES,HOME TO SCHOOL TRANSPORT,Transport,Revenue
Walsall Council,http://opendatacommunities.org/id/metropolitan-district-council/walsall,WC110-384,30/11/2019,Childrens,ALDRIDGE & BARONS LIMITED,08/11/2019,331.60,52000-WITH DRIVER-HIRE OF VEHICLES,HOME TO SCHOOL TRANSPORT,Transport,Revenue
Walsall Council,http://opendatacommunities.org/id/metropolitan-district-council/walsall,WC110-385,30/11/2019,Childrens,ALDRIDGE & BARONS LIMITED,08/11/2019,331.60,52000-WITH DRIVER-HIRE OF VEHICLES,HOME TO SCHOOL TRANSPORT,Transport,Revenue
Walsall Council,http://opendatacommunities.org/id/metropolitan-district-council/walsall,WC110-386,30/11/2019,Childrens,ALDRIDGE & BARONS LIMITED,08/11/2019,331.60,52000-WITH DRIVER-HIRE OF VEHICLES,HOME TO SCHOOL TRANSPORT,Transport,Revenue
Walsall Council,http://opendatacommunities.org/id/metropolitan-district-council/walsall,WC110-387,30/11/2019,Childrens,ALDRIDGE & BARONS LIMITED,08/11/2019,344.00,52000-WITH DRIVER-HIRE OF VEHICLES,HOME TO SCHOOL TRANSPORT,Transport,Revenue
Walsall Council,http://opendatacommunities.org/id/metropolitan-district-council/walsall,WC110-388,30/11/2019,Childrens,ALDRIDGE & BARONS LIMITED,08/11/2019,344.00,52000-WITH DRIVER-HIRE OF VEHICLES,HOME TO SCHOOL TRANSPORT,Transport,Revenue
Walsall Council,http://opendatacommunities.org/id/metropolitan-district-council/walsall,WC110-389,30/11/2019,Childrens,ALDRIDGE & BARONS LIMITED,08/11/2019,344.00,52000-WITH DRIVER-HIRE OF VEHICLES,HOME TO SCHOOL TRANSPORT,Transport,Revenue
Walsall Council,http://opendatacommunities.org/id/metropolitan-district-council/walsall,WC110-390,30/11/2019,Childrens,ALDRIDGE & BARONS LIMITED,08/11/2019,344.00,52000-WITH DRIVER-HIRE OF VEHICLES,HOME TO SCHOOL TRANSPORT,Transport,Revenue
Walsall Council,http://opendatacommunities.org/id/metropolitan-district-council/walsall,WC110-391,30/11/2019,Childrens,ALDRIDGE & BARONS LIMITED,08/11/2019,344.00,52000-WITH DRIVER-HIRE OF VEHICLES,HOME TO SCHOOL TRANSPORT,Transport,Revenue
Walsall Council,http://opendatacommunities.org/id/metropolitan-district-council/walsall,WC110-392,30/11/2019,Childrens,ALDRIDGE & BARONS LIMITED,08/11/2019,356.00,52000-WITH DRIVER-HIRE OF VEHICLES,HOME TO SCHOOL TRANSPORT,Transport,Revenue
Walsall Council,http://opendatacommunities.org/id/metropolitan-district-council/walsall,WC110-393,30/11/2019,Childrens,ALDRIDGE & BARONS LIMITED,08/11/2019,356.00,52000-WITH DRIVER-HIRE OF VEHICLES,HOME TO SCHOOL TRANSPORT,Transport,Revenue
Walsall Council,http://opendatacommunities.org/id/metropolitan-district-council/walsall,WC110-394,30/11/2019,Childrens,ALDRIDGE & BARONS LIMITED,08/11/2019,356.00,52000-WITH DRIVER-HIRE OF VEHICLES,HOME TO SCHOOL TRANSPORT,Transport,Revenue
Walsall Council,http://opendatacommunities.org/id/metropolitan-district-council/walsall,WC110-395,30/11/2019,Childrens,ALDRIDGE & BARONS LIMITED,08/11/2019,356.00,52000-WITH DRIVER-HIRE OF VEHICLES,HOME TO SCHOOL TRANSPORT,Transport,Revenue
Walsall Council,http://opendatacommunities.org/id/metropolitan-district-council/walsall,WC110-396,30/11/2019,Childrens,ALDRIDGE & BARONS LIMITED,08/11/2019,356.00,52000-WITH DRIVER-HIRE OF VEHICLES,HOME TO SCHOOL TRANSPORT,Transport,Revenue
Walsall Council,http://opendatacommunities.org/id/metropolitan-district-council/walsall,WC110-397,30/11/2019,Childrens,ALDRIDGE & BARONS LIMITED,08/11/2019,360.64,52000-WITH DRIVER-HIRE OF VEHICLES,HOME TO SCHOOL TRANSPORT,Transport,Revenue
Walsall Council,http://opendatacommunities.org/id/metropolitan-district-council/walsall,WC110-398,30/11/2019,Childrens,ALDRIDGE & BARONS LIMITED,08/11/2019,385.56,52000-WITH DRIVER-HIRE OF VEHICLES,HOME TO SCHOOL TRANSPORT,Transport,Revenue
Walsall Council,http://opendatacommunities.org/id/metropolitan-district-council/walsall,WC110-399,30/11/2019,Childrens,ALDRIDGE & BARONS LIMITED,08/11/2019,388.80,52000-WITH DRIVER-HIRE OF VEHICLES,HOME TO SCHOOL TRANSPORT,Transport,Revenue
Walsall Council,http://opendatacommunities.org/id/metropolitan-district-council/walsall,WC110-400,30/11/2019,Childrens,ALDRIDGE & BARONS LIMITED,08/11/2019,388.80,52000-WITH DRIVER-HIRE OF VEHICLES,HOME TO SCHOOL TRANSPORT,Transport,Revenue
Walsall Council,http://opendatacommunities.org/id/metropolitan-district-council/walsall,WC110-401,30/11/2019,Childrens,ALDRIDGE & BARONS LIMITED,08/11/2019,388.80,52000-WITH DRIVER-HIRE OF VEHICLES,HOME TO SCHOOL TRANSPORT,Transport,Revenue
Walsall Council,http://opendatacommunities.org/id/metropolitan-district-council/walsall,WC110-402,30/11/2019,Childrens,ALDRIDGE & BARONS LIMITED,08/11/2019,394.00,52000-WITH DRIVER-HIRE OF VEHICLES,HOME TO SCHOOL TRANSPORT,Transport,Revenue
Walsall Council,http://opendatacommunities.org/id/metropolitan-district-council/walsall,WC110-403,30/11/2019,Childrens,ALDRIDGE & BARONS LIMITED,08/11/2019,394.00,52000-WITH DRIVER-HIRE OF VEHICLES,HOME TO SCHOOL TRANSPORT,Transport,Revenue
Walsall Council,http://opendatacommunities.org/id/metropolitan-district-council/walsall,WC110-404,30/11/2019,Childrens,ALDRIDGE & BARONS LIMITED,08/11/2019,400.00,52000-WITH DRIVER-HIRE OF VEHICLES,HOME TO SCHOOL TRANSPORT,Transport,Revenue
Walsall Council,http://opendatacommunities.org/id/metropolitan-district-council/walsall,WC110-405,30/11/2019,Childrens,ALDRIDGE & BARONS LIMITED,08/11/2019,400.00,52000-WITH DRIVER-HIRE OF VEHICLES,HOME TO SCHOOL TRANSPORT,Transport,Revenue
Walsall Council,http://opendatacommunities.org/id/metropolitan-district-council/walsall,WC110-406,30/11/2019,Childrens,ALDRIDGE & BARONS LIMITED,08/11/2019,400.00,52000-WITH DRIVER-HIRE OF VEHICLES,HOME TO SCHOOL TRANSPORT,Transport,Revenue
Walsall Council,http://opendatacommunities.org/id/metropolitan-district-council/walsall,WC110-407,30/11/2019,Childrens,ALDRIDGE & BARONS LIMITED,08/11/2019,436.40,52000-WITH DRIVER-HIRE OF VEHICLES,HOME TO SCHOOL TRANSPORT,Transport,Revenue
Walsall Council,http://opendatacommunities.org/id/metropolitan-district-council/walsall,WC110-408,30/11/2019,Childrens,ALDRIDGE & BARONS LIMITED,08/11/2019,436.40,52000-WITH DRIVER-HIRE OF VEHICLES,HOME TO SCHOOL TRANSPORT,Transport,Revenue
Walsall Council,http://opendatacommunities.org/id/metropolitan-district-council/walsall,WC110-409,30/11/2019,Childrens,ALDRIDGE & BARONS LIMITED,08/11/2019,436.40,52000-WITH DRIVER-HIRE OF VEHICLES,HOME TO SCHOOL TRANSPORT,Transport,Revenue
Walsall Council,http://opendatacommunities.org/id/metropolitan-district-council/walsall,WC110-410,30/11/2019,Childrens,ALDRIDGE & BARONS LIMITED,08/11/2019,436.40,52000-WITH DRIVER-HIRE OF VEHICLES,HOME TO SCHOOL TRANSPORT,Transport,Revenue
Walsall Council,http://opendatacommunities.org/id/metropolitan-district-council/walsall,WC110-411,30/11/2019,Childrens,ALDRIDGE & BARONS LIMITED,08/11/2019,440.00,52000-WITH DRIVER-HIRE OF VEHICLES,HOME TO SCHOOL TRANSPORT,Transport,Revenue
Walsall Council,http://opendatacommunities.org/id/metropolitan-district-council/walsall,WC110-412,30/11/2019,Childrens,ALDRIDGE & BARONS LIMITED,08/11/2019,440.00,52000-WITH DRIVER-HIRE OF VEHICLES,HOME TO SCHOOL TRANSPORT,Transport,Revenue
Walsall Council,http://opendatacommunities.org/id/metropolitan-district-council/walsall,WC110-413,30/11/2019,Childrens,ALDRIDGE & BARONS LIMITED,08/11/2019,440.00,52000-WITH DRIVER-HIRE OF VEHICLES,HOME TO SCHOOL TRANSPORT,Transport,Revenue
Walsall Council,http://opendatacommunities.org/id/metropolitan-district-council/walsall,WC110-414,30/11/2019,Childrens,ALDRIDGE & BARONS LIMITED,08/11/2019,440.00,52000-WITH DRIVER-HIRE OF VEHICLES,HOME TO SCHOOL TRANSPORT,Transport,Revenue
Walsall Council,http://opendatacommunities.org/id/metropolitan-district-council/walsall,WC110-415,30/11/2019,Childrens,ALDRIDGE & BARONS LIMITED,08/11/2019,442.80,52000-WITH DRIVER-HIRE OF VEHICLES,HOME TO SCHOOL TRANSPORT,Transport,Revenue
Walsall Council,http://opendatacommunities.org/id/metropolitan-district-council/walsall,WC110-416,30/11/2019,Childrens,ALDRIDGE & BARONS LIMITED,08/11/2019,442.80,52000-WITH DRIVER-HIRE OF VEHICLES,HOME TO SCHOOL TRANSPORT,Transport,Revenue
Walsall Council,http://opendatacommunities.org/id/metropolitan-district-council/walsall,WC110-417,30/11/2019,Childrens,ALDRIDGE & BARONS LIMITED,08/11/2019,442.80,52000-WITH DRIVER-HIRE OF VEHICLES,HOME TO SCHOOL TRANSPORT,Transport,Revenue
Walsall Council,http://opendatacommunities.org/id/metropolitan-district-council/walsall,WC110-418,30/11/2019,Childrens,ALDRIDGE & BARONS LIMITED,08/11/2019,442.80,52000-WITH DRIVER-HIRE OF VEHICLES,HOME TO SCHOOL TRANSPORT,Transport,Revenue
Walsall Council,http://opendatacommunities.org/id/metropolitan-district-council/walsall,WC110-419,30/11/2019,Childrens,ALDRIDGE & BARONS LIMITED,08/11/2019,450.00,52000-WITH DRIVER-HIRE OF VEHICLES,HOME TO SCHOOL TRANSPORT,Transport,Revenue
Walsall Council,http://opendatacommunities.org/id/metropolitan-district-council/walsall,WC110-420,30/11/2019,Childrens,ALDRIDGE & BARONS LIMITED,08/11/2019,450.00,52000-WITH DRIVER-HIRE OF VEHICLES,HOME TO SCHOOL TRANSPORT,Transport,Revenue
Walsall Council,http://opendatacommunities.org/id/metropolitan-district-council/walsall,WC110-421,30/11/2019,Childrens,ALDRIDGE & BARONS LIMITED,08/11/2019,450.00,52000-WITH DRIVER-HIRE OF VEHICLES,HOME TO SCHOOL TRANSPORT,Transport,Revenue
Walsall Council,http://opendatacommunities.org/id/metropolitan-district-council/walsall,WC110-422,30/11/2019,Childrens,ALDRIDGE & BARONS LIMITED,08/11/2019,450.00,52000-WITH DRIVER-HIRE OF VEHICLES,HOME TO SCHOOL TRANSPORT,Transport,Revenue
Walsall Council,http://opendatacommunities.org/id/metropolitan-district-council/walsall,WC110-423,30/11/2019,Childrens,ALDRIDGE & BARONS LIMITED,08/11/2019,470.00,52000-WITH DRIVER-HIRE OF VEHICLES,HOME TO SCHOOL TRANSPORT,Transport,Revenue
Walsall Council,http://opendatacommunities.org/id/metropolitan-district-council/walsall,WC110-424,30/11/2019,Childrens,ALDRIDGE & BARONS LIMITED,08/11/2019,470.00,52000-WITH DRIVER-HIRE OF VEHICLES,HOME TO SCHOOL TRANSPORT,Transport,Revenue
Walsall Council,http://opendatacommunities.org/id/metropolitan-district-council/walsall,WC110-425,30/11/2019,Childrens,ALDRIDGE & BARONS LIMITED,08/11/2019,470.00,52000-WITH DRIVER-HIRE OF VEHICLES,HOME TO SCHOOL TRANSPORT,Transport,Revenue
Walsall Council,http://opendatacommunities.org/id/metropolitan-district-council/walsall,WC110-426,30/11/2019,Childrens,ALDRIDGE & BARONS LIMITED,08/11/2019,470.00,52000-WITH DRIVER-HIRE OF VEHICLES,HOME TO SCHOOL TRANSPORT,Transport,Revenue
Walsall Council,http://opendatacommunities.org/id/metropolitan-district-council/walsall,WC110-427,30/11/2019,Childrens,ALDRIDGE & BARONS LIMITED,08/11/2019,470.40,52000-WITH DRIVER-HIRE OF VEHICLES,HOME TO SCHOOL TRANSPORT,Transport,Revenue
Walsall Council,http://opendatacommunities.org/id/metropolitan-district-council/walsall,WC110-428,30/11/2019,Childrens,ALDRIDGE & BARONS LIMITED,08/11/2019,470.40,52000-WITH DRIVER-HIRE OF VEHICLES,HOME TO SCHOOL TRANSPORT,Transport,Revenue
Walsall Council,http://opendatacommunities.org/id/metropolitan-district-council/walsall,WC110-429,30/11/2019,Childrens,ALDRIDGE & BARONS LIMITED,08/11/2019,470.40,52000-WITH DRIVER-HIRE OF VEHICLES,HOME TO SCHOOL TRANSPORT,Transport,Revenue
Walsall Council,http://opendatacommunities.org/id/metropolitan-district-council/walsall,WC110-430,30/11/2019,Childrens,ALDRIDGE & BARONS LIMITED,08/11/2019,478.80,52000-WITH DRIVER-HIRE OF VEHICLES,HOME TO SCHOOL TRANSPORT,Transport,Revenue
Walsall Council,http://opendatacommunities.org/id/metropolitan-district-council/walsall,WC110-431,30/11/2019,Childrens,ALDRIDGE & BARONS LIMITED,08/11/2019,478.80,52000-WITH DRIVER-HIRE OF VEHICLES,HOME TO SCHOOL TRANSPORT,Transport,Revenue
Walsall Council,http://opendatacommunities.org/id/metropolitan-district-council/walsall,WC110-432,30/11/2019,Childrens,ALDRIDGE & BARONS LIMITED,08/11/2019,478.80,52000-WITH DRIVER-HIRE OF VEHICLES,HOME TO SCHOOL TRANSPORT,Transport,Revenue
Walsall Council,http://opendatacommunities.org/id/metropolitan-district-council/walsall,WC110-433,30/11/2019,Childrens,ALDRIDGE & BARONS LIMITED,08/11/2019,478.80,52000-WITH DRIVER-HIRE OF VEHICLES,HOME TO SCHOOL TRANSPORT,Transport,Revenue
Walsall Council,http://opendatacommunities.org/id/metropolitan-district-council/walsall,WC110-434,30/11/2019,Childrens,ALDRIDGE & BARONS LIMITED,08/11/2019,491.52,52000-WITH DRIVER-HIRE OF VEHICLES,HOME TO SCHOOL TRANSPORT,Transport,Revenue
Walsall Council,http://opendatacommunities.org/id/metropolitan-district-council/walsall,WC110-435,30/11/2019,Childrens,ALDRIDGE & BARONS LIMITED,08/11/2019,491.52,52000-WITH DRIVER-HIRE OF VEHICLES,HOME TO SCHOOL TRANSPORT,Transport,Revenue
Walsall Council,http://opendatacommunities.org/id/metropolitan-district-council/walsall,WC110-436,30/11/2019,Childrens,ALDRIDGE & BARONS LIMITED,08/11/2019,491.52,52000-WITH DRIVER-HIRE OF VEHICLES,HOME TO SCHOOL TRANSPORT,Transport,Revenue
Walsall Council,http://opendatacommunities.org/id/metropolitan-district-council/walsall,WC110-437,30/11/2019,Childrens,ALDRIDGE & BARONS LIMITED,08/11/2019,491.52,52000-WITH DRIVER-HIRE OF VEHICLES,HOME TO SCHOOL TRANSPORT,Transport,Revenue
Walsall Council,http://opendatacommunities.org/id/metropolitan-district-council/walsall,WC110-438,30/11/2019,Childrens,ALDRIDGE & BARONS LIMITED,08/11/2019,532.80,52000-WITH DRIVER-HIRE OF VEHICLES,HOME TO SCHOOL TRANSPORT,Transport,Revenue
Walsall Council,http://opendatacommunities.org/id/metropolitan-district-council/walsall,WC110-439,30/11/2019,Childrens,ALDRIDGE & BARONS LIMITED,08/11/2019,532.80,52000-WITH DRIVER-HIRE OF VEHICLES,HOME TO SCHOOL TRANSPORT,Transport,Revenue
Walsall Council,http://opendatacommunities.org/id/metropolitan-district-council/walsall,WC110-440,30/11/2019,Childrens,ALDRIDGE & BARONS LIMITED,08/11/2019,533.60,52000-WITH DRIVER-HIRE OF VEHICLES,HOME TO SCHOOL TRANSPORT,Transport,Revenue
Walsall Council,http://opendatacommunities.org/id/metropolitan-district-council/walsall,WC110-441,30/11/2019,Childrens,ALDRIDGE & BARONS LIMITED,08/11/2019,533.60,52000-WITH DRIVER-HIRE OF VEHICLES,HOME TO SCHOOL TRANSPORT,Transport,Revenue
Walsall Council,http://opendatacommunities.org/id/metropolitan-district-council/walsall,WC110-442,30/11/2019,Childrens,ALDRIDGE & BARONS LIMITED,08/11/2019,533.60,52000-WITH DRIVER-HIRE OF VEHICLES,HOME TO SCHOOL TRANSPORT,Transport,Revenue
Walsall Council,http://opendatacommunities.org/id/metropolitan-district-council/walsall,WC110-443,30/11/2019,Childrens,ALDRIDGE & BARONS LIMITED,08/11/2019,533.60,52000-WITH DRIVER-HIRE OF VEHICLES,HOME TO SCHOOL TRANSPORT,Transport,Revenue
Walsall Council,http://opendatacommunities.org/id/metropolitan-district-council/walsall,WC110-444,30/11/2019,Childrens,ALDRIDGE & BARONS LIMITED,08/11/2019,661.60,52000-WITH DRIVER-HIRE OF VEHICLES,HOME TO SCHOOL TRANSPORT,Transport,Revenue
Walsall Council,http://opendatacommunities.org/id/metropolitan-district-council/walsall,WC110-445,30/11/2019,Childrens,ALDRIDGE & BARONS LIMITED,08/11/2019,712.80,52000-WITH DRIVER-HIRE OF VEHICLES,HOME TO SCHOOL TRANSPORT,Transport,Revenue
Walsall Council,http://opendatacommunities.org/id/metropolitan-district-council/walsall,WC110-446,30/11/2019,Childrens,ALDRIDGE & BARONS LIMITED,08/11/2019,877.60,52000-WITH DRIVER-HIRE OF VEHICLES,HOME TO SCHOOL TRANSPORT,Transport,Revenue
Walsall Council,http://opendatacommunities.org/id/metropolitan-district-council/walsall,WC110-447,30/11/2019,Childrens,ALDRIDGE & BARONS LIMITED,08/11/2019,891.20,52000-WITH DRIVER-HIRE OF VEHICLES,HOME TO SCHOOL TRANSPORT,Transport,Revenue
Walsall Council,http://opendatacommunities.org/id/metropolitan-district-council/walsall,WC110-448,30/11/2019,Childrens,ALDRIDGE & BARONS LIMITED,08/11/2019,891.20,52000-WITH DRIVER-HIRE OF VEHICLES,HOME TO SCHOOL TRANSPORT,Transport,Revenue
Walsall Council,http://opendatacommunities.org/id/metropolitan-district-council/walsall,WC110-449,30/11/2019,Childrens,ALDRIDGE & BARONS LIMITED,08/11/2019,965.20,52000-WITH DRIVER-HIRE OF VEHICLES,HOME TO SCHOOL TRANSPORT,Transport,Revenue
Walsall Council,http://opendatacommunities.org/id/metropolitan-district-council/walsall,WC110-450,30/11/2019,Childrens,ALDRIDGE & BARONS LIMITED,08/11/2019,965.20,52000-WITH DRIVER-HIRE OF VEHICLES,HOME TO SCHOOL TRANSPORT,Transport,Revenue
Walsall Council,http://opendatacommunities.org/id/metropolitan-district-council/walsall,WC110-451,30/11/2019,Childrens,ALDRIDGE & BARONS LIMITED,08/11/2019,"1,058.40",52000-WITH DRIVER-HIRE OF VEHICLES,HOME TO SCHOOL TRANSPORT,Transport,Revenue
Walsall Council,http://opendatacommunities.org/id/metropolitan-district-council/walsall,WC110-452,30/11/2019,Childrens,ALDRIDGE & BARONS LIMITED,08/11/2019,"1,264.00",52000-WITH DRIVER-HIRE OF VEHICLES,HOME TO SCHOOL TRANSPORT,Transport,Revenue
Walsall Council,http://opendatacommunities.org/id/metropolitan-district-council/walsall,WC110-453,30/11/2019,Childrens,ALDRIDGE & BARONS LIMITED,08/11/2019,"1,264.00",52000-WITH DRIVER-HIRE OF VEHICLES,HOME TO SCHOOL TRANSPORT,Transport,Revenue
Walsall Council,http://opendatacommunities.org/id/metropolitan-district-council/walsall,WC110-454,30/11/2019,Childrens,ALDRIDGE & BARONS LIMITED,08/11/2019,"1,770.80",52000-WITH DRIVER-HIRE OF VEHICLES,HOME TO SCHOOL TRANSPORT,Transport,Revenue
Walsall Council,http://opendatacommunities.org/id/metropolitan-district-council/walsall,WC110-455,30/11/2019,Childrens,ALDRIDGE & BARONS LIMITED,08/11/2019,"1,786.00",52000-WITH DRIVER-HIRE OF VEHICLES,HOME TO SCHOOL TRANSPORT,Transport,Revenue
Walsall Council,http://opendatacommunities.org/id/metropolitan-district-council/walsall,WC110-456,30/11/2019,Childrens,ALDRIDGE & BARONS LIMITED,08/11/2019,"1,885.20",52000-WITH DRIVER-HIRE OF VEHICLES,HOME TO SCHOOL TRANSPORT,Transport,Revenue
Walsall Council,http://opendatacommunities.org/id/metropolitan-district-council/walsall,WC110-457,30/11/2019,Adult Social Care,REDACTED,01/11/2019,"1,348.80",73506-DIRECT PAYMENT,PHYSICAL SUPPORT,Third Party Payments,Revenue
Walsall Council,http://opendatacommunities.org/id/metropolitan-district-council/walsall,WC110-458,30/11/2019,Adult Social Care,ALEXANDRA HOUSE CARE SERVICES LTD T/A STONEBRIDGE NURSING HOME,08/11/2019,"7,188.60",73500-RESIDENTIAL,LEARNING DISABILITY SUPPORT,Third Party Payments,Revenue
Walsall Council,http://opendatacommunities.org/id/metropolitan-district-council/walsall,WC110-459,30/11/2019,Adult Social Care,REDACTED,01/11/2019,897.60,73506-DIRECT PAYMENT,PHYSICAL SUPPORT,Third Party Payments,Revenue
Walsall Council,http://opendatacommunities.org/id/metropolitan-district-council/walsall,WC110-460,30/11/2019,Adult Social Care,REDACTED,01/11/2019,"4,740.24",73506-DIRECT PAYMENT,LEARNING DISABILITY SUPPORT,Third Party Payments,Revenue
Walsall Council,http://opendatacommunities.org/id/metropolitan-district-council/walsall,WC110-461,30/11/2019,Adult Social Care,REDACTED,01/11/2019,"1,301.64",73510-SHARED LIVES,LEARNING DISABILITY SUPPORT,Third Party Payments,Revenue
Walsall Council,http://opendatacommunities.org/id/metropolitan-district-council/walsall,WC110-462,30/11/2019,Childrens,REDACTED,14/11/2019,312.24,74509-SPECIAL GUARDIANSHIP ORDERS,ADOPTION ALLOWANCES,Transfer Payments,Revenue
Walsall Council,http://opendatacommunities.org/id/metropolitan-district-council/walsall,WC110-463,30/11/2019,Economy & Environment,ALL TRAINING AND DEVELOPMENT LTD,15/11/2019,"1,190.00",73025-PROFESSIONAL SERVICES-PRIV CONTRACTOR & OTHER AGENCIES,PERMIT SCHEME,Third Party Payments,Revenue
Walsall Council,http://opendatacommunities.org/id/metropolitan-district-council/walsall,WC110-464,30/11/2019,Adult Social Care,REDACTED,01/11/2019,"1,606.08",73506-DIRECT PAYMENT,SOCIAL SUPPORT,Third Party Payments,Revenue
Walsall Council,http://opendatacommunities.org/id/metropolitan-district-council/walsall,WC110-465,30/11/2019,Economy & Environment,ALLIED PUBLICITY SERVICES (MANCHESTER) LIMITED T/A APS GROUP,14/11/2019,"1,795.78",63000-PROFESSIONAL FEES AND SERVICES,BLUE BADGES,Supplies & Services,Revenue
Walsall Council,http://opendatacommunities.org/id/metropolitan-district-council/walsall,WC110-466,30/11/2019,Adult Social Care,ALMA CARE HOMES TELFORD LTD T/A THE FARMSTEAD,20/11/2019,375.00,73025-PROFESSIONAL SERVICES-PRIV CONTRACTOR & OTHER AGENCIES,TRANSITIONAL CARE SUPPORT TEAM,Third Party Payments,Revenue
Walsall Council,http://opendatacommunities.org/id/metropolitan-district-council/walsall,WC110-467,30/11/2019,Adult Social Care,ALMA CARE HOMES TELFORD LTD T/A THE FARMSTEAD,25/11/2019,"3,875.00",73025-PROFESSIONAL SERVICES-PRIV CONTRACTOR & OTHER AGENCIES,TRANSITIONAL CARE SUPPORT TEAM,Third Party Payments,Revenue
Walsall Council,http://opendatacommunities.org/id/metropolitan-district-council/walsall,WC110-468,30/11/2019,Adult Social Care,ALMA COURT,08/11/2019,"6,400.00",73500-RESIDENTIAL,MENTAL HEALTH SUPPORT,Third Party Payments,Revenue
Walsall Council,http://opendatacommunities.org/id/metropolitan-district-council/walsall,WC110-469,30/11/2019,Childrens,ALMOZENE NURSERY & CHILDRENS CENTRE,08/11/2019,640.00,77200-TRANSFER PAYMENTS-OTHER SCHOOLCHILDREN/STUDENT RELATED ITEMS,EARLY YEARS - SOCIAL INCLUSION FUND - 2 YR OLDS,Transfer Payments,Revenue
Walsall Council,http://opendatacommunities.org/id/metropolitan-district-council/walsall,WC110-470,30/11/2019,Adult Social Care,ALPHA HEALTH CARE LTD,12/11/2019,422.62,73501-RESIDENTIAL EMI,PHYSICAL SUPPORT,Third Party Payments,Revenue
Walsall Council,http://opendatacommunities.org/id/metropolitan-district-council/walsall,WC110-471,30/11/2019,Adult Social Care,ALPHA HEALTH CARE LTD,12/11/2019,563.50,73501-RESIDENTIAL EMI,PHYSICAL SUPPORT,Third Party Payments,Revenue
Walsall Council,http://opendatacommunities.org/id/metropolitan-district-council/walsall,WC110-472,30/11/2019,Adult Social Care,ALPHA HEALTH CARE LTD,12/11/2019,"1,690.49",73501-RESIDENTIAL EMI,PHYSICAL SUPPORT,Third Party Payments,Revenue
Walsall Council,http://opendatacommunities.org/id/metropolitan-district-council/walsall,WC110-473,30/11/2019,Adult Social Care,ALPHA HEALTH CARE LTD,08/11/2019,"1,774.96",73500-RESIDENTIAL,MENTAL HEALTH SUPPORT,Third Party Payments,Revenue
Walsall Council,http://opendatacommunities.org/id/metropolitan-district-council/walsall,WC110-474,30/11/2019,Adult Social Care,ALPHA HEALTH CARE LTD,08/11/2019,"1,972.24",73501-RESIDENTIAL EMI,PHYSICAL SUPPORT,Third Party Payments,Revenue
Walsall Council,http://opendatacommunities.org/id/metropolitan-district-council/walsall,WC110-475,30/11/2019,Adult Social Care,ALPHA HEALTH CARE LTD,12/11/2019,"1,972.24",73501-RESIDENTIAL EMI,PHYSICAL SUPPORT,Third Party Payments,Revenue
Walsall Council,http://opendatacommunities.org/id/metropolitan-district-council/walsall,WC110-476,30/11/2019,Adult Social Care,ALPHA HEALTH CARE LTD,08/11/2019,"2,136.86",73501-RESIDENTIAL EMI,PHYSICAL SUPPORT,Third Party Payments,Revenue
Walsall Council,http://opendatacommunities.org/id/metropolitan-district-council/walsall,WC110-477,30/11/2019,Adult Social Care,ALPHA HEALTH CARE LTD,08/11/2019,"2,143.72",73502-NURSING,PHYSICAL SUPPORT,Third Party Payments,Revenue
Walsall Council,http://opendatacommunities.org/id/metropolitan-district-council/walsall,WC110-478,30/11/2019,Adult Social Care,ALPHA HEALTH CARE LTD,08/11/2019,"2,255.72",73501-RESIDENTIAL EMI,SUPPORT WITH MEMORY & COGNITION,Third Party Payments,Revenue
Walsall Council,http://opendatacommunities.org/id/metropolitan-district-council/walsall,WC110-479,30/11/2019,Adult Social Care,ALPHA HEALTH CARE LTD,08/11/2019,"2,358.08",73503-NURSING EMI,MENTAL HEALTH SUPPORT,Third Party Payments,Revenue
Walsall Council,http://opendatacommunities.org/id/metropolitan-district-council/walsall,WC110-480,30/11/2019,Adult Social Care,ALPHA HEALTH CARE LTD,08/11/2019,"2,358.08",73503-NURSING EMI,MENTAL HEALTH SUPPORT,Third Party Payments,Revenue
Walsall Council,http://opendatacommunities.org/id/metropolitan-district-council/walsall,WC110-481,30/11/2019,Adult Social Care,ALPHA HEALTH CARE LTD,08/11/2019,"2,358.08",73503-NURSING EMI,PHYSICAL SUPPORT,Third Party Payments,Revenue
Walsall Council,http://opendatacommunities.org/id/metropolitan-district-council/walsall,WC110-482,30/11/2019,Adult Social Care,ALPHA HEALTH CARE LTD,08/11/2019,"2,495.72",73501-RESIDENTIAL EMI,MENTAL HEALTH SUPPORT,Third Party Payments,Revenue
Walsall Council,http://opendatacommunities.org/id/metropolitan-district-council/walsall,WC110-483,30/11/2019,Adult Social Care,ALPHA HEALTH CARE LTD,08/11/2019,"2,558.08",73503-NURSING EMI,PHYSICAL SUPPORT,Third Party Payments,Revenue
Walsall Council,http://opendatacommunities.org/id/metropolitan-district-council/walsall,WC110-484,30/11/2019,Adult Social Care,ALPHA HEALTH CARE LTD,08/11/2019,"2,737.76",73503-NURSING EMI,SUPPORT WITH MEMORY & COGNITION,Third Party Payments,Revenue
Walsall Council,http://opendatacommunities.org/id/metropolitan-district-council/walsall,WC110-485,30/11/2019,Adult Social Care,ALPHA HEALTH CARE LTD,08/11/2019,"2,881.80",73503-NURSING EMI,MENTAL HEALTH SUPPORT,Third Party Payments,Revenue
Walsall Council,http://opendatacommunities.org/id/metropolitan-district-council/walsall,WC110-486,30/11/2019,Adult Social Care,ALPHA HEALTH CARE LTD,08/11/2019,"2,881.80",73503-NURSING EMI,PHYSICAL SUPPORT,Third Party Payments,Revenue
Walsall Council,http://opendatacommunities.org/id/metropolitan-district-council/walsall,WC110-487,30/11/2019,Adult Social Care,ALPHA HEALTH CARE LTD,08/11/2019,"2,881.80",73503-NURSING EMI,MENTAL HEALTH SUPPORT,Third Party Payments,Revenue
Walsall Council,http://opendatacommunities.org/id/metropolitan-district-council/walsall,WC110-488,30/11/2019,Adult Social Care,ALPHA HEALTH CARE LTD,08/11/2019,"2,881.80",73503-NURSING EMI,PHYSICAL SUPPORT,Third Party Payments,Revenue
Walsall Council,http://opendatacommunities.org/id/metropolitan-district-council/walsall,WC110-489,30/11/2019,Adult Social Care,ALPHA HEALTH CARE LTD,08/11/2019,"2,881.84",73503-NURSING EMI,PHYSICAL SUPPORT,Third Party Payments,Revenue
Walsall Council,http://opendatacommunities.org/id/metropolitan-district-council/walsall,WC110-490,30/11/2019,Adult Social Care,ALPHA HEALTH CARE LTD,08/11/2019,"2,937.88",73503-NURSING EMI,PHYSICAL SUPPORT,Third Party Payments,Revenue
Walsall Council,http://opendatacommunities.org/id/metropolitan-district-council/walsall,WC110-491,30/11/2019,Adult Social Care,ALPHA HEALTH CARE LTD,08/11/2019,"3,035.72",73501-RESIDENTIAL EMI,PHYSICAL SUPPORT,Third Party Payments,Revenue
Walsall Council,http://opendatacommunities.org/id/metropolitan-district-council/walsall,WC110-492,30/11/2019,Adult Social Care,ALPHA HEALTH CARE LTD,08/11/2019,"3,035.72",73501-RESIDENTIAL EMI,PHYSICAL SUPPORT,Third Party Payments,Revenue
Walsall Council,http://opendatacommunities.org/id/metropolitan-district-council/walsall,WC110-493,30/11/2019,Adult Social Care,ALPHA HEALTH CARE LTD,08/11/2019,"3,290.36",73503-NURSING EMI,PHYSICAL SUPPORT,Third Party Payments,Revenue
Walsall Council,http://opendatacommunities.org/id/metropolitan-district-council/walsall,WC110-494,30/11/2019,Adult Social Care,ALPHA HEALTH CARE LTD,08/11/2019,"3,400.00",73503-NURSING EMI,MENTAL HEALTH SUPPORT,Third Party Payments,Revenue
Walsall Council,http://opendatacommunities.org/id/metropolitan-district-council/walsall,WC110-495,30/11/2019,Adult Social Care,ALPHA HEALTH CARE LTD,25/11/2019,"7,750.00",73025-PROFESSIONAL SERVICES-PRIV CONTRACTOR & OTHER AGENCIES,TRANSITIONAL CARE SUPPORT TEAM,Third Party Payments,Revenue
Walsall Council,http://opendatacommunities.org/id/metropolitan-district-council/walsall,WC110-496,30/11/2019,Childrens,ALPHA TRAINING ACADEMY UK LTD,14/11/2019,"1,120.00",63000-PROFESSIONAL FEES AND SERVICES,VIRTUAL SCHOOL CENTRAL PUPIL PREMIUM,Supplies & Services,Revenue
Walsall Council,http://opendatacommunities.org/id/metropolitan-district-council/walsall,WC110-497,30/11/2019,Childrens,ALPHA TRAINING ACADEMY UK LTD,01/11/2019,"2,414.00",66502-TOP UP FUNDING -GRANTS TO SCHOOLS,INDEPENDENT PROVIDERS - POST SCHOOL,Third Party Payments,Revenue
Walsall Council,http://opendatacommunities.org/id/metropolitan-district-council/walsall,WC110-498,30/11/2019,Childrens,AMAH NURSERIES LIMITED T/A BANANA MOON WALSALL,08/11/2019,640.00,77200-TRANSFER PAYMENTS-OTHER SCHOOLCHILDREN/STUDENT RELATED ITEMS,EARLY YEARS - SOCIAL INCLUSION FUND - 3/4 YR OLD,Transfer Payments,Revenue
Walsall Council,http://opendatacommunities.org/id/metropolitan-district-council/walsall,WC110-499,30/11/2019,Childrens,REDACTED,14/11/2019,318.08,74510-RESIDENTS ORDERS,ADOPTION ALLOWANCES,Third Party Payments,Revenue
Walsall Council,http://opendatacommunities.org/id/metropolitan-district-council/walsall,WC110-500,30/11/2019,Childrens,REDACTED,14/11/2019,370.28,74510-RESIDENTS ORDERS,ADOPTION ALLOWANCES,Third Party Payments,Revenue
Walsall Council,http://opendatacommunities.org/id/metropolitan-district-council/walsall,WC110-501,30/11/2019,Adult Social Care,REDACTED,01/11/2019,"1,128.76",73506-DIRECT PAYMENT,LEARNING DISABILITY SUPPORT,Third Party Payments,Revenue
Walsall Council,http://opendatacommunities.org/id/metropolitan-district-council/walsall,WC110-502,30/11/2019,Childrens,REDACTED,14/11/2019,808.04,74009-ADOPTION ALLOWANCE,ADOPTION ALLOWANCES,Transfer Payments,Revenue
Walsall Council,http://opendatacommunities.org/id/metropolitan-district-council/walsall,WC110-503,30/11/2019,Childrens,REDACTED,28/11/2019,110.00,74504-HOLIDAY/CHRISTMAS ALLOWANCE-FOSTER CARERS,INTERNAL FOSTER CARE PROVISION,Transfer Payments,Revenue
Walsall Council,http://opendatacommunities.org/id/metropolitan-district-council/walsall,WC110-504,30/11/2019,Childrens,REDACTED,28/11/2019,181.92,74506-TRAVEL-FOSTER CARERS,INTERNAL FOSTER CARE PROVISION,Transfer Payments,Revenue
Walsall Council,http://opendatacommunities.org/id/metropolitan-district-council/walsall,WC110-505,30/11/2019,Childrens,REDACTED,01/11/2019,600.00,74501-MAINTENANCE ALLOWANCE-FOSTER CARERS,INTERNAL FOSTER CARE PROVISION,Transfer Payments,Revenue
Walsall Council,http://opendatacommunities.org/id/metropolitan-district-council/walsall,WC110-506,30/11/2019,Childrens,REDACTED,28/11/2019,600.00,74501-MAINTENANCE ALLOWANCE-FOSTER CARERS,INTERNAL FOSTER CARE PROVISION,Transfer Payments,Revenue
Walsall Council,http://opendatacommunities.org/id/metropolitan-district-council/walsall,WC110-507,30/11/2019,Childrens,REDACTED,01/11/2019,"1,000.00",74508-INTERNAL FOSTER CARERS-CARER FEES,INTERNAL FOSTER CARE PROVISION,Transfer Payments,Revenue
Walsall Council,http://opendatacommunities.org/id/metropolitan-district-council/walsall,WC110-508,30/11/2019,Childrens,REDACTED,28/11/2019,"1,000.00",74508-INTERNAL FOSTER CARERS-CARER FEES,INTERNAL FOSTER CARE PROVISION,Transfer Payments,Revenue
Walsall Council,http://opendatacommunities.org/id/metropolitan-district-council/walsall,WC110-509,30/11/2019,Childrens,AMANS TRAVEL LTD,08/11/2019,427.30,52000-WITH DRIVER-HIRE OF VEHICLES,HOME TO SCHOOL TRANSPORT,Transport,Revenue
Walsall Council,http://opendatacommunities.org/id/metropolitan-district-council/walsall,WC110-510,30/11/2019,Childrens,AMANS TRAVEL LTD,08/11/2019,503.60,52000-WITH DRIVER-HIRE OF VEHICLES,HOME TO SCHOOL TRANSPORT,Transport,Revenue
Walsall Council,http://opendatacommunities.org/id/metropolitan-district-council/walsall,WC110-511,30/11/2019,Childrens,AMANS TRAVEL LTD,08/11/2019,503.60,52000-WITH DRIVER-HIRE OF VEHICLES,HOME TO SCHOOL TRANSPORT,Transport,Revenue
Walsall Council,http://opendatacommunities.org/id/metropolitan-district-council/walsall,WC110-512,30/11/2019,Adult Social Care,REDACTED,01/11/2019,"1,014.48",73506-DIRECT PAYMENT,LEARNING DISABILITY SUPPORT,Third Party Payments,Revenue
Walsall Council,http://opendatacommunities.org/id/metropolitan-district-council/walsall,WC110-513,30/11/2019,Economy & Environment,AMEY LG LIMITED,05/11/2019,298.32,73002-SECURITY-PRIV CONTRACTOR FEES,TRAFFIC CONTROL,Third Party Payments,Revenue
Walsall Council,http://opendatacommunities.org/id/metropolitan-district-council/walsall,WC110-514,30/11/2019,Economy & Environment,AMEY LG LIMITED,05/11/2019,383.56,73002-SECURITY-PRIV CONTRACTOR FEES,TRAFFIC CONTROL,Third Party Payments,Revenue
Walsall Council,http://opendatacommunities.org/id/metropolitan-district-council/walsall,WC110-515,30/11/2019,Economy & Environment,AMEY LG LIMITED,05/11/2019,434.88,60008-REPAIR & MAINTENANCE OF FURNITURE & EQUIPMENT,OAK PARK,Supplies & Services,Revenue
Walsall Council,http://opendatacommunities.org/id/metropolitan-district-council/walsall,WC110-516,30/11/2019,Economy & Environment,AMEY LG LIMITED,01/11/2019,493.55,01006-SITE WORKS MAIN CONTRACTORS,CFR 1371 REPLACEMENT FOOTBRIDGE COALPOOL LANE,Capital,Capital
Walsall Council,http://opendatacommunities.org/id/metropolitan-district-council/walsall,WC110-517,30/11/2019,Economy & Environment,AMEY LG LIMITED,05/11/2019,"1,179.08",73002-SECURITY-PRIV CONTRACTOR FEES,TRAFFIC CONTROL,Third Party Payments,Revenue
Walsall Council,http://opendatacommunities.org/id/metropolitan-district-council/walsall,WC110-518,30/11/2019,Economy & Environment,AMEY LG LIMITED,05/11/2019,"1,180.27",73025-PROFESSIONAL SERVICES-PRIV CONTRACTOR & OTHER AGENCIES,TRAFFIC MANAGEMENT,Third Party Payments,Revenue
Walsall Council,http://opendatacommunities.org/id/metropolitan-district-council/walsall,WC110-519,30/11/2019,Resources and Transformation,AMEY LG LIMITED,22/11/2019,"1,526.61",60008-REPAIR & MAINTENANCE OF FURNITURE & EQUIPMENT,AREA PARTNERSHIPS,Supplies & Services,Revenue
Walsall Council,http://opendatacommunities.org/id/metropolitan-district-council/walsall,WC110-520,30/11/2019,Resources and Transformation,AMEY LG LIMITED,22/11/2019,"1,625.84",60008-REPAIR & MAINTENANCE OF FURNITURE & EQUIPMENT,CCTV,Supplies & Services,Revenue
Walsall Council,http://opendatacommunities.org/id/metropolitan-district-council/walsall,WC110-521,30/11/2019,Economy & Environment,AMEY LG LIMITED,01/11/2019,"2,716.08",01006-SITE WORKS MAIN CONTRACTORS,CFR 1355 PROMOTION OF COMMUNITY HEALTH & SAFETY: SAFETY RELATED REQUESTS,Capital,Capital
Walsall Council,http://opendatacommunities.org/id/metropolitan-district-council/walsall,WC110-522,30/11/2019,Economy & Environment,AMEY LG LIMITED,01/11/2019,"2,958.10",01006-SITE WORKS MAIN CONTRACTORS,CFR 1355 HIGHWAY EFFICIENCY MEASURES PROGRAMME,Capital,Capital
Walsall Council,http://opendatacommunities.org/id/metropolitan-district-council/walsall,WC110-523,30/11/2019,Economy & Environment,AMEY LG LIMITED,15/11/2019,"4,157.09",73025-PROFESSIONAL SERVICES-PRIV CONTRACTOR & OTHER AGENCIES,TRAFFIC MANAGEMENT,Third Party Payments,Revenue
Walsall Council,http://opendatacommunities.org/id/metropolitan-district-council/walsall,WC110-524,30/11/2019,Adult Social Care,AMG NURSING CARE SERVICES,11/11/2019,910.00,73508-COMMUNITY SUPPORTED LIVING/SUPPORTED ACCOMMODATION,PHYSICAL SUPPORT,Third Party Payments,Revenue
Walsall Council,http://opendatacommunities.org/id/metropolitan-district-council/walsall,WC110-525,30/11/2019,Childrens,AMG NURSING CARE SERVICES,11/11/2019,"1,480.96",63000-PROFESSIONAL FEES AND SERVICES,DIRECTLY COMMISSIONED NURSING SERVICES,Supplies & Services,Revenue
Walsall Council,http://opendatacommunities.org/id/metropolitan-district-council/walsall,WC110-526,30/11/2019,Childrens,AMG NURSING CARE SERVICES,22/11/2019,"2,270.92",63000-PROFESSIONAL FEES AND SERVICES,DIRECTLY COMMISSIONED NURSING SERVICES,Supplies & Services,Revenue
Walsall Council,http://opendatacommunities.org/id/metropolitan-district-council/walsall,WC110-527,30/11/2019,Childrens,AMG NURSING CARE SERVICES,05/11/2019,"2,274.48",63000-PROFESSIONAL FEES AND SERVICES,DIRECTLY COMMISSIONED NURSING SERVICES,Supplies & Services,Revenue
Walsall Council,http://opendatacommunities.org/id/metropolitan-district-council/walsall,WC110-528,30/11/2019,Adult Social Care,AMG NURSING CARE SERVICES,11/11/2019,"3,640.00",73508-COMMUNITY SUPPORTED LIVING/SUPPORTED ACCOMMODATION,PHYSICAL SUPPORT,Third Party Payments,Revenue
Walsall Council,http://opendatacommunities.org/id/metropolitan-district-council/walsall,WC110-529,30/11/2019,Adult Social Care,AMG NURSING CARE SERVICES,11/11/2019,"10,584.16",73508-COMMUNITY SUPPORTED LIVING/SUPPORTED ACCOMMODATION,PHYSICAL SUPPORT,Third Party Payments,Revenue
Walsall Council,http://opendatacommunities.org/id/metropolitan-district-council/walsall,WC110-530,30/11/2019,Childrens,REDACTED,14/11/2019,110.00,74503-BIRTHDAY ALLOWANCE-FOSTER CARERS,FAMILY & FRIENDS FOSTER CARE PROVISION,Transfer Payments,Revenue
Walsall Council,http://opendatacommunities.org/id/metropolitan-district-council/walsall,WC110-531,30/11/2019,Childrens,REDACTED,14/11/2019,110.00,74504-HOLIDAY/CHRISTMAS ALLOWANCE-FOSTER CARERS,FAMILY & FRIENDS FOSTER CARE PROVISION,Transfer Payments,Revenue
Walsall Council,http://opendatacommunities.org/id/metropolitan-district-council/walsall,WC110-532,30/11/2019,Childrens,REDACTED,14/11/2019,340.00,74508-INTERNAL FOSTER CARERS-CARER FEES,FAMILY & FRIENDS FOSTER CARE PROVISION,Transfer Payments,Revenue
Walsall Council,http://opendatacommunities.org/id/metropolitan-district-council/walsall,WC110-533,30/11/2019,Childrens,REDACTED,14/11/2019,600.00,74501-MAINTENANCE ALLOWANCE-FOSTER CARERS,FAMILY & FRIENDS FOSTER CARE PROVISION,Transfer Payments,Revenue
Walsall Council,http://opendatacommunities.org/id/metropolitan-district-council/walsall,WC110-534,30/11/2019,Childrens,REDACTED,14/11/2019,425.08,74510-RESIDENTS ORDERS,ADOPTION ALLOWANCES,Third Party Payments,Revenue
Walsall Council,http://opendatacommunities.org/id/metropolitan-district-council/walsall,WC110-535,30/11/2019,Adult Social Care,ANCHOR,08/11/2019,"1,582.60",73501-RESIDENTIAL EMI,PHYSICAL SUPPORT,Third Party Payments,Revenue
Walsall Council,http://opendatacommunities.org/id/metropolitan-district-council/walsall,WC110-536,30/11/2019,Adult Social Care,ANCHOR,08/11/2019,"1,774.96",73500-RESIDENTIAL,PHYSICAL SUPPORT,Third Party Payments,Revenue
Walsall Council,http://opendatacommunities.org/id/metropolitan-district-council/walsall,WC110-537,30/11/2019,Adult Social Care,ANCHOR,08/11/2019,"1,774.96",73500-RESIDENTIAL,PHYSICAL SUPPORT,Third Party Payments,Revenue
Walsall Council,http://opendatacommunities.org/id/metropolitan-district-council/walsall,WC110-538,30/11/2019,Adult Social Care,ANCHOR,08/11/2019,"1,774.96",73500-RESIDENTIAL,PHYSICAL SUPPORT,Third Party Payments,Revenue
Walsall Council,http://opendatacommunities.org/id/metropolitan-district-council/walsall,WC110-539,30/11/2019,Adult Social Care,ANCHOR,08/11/2019,"1,774.96",73500-RESIDENTIAL,PHYSICAL SUPPORT,Third Party Payments,Revenue
Walsall Council,http://opendatacommunities.org/id/metropolitan-district-council/walsall,WC110-540,30/11/2019,Adult Social Care,ANCHOR,08/11/2019,"1,774.96",73500-RESIDENTIAL,SUPPORT WITH MEMORY & COGNITION,Third Party Payments,Revenue
Walsall Council,http://opendatacommunities.org/id/metropolitan-district-council/walsall,WC110-541,30/11/2019,Adult Social Care,ANCHOR,08/11/2019,"1,774.96",73500-RESIDENTIAL,SUPPORT WITH MEMORY & COGNITION,Third Party Payments,Revenue
Walsall Council,http://opendatacommunities.org/id/metropolitan-district-council/walsall,WC110-542,30/11/2019,Adult Social Care,ANCHOR,08/11/2019,"1,834.96",73500-RESIDENTIAL,PHYSICAL SUPPORT,Third Party Payments,Revenue
Walsall Council,http://opendatacommunities.org/id/metropolitan-district-council/walsall,WC110-543,30/11/2019,Adult Social Care,ANCHOR,08/11/2019,"1,926.12",73500-RESIDENTIAL,PHYSICAL SUPPORT,Third Party Payments,Revenue
Walsall Council,http://opendatacommunities.org/id/metropolitan-district-council/walsall,WC110-544,30/11/2019,Adult Social Care,ANCHOR,08/11/2019,"1,934.96",73500-RESIDENTIAL,PHYSICAL SUPPORT,Third Party Payments,Revenue
Walsall Council,http://opendatacommunities.org/id/metropolitan-district-council/walsall,WC110-545,30/11/2019,Adult Social Care,ANCHOR,08/11/2019,"1,935.72",73501-RESIDENTIAL EMI,PHYSICAL SUPPORT,Third Party Payments,Revenue
Walsall Council,http://opendatacommunities.org/id/metropolitan-district-council/walsall,WC110-546,30/11/2019,Adult Social Care,ANCHOR,08/11/2019,"1,972.24",73501-RESIDENTIAL EMI,MENTAL HEALTH SUPPORT,Third Party Payments,Revenue
Walsall Council,http://opendatacommunities.org/id/metropolitan-district-council/walsall,WC110-547,30/11/2019,Adult Social Care,ANCHOR,08/11/2019,"1,972.24",73501-RESIDENTIAL EMI,PHYSICAL SUPPORT,Third Party Payments,Revenue
Walsall Council,http://opendatacommunities.org/id/metropolitan-district-council/walsall,WC110-548,30/11/2019,Adult Social Care,ANCHOR,08/11/2019,"1,972.24",73501-RESIDENTIAL EMI,MENTAL HEALTH SUPPORT,Third Party Payments,Revenue
Walsall Council,http://opendatacommunities.org/id/metropolitan-district-council/walsall,WC110-549,30/11/2019,Adult Social Care,ANCHOR,08/11/2019,"1,972.24",73501-RESIDENTIAL EMI,MENTAL HEALTH SUPPORT,Third Party Payments,Revenue
Walsall Council,http://opendatacommunities.org/id/metropolitan-district-council/walsall,WC110-550,30/11/2019,Adult Social Care,ANCHOR,08/11/2019,"1,972.24",73501-RESIDENTIAL EMI,SUPPORT WITH MEMORY & COGNITION,Third Party Payments,Revenue
Walsall Council,http://opendatacommunities.org/id/metropolitan-district-council/walsall,WC110-551,30/11/2019,Adult Social Care,ANCHOR,08/11/2019,"1,972.24",73501-RESIDENTIAL EMI,MENTAL HEALTH SUPPORT,Third Party Payments,Revenue
Walsall Council,http://opendatacommunities.org/id/metropolitan-district-council/walsall,WC110-552,30/11/2019,Adult Social Care,ANCHOR,08/11/2019,"1,972.24",73501-RESIDENTIAL EMI,PHYSICAL SUPPORT,Third Party Payments,Revenue
Walsall Council,http://opendatacommunities.org/id/metropolitan-district-council/walsall,WC110-553,30/11/2019,Adult Social Care,ANCHOR,08/11/2019,"1,972.24",73501-RESIDENTIAL EMI,PHYSICAL SUPPORT,Third Party Payments,Revenue
Walsall Council,http://opendatacommunities.org/id/metropolitan-district-council/walsall,WC110-554,30/11/2019,Adult Social Care,ANCHOR,08/11/2019,"1,972.24",73501-RESIDENTIAL EMI,PHYSICAL SUPPORT,Third Party Payments,Revenue
Walsall Council,http://opendatacommunities.org/id/metropolitan-district-council/walsall,WC110-555,30/11/2019,Adult Social Care,ANCHOR,08/11/2019,"1,972.24",73501-RESIDENTIAL EMI,PHYSICAL SUPPORT,Third Party Payments,Revenue
Walsall Council,http://opendatacommunities.org/id/metropolitan-district-council/walsall,WC110-556,30/11/2019,Adult Social Care,ANCHOR,08/11/2019,"1,972.24",73501-RESIDENTIAL EMI,PHYSICAL SUPPORT,Third Party Payments,Revenue
Walsall Council,http://opendatacommunities.org/id/metropolitan-district-council/walsall,WC110-557,30/11/2019,Adult Social Care,ANCHOR,08/11/2019,"1,972.24",73501-RESIDENTIAL EMI,PHYSICAL SUPPORT,Third Party Payments,Revenue
Walsall Council,http://opendatacommunities.org/id/metropolitan-district-council/walsall,WC110-558,30/11/2019,Adult Social Care,ANCHOR,08/11/2019,"2,054.96",73500-RESIDENTIAL,SENSORY SUPPORT,Third Party Payments,Revenue
Walsall Council,http://opendatacommunities.org/id/metropolitan-district-council/walsall,WC110-559,30/11/2019,Adult Social Care,ANCHOR,08/11/2019,"2,094.96",73500-RESIDENTIAL,PHYSICAL SUPPORT,Third Party Payments,Revenue
Walsall Council,http://opendatacommunities.org/id/metropolitan-district-council/walsall,WC110-560,30/11/2019,Adult Social Care,ANCHOR,08/11/2019,"2,094.96",73500-RESIDENTIAL,SOCIAL SUPPORT,Third Party Payments,Revenue
Walsall Council,http://opendatacommunities.org/id/metropolitan-district-council/walsall,WC110-561,30/11/2019,Adult Social Care,ANCHOR,08/11/2019,"2,114.96",73500-RESIDENTIAL,PHYSICAL SUPPORT,Third Party Payments,Revenue
Walsall Council,http://opendatacommunities.org/id/metropolitan-district-council/walsall,WC110-562,30/11/2019,Adult Social Care,ANCHOR,08/11/2019,"2,144.56",73501-RESIDENTIAL EMI,SENSORY SUPPORT,Third Party Payments,Revenue
Walsall Council,http://opendatacommunities.org/id/metropolitan-district-council/walsall,WC110-563,30/11/2019,Adult Social Care,ANCHOR,08/11/2019,"2,175.72",73501-RESIDENTIAL EMI,MENTAL HEALTH SUPPORT,Third Party Payments,Revenue
Walsall Council,http://opendatacommunities.org/id/metropolitan-district-council/walsall,WC110-564,30/11/2019,Adult Social Care,ANCHOR,08/11/2019,"2,266.12",73500-RESIDENTIAL,PHYSICAL SUPPORT,Third Party Payments,Revenue
Walsall Council,http://opendatacommunities.org/id/metropolitan-district-council/walsall,WC110-565,30/11/2019,Adult Social Care,ANCHOR,08/11/2019,"2,292.24",73501-RESIDENTIAL EMI,SUPPORT WITH MEMORY & COGNITION,Third Party Payments,Revenue
Walsall Council,http://opendatacommunities.org/id/metropolitan-district-council/walsall,WC110-566,30/11/2019,Adult Social Care,ANCHOR,08/11/2019,"2,292.24",73501-RESIDENTIAL EMI,SUPPORT WITH MEMORY & COGNITION,Third Party Payments,Revenue
Walsall Council,http://opendatacommunities.org/id/metropolitan-district-council/walsall,WC110-567,30/11/2019,Adult Social Care,ANCHOR,08/11/2019,"2,312.24",73501-RESIDENTIAL EMI,SUPPORT WITH MEMORY & COGNITION,Third Party Payments,Revenue
Walsall Council,http://opendatacommunities.org/id/metropolitan-district-council/walsall,WC110-568,30/11/2019,Adult Social Care,ANCHOR,08/11/2019,"2,312.24",73501-RESIDENTIAL EMI,PHYSICAL SUPPORT,Third Party Payments,Revenue
Walsall Council,http://opendatacommunities.org/id/metropolitan-district-council/walsall,WC110-569,30/11/2019,Adult Social Care,ANCHOR,08/11/2019,"2,312.24",73501-RESIDENTIAL EMI,PHYSICAL SUPPORT,Third Party Payments,Revenue
Walsall Council,http://opendatacommunities.org/id/metropolitan-district-council/walsall,WC110-570,30/11/2019,Adult Social Care,ANCHOR,08/11/2019,"2,312.24",73501-RESIDENTIAL EMI,PHYSICAL SUPPORT,Third Party Payments,Revenue
Walsall Council,http://opendatacommunities.org/id/metropolitan-district-council/walsall,WC110-571,30/11/2019,Adult Social Care,ANCHOR,08/11/2019,"2,332.24",73501-RESIDENTIAL EMI,PHYSICAL SUPPORT,Third Party Payments,Revenue
Walsall Council,http://opendatacommunities.org/id/metropolitan-district-council/walsall,WC110-572,30/11/2019,Adult Social Care,ANCHOR,08/11/2019,"2,332.24",73501-RESIDENTIAL EMI,PHYSICAL SUPPORT,Third Party Payments,Revenue
Walsall Council,http://opendatacommunities.org/id/metropolitan-district-council/walsall,WC110-573,30/11/2019,Adult Social Care,ANCHOR,08/11/2019,"2,332.24",73501-RESIDENTIAL EMI,PHYSICAL SUPPORT,Third Party Payments,Revenue
Walsall Council,http://opendatacommunities.org/id/metropolitan-district-council/walsall,WC110-574,30/11/2019,Adult Social Care,ANCHOR,08/11/2019,"2,332.24",73501-RESIDENTIAL EMI,SOCIAL SUPPORT,Third Party Payments,Revenue
Walsall Council,http://opendatacommunities.org/id/metropolitan-district-council/walsall,WC110-575,30/11/2019,Childrens,REDACTED,14/11/2019,312.24,74509-SPECIAL GUARDIANSHIP ORDERS,ADOPTION ALLOWANCES,Transfer Payments,Revenue
Walsall Council,http://opendatacommunities.org/id/metropolitan-district-council/walsall,WC110-576,30/11/2019,Childrens,REDACTED,28/11/2019,150.00,74503-BIRTHDAY ALLOWANCE-FOSTER CARERS,INTERNAL FOSTER CARE PROVISION,Transfer Payments,Revenue
Walsall Council,http://opendatacommunities.org/id/metropolitan-district-council/walsall,WC110-577,30/11/2019,Childrens,REDACTED,28/11/2019,150.00,74504-HOLIDAY/CHRISTMAS ALLOWANCE-FOSTER CARERS,INTERNAL FOSTER CARE PROVISION,Transfer Payments,Revenue
Walsall Council,http://opendatacommunities.org/id/metropolitan-district-council/walsall,WC110-578,30/11/2019,Childrens,REDACTED,01/11/2019,361.62,74506-TRAVEL-FOSTER CARERS,INTERNAL FOSTER CARE PROVISION,Transfer Payments,Revenue
Walsall Council,http://opendatacommunities.org/id/metropolitan-district-council/walsall,WC110-579,30/11/2019,Childrens,REDACTED,01/11/2019,720.00,74501-MAINTENANCE ALLOWANCE-FOSTER CARERS,INTERNAL FOSTER CARE PROVISION,Transfer Payments,Revenue
Walsall Council,http://opendatacommunities.org/id/metropolitan-district-council/walsall,WC110-580,30/11/2019,Childrens,REDACTED,28/11/2019,720.00,74501-MAINTENANCE ALLOWANCE-FOSTER CARERS,INTERNAL FOSTER CARE PROVISION,Transfer Payments,Revenue
Walsall Council,http://opendatacommunities.org/id/metropolitan-district-council/walsall,WC110-581,30/11/2019,Childrens,REDACTED,01/11/2019,"1,000.00",74508-INTERNAL FOSTER CARERS-CARER FEES,INTERNAL FOSTER CARE PROVISION,Transfer Payments,Revenue
Walsall Council,http://opendatacommunities.org/id/metropolitan-district-council/walsall,WC110-582,30/11/2019,Childrens,REDACTED,28/11/2019,"2,250.00",74508-INTERNAL FOSTER CARERS-CARER FEES,INTERNAL FOSTER CARE PROVISION,Transfer Payments,Revenue
Walsall Council,http://opendatacommunities.org/id/metropolitan-district-council/walsall,WC110-583,30/11/2019,Adult Social Care,REDACTED,01/11/2019,619.24,73506-DIRECT PAYMENT,LEARNING DISABILITY SUPPORT,Third Party Payments,Revenue
Walsall Council,http://opendatacommunities.org/id/metropolitan-district-council/walsall,WC110-584,30/11/2019,Adult Social Care,REDACTED,01/11/2019,"2,494.40",73506-DIRECT PAYMENT,PHYSICAL SUPPORT,Third Party Payments,Revenue
Walsall Council,http://opendatacommunities.org/id/metropolitan-district-council/walsall,WC110-585,30/11/2019,Childrens,ANDREWS ELECTRICAL LTD,01/11/2019,"3,984.00",01006-SITE WORKS MAIN CONTRACTORS,CFR 1297 CASTLE BUSINESS & ENTERPRISE COLLEGE EXPANSION,Capital,Capital
Walsall Council,http://opendatacommunities.org/id/metropolitan-district-council/walsall,WC110-586,30/11/2019,Childrens,REDACTED,14/11/2019,368.76,74509-SPECIAL GUARDIANSHIP ORDERS,ADOPTION ALLOWANCES,Transfer Payments,Revenue
Walsall Council,http://opendatacommunities.org/id/metropolitan-district-council/walsall,WC110-587,30/11/2019,Childrens,REDACTED,14/11/2019,368.76,74509-SPECIAL GUARDIANSHIP ORDERS,ADOPTION ALLOWANCES,Transfer Payments,Revenue
Walsall Council,http://opendatacommunities.org/id/metropolitan-district-council/walsall,WC110-588,30/11/2019,Childrens,REDACTED,14/11/2019,500.16,74509-SPECIAL GUARDIANSHIP ORDERS,ADOPTION ALLOWANCES,Transfer Payments,Revenue
Walsall Council,http://opendatacommunities.org/id/metropolitan-district-council/walsall,WC110-589,30/11/2019,Childrens,REDACTED,14/11/2019,312.04,74509-SPECIAL GUARDIANSHIP ORDERS,ADOPTION ALLOWANCES,Transfer Payments,Revenue
Walsall Council,http://opendatacommunities.org/id/metropolitan-district-council/walsall,WC110-590,30/11/2019,Adult Social Care,REDACTED,01/11/2019,"1,175.20",73506-DIRECT PAYMENT,PHYSICAL SUPPORT,Third Party Payments,Revenue
Walsall Council,http://opendatacommunities.org/id/metropolitan-district-council/walsall,WC110-591,30/11/2019,Adult Social Care,ANSON COURT RESIDENTIAL HOME,08/11/2019,"1,901.80",73501-RESIDENTIAL EMI,PHYSICAL SUPPORT,Third Party Payments,Revenue
Walsall Council,http://opendatacommunities.org/id/metropolitan-district-council/walsall,WC110-592,30/11/2019,Adult Social Care,ANSON COURT RESIDENTIAL HOME,08/11/2019,"1,972.24",73501-RESIDENTIAL EMI,MENTAL HEALTH SUPPORT,Third Party Payments,Revenue
Walsall Council,http://opendatacommunities.org/id/metropolitan-district-council/walsall,WC110-593,30/11/2019,Adult Social Care,ANSON COURT RESIDENTIAL HOME,08/11/2019,"1,972.24",73501-RESIDENTIAL EMI,SUPPORT WITH MEMORY & COGNITION,Third Party Payments,Revenue
Walsall Council,http://opendatacommunities.org/id/metropolitan-district-council/walsall,WC110-594,30/11/2019,Adult Social Care,ANSON COURT RESIDENTIAL HOME,08/11/2019,"1,972.24",73501-RESIDENTIAL EMI,PHYSICAL SUPPORT,Third Party Payments,Revenue
Walsall Council,http://opendatacommunities.org/id/metropolitan-district-council/walsall,WC110-595,30/11/2019,Adult Social Care,ANSON COURT RESIDENTIAL HOME,08/11/2019,"1,972.24",73501-RESIDENTIAL EMI,SUPPORT WITH MEMORY & COGNITION,Third Party Payments,Revenue
Walsall Council,http://opendatacommunities.org/id/metropolitan-district-council/walsall,WC110-596,30/11/2019,Adult Social Care,ANSON COURT RESIDENTIAL HOME,08/11/2019,"1,972.24",73501-RESIDENTIAL EMI,MENTAL HEALTH SUPPORT,Third Party Payments,Revenue
Walsall Council,http://opendatacommunities.org/id/metropolitan-district-council/walsall,WC110-597,30/11/2019,Adult Social Care,ANSON COURT RESIDENTIAL HOME,08/11/2019,"1,972.24",73501-RESIDENTIAL EMI,PHYSICAL SUPPORT,Third Party Payments,Revenue
Walsall Council,http://opendatacommunities.org/id/metropolitan-district-council/walsall,WC110-598,30/11/2019,Adult Social Care,ANSON COURT RESIDENTIAL HOME,08/11/2019,"1,972.24",73501-RESIDENTIAL EMI,PHYSICAL SUPPORT,Third Party Payments,Revenue
Walsall Council,http://opendatacommunities.org/id/metropolitan-district-council/walsall,WC110-599,30/11/2019,Adult Social Care,ANSON COURT RESIDENTIAL HOME,08/11/2019,"1,972.24",73501-RESIDENTIAL EMI,SOCIAL SUPPORT,Third Party Payments,Revenue
Walsall Council,http://opendatacommunities.org/id/metropolitan-district-council/walsall,WC110-600,30/11/2019,Adult Social Care,ANSON COURT RESIDENTIAL HOME,08/11/2019,"1,972.24",73501-RESIDENTIAL EMI,PHYSICAL SUPPORT,Third Party Payments,Revenue
Walsall Council,http://opendatacommunities.org/id/metropolitan-district-council/walsall,WC110-601,30/11/2019,Adult Social Care,ANSON COURT RESIDENTIAL HOME,08/11/2019,"1,972.24",73501-RESIDENTIAL EMI,SUPPORT WITH MEMORY & COGNITION,Third Party Payments,Revenue
Walsall Council,http://opendatacommunities.org/id/metropolitan-district-council/walsall,WC110-602,30/11/2019,Adult Social Care,ANSON COURT RESIDENTIAL HOME,08/11/2019,"1,972.24",73501-RESIDENTIAL EMI,SUPPORT WITH MEMORY & COGNITION,Third Party Payments,Revenue
Walsall Council,http://opendatacommunities.org/id/metropolitan-district-council/walsall,WC110-603,30/11/2019,Adult Social Care,ANSON COURT RESIDENTIAL HOME,08/11/2019,"1,972.24",73501-RESIDENTIAL EMI,SOCIAL SUPPORT,Third Party Payments,Revenue
Walsall Council,http://opendatacommunities.org/id/metropolitan-district-council/walsall,WC110-604,30/11/2019,Adult Social Care,ANSON COURT RESIDENTIAL HOME,08/11/2019,"2,052.24",73501-RESIDENTIAL EMI,MENTAL HEALTH SUPPORT,Third Party Payments,Revenue
Walsall Council,http://opendatacommunities.org/id/metropolitan-district-council/walsall,WC110-605,30/11/2019,Adult Social Care,ANSON COURT RESIDENTIAL HOME,08/11/2019,"2,092.24",73501-RESIDENTIAL EMI,PHYSICAL SUPPORT,Third Party Payments,Revenue
Walsall Council,http://opendatacommunities.org/id/metropolitan-district-council/walsall,WC110-606,30/11/2019,Adult Social Care,ANSON COURT RESIDENTIAL HOME,08/11/2019,"2,092.24",73501-RESIDENTIAL EMI,MENTAL HEALTH SUPPORT,Third Party Payments,Revenue
Walsall Council,http://opendatacommunities.org/id/metropolitan-district-council/walsall,WC110-607,30/11/2019,Adult Social Care,ANSON COURT RESIDENTIAL HOME,08/11/2019,"2,092.24",73501-RESIDENTIAL EMI,MENTAL HEALTH SUPPORT,Third Party Payments,Revenue
Walsall Council,http://opendatacommunities.org/id/metropolitan-district-council/walsall,WC110-608,30/11/2019,Adult Social Care,ANSON COURT RESIDENTIAL HOME,08/11/2019,"2,172.24",73501-RESIDENTIAL EMI,SOCIAL SUPPORT,Third Party Payments,Revenue
Walsall Council,http://opendatacommunities.org/id/metropolitan-district-council/walsall,WC110-609,30/11/2019,Adult Social Care,ANSON COURT RESIDENTIAL HOME,08/11/2019,"2,172.24",73501-RESIDENTIAL EMI,PHYSICAL SUPPORT,Third Party Payments,Revenue
Walsall Council,http://opendatacommunities.org/id/metropolitan-district-council/walsall,WC110-610,30/11/2019,Adult Social Care,ANSON COURT RESIDENTIAL HOME,08/11/2019,"2,172.24",73501-RESIDENTIAL EMI,PHYSICAL SUPPORT,Third Party Payments,Revenue
Walsall Council,http://opendatacommunities.org/id/metropolitan-district-council/walsall,WC110-611,30/11/2019,Childrens,REDACTED,14/11/2019,604.00,74510-RESIDENTS ORDERS,ADOPTION ALLOWANCES,Third Party Payments,Revenue
Walsall Council,http://opendatacommunities.org/id/metropolitan-district-council/walsall,WC110-612,30/11/2019,Childrens,ANTI-PEST PEST CONTROL SERVICES,06/11/2019,210.00,73025-PROFESSIONAL SERVICES-PRIV CONTRACTOR & OTHER AGENCIES,BIRCHILLS CHILDCARE SERVICE,Third Party Payments,Revenue
Walsall Council,http://opendatacommunities.org/id/metropolitan-district-council/walsall,WC110-613,30/11/2019,Childrens,REDACTED,14/11/2019,495.85,74509-SPECIAL GUARDIANSHIP ORDERS,ADOPTION ALLOWANCES,Transfer Payments,Revenue
Walsall Council,http://opendatacommunities.org/id/metropolitan-district-council/walsall,WC110-614,30/11/2019,Economy & Environment,APCOA PARKING SERVICES (UK) LTD,06/11/2019,"55,720.25",73025-PROFESSIONAL SERVICES-PRIV CONTRACTOR & OTHER AGENCIES,PARKING SERVICES,Third Party Payments,Revenue
Walsall Council,http://opendatacommunities.org/id/metropolitan-district-council/walsall,WC110-615,30/11/2019,Childrens,APP CARZ,08/11/2019,288.00,52000-WITH DRIVER-HIRE OF VEHICLES,HOME TO SCHOOL TRANSPORT,Transport,Revenue
Walsall Council,http://opendatacommunities.org/id/metropolitan-district-council/walsall,WC110-616,30/11/2019,Childrens,APP CARZ,08/11/2019,293.60,52000-WITH DRIVER-HIRE OF VEHICLES,HOME TO SCHOOL TRANSPORT,Transport,Revenue
Walsall Council,http://opendatacommunities.org/id/metropolitan-district-council/walsall,WC110-617,30/11/2019,Childrens,APP CARZ,08/11/2019,316.80,52000-WITH DRIVER-HIRE OF VEHICLES,HOME TO SCHOOL TRANSPORT,Transport,Revenue
Walsall Council,http://opendatacommunities.org/id/metropolitan-district-council/walsall,WC110-618,30/11/2019,Childrens,APP CARZ,08/11/2019,335.00,52000-WITH DRIVER-HIRE OF VEHICLES,HOME TO SCHOOL TRANSPORT,Transport,Revenue
Walsall Council,http://opendatacommunities.org/id/metropolitan-district-council/walsall,WC110-619,30/11/2019,Childrens,APP CARZ,08/11/2019,335.20,52000-WITH DRIVER-HIRE OF VEHICLES,HOME TO SCHOOL TRANSPORT,Transport,Revenue
Walsall Council,http://opendatacommunities.org/id/metropolitan-district-council/walsall,WC110-620,30/11/2019,Childrens,APP CARZ,08/11/2019,335.20,52000-WITH DRIVER-HIRE OF VEHICLES,HOME TO SCHOOL TRANSPORT,Transport,Revenue
Walsall Council,http://opendatacommunities.org/id/metropolitan-district-council/walsall,WC110-621,30/11/2019,Childrens,APP CARZ,08/11/2019,356.80,52000-WITH DRIVER-HIRE OF VEHICLES,HOME TO SCHOOL TRANSPORT,Transport,Revenue
Walsall Council,http://opendatacommunities.org/id/metropolitan-district-council/walsall,WC110-622,30/11/2019,Childrens,APP CARZ,08/11/2019,357.60,52000-WITH DRIVER-HIRE OF VEHICLES,HOME TO SCHOOL TRANSPORT,Transport,Revenue
Walsall Council,http://opendatacommunities.org/id/metropolitan-district-council/walsall,WC110-623,30/11/2019,Childrens,APP CARZ,08/11/2019,357.60,52000-WITH DRIVER-HIRE OF VEHICLES,HOME TO SCHOOL TRANSPORT,Transport,Revenue
Walsall Council,http://opendatacommunities.org/id/metropolitan-district-council/walsall,WC110-624,30/11/2019,Childrens,APP CARZ,08/11/2019,373.60,52000-WITH DRIVER-HIRE OF VEHICLES,HOME TO SCHOOL TRANSPORT,Transport,Revenue
Walsall Council,http://opendatacommunities.org/id/metropolitan-district-council/walsall,WC110-625,30/11/2019,Childrens,APP CARZ,08/11/2019,373.60,52000-WITH DRIVER-HIRE OF VEHICLES,HOME TO SCHOOL TRANSPORT,Transport,Revenue
Walsall Council,http://opendatacommunities.org/id/metropolitan-district-council/walsall,WC110-626,30/11/2019,Childrens,APP CARZ,08/11/2019,374.00,52000-WITH DRIVER-HIRE OF VEHICLES,HOME TO SCHOOL TRANSPORT,Transport,Revenue
Walsall Council,http://opendatacommunities.org/id/metropolitan-district-council/walsall,WC110-627,30/11/2019,Childrens,APP CARZ,08/11/2019,374.00,52000-WITH DRIVER-HIRE OF VEHICLES,HOME TO SCHOOL TRANSPORT,Transport,Revenue
Walsall Council,http://opendatacommunities.org/id/metropolitan-district-council/walsall,WC110-628,30/11/2019,Childrens,APP CARZ,08/11/2019,400.00,52000-WITH DRIVER-HIRE OF VEHICLES,HOME TO SCHOOL TRANSPORT,Transport,Revenue
Walsall Council,http://opendatacommunities.org/id/metropolitan-district-council/walsall,WC110-629,30/11/2019,Resources and Transformation,APP CARZ,21/11/2019,488.30,52000-WITH DRIVER-HIRE OF VEHICLES,ADVICE & GUIDANCE SERVICE,Transport,Revenue
Walsall Council,http://opendatacommunities.org/id/metropolitan-district-council/walsall,WC110-630,30/11/2019,Childrens,APP CARZ,08/11/2019,586.40,52000-WITH DRIVER-HIRE OF VEHICLES,HOME TO SCHOOL TRANSPORT,Transport,Revenue
Walsall Council,http://opendatacommunities.org/id/metropolitan-district-council/walsall,WC110-631,30/11/2019,Childrens,APP CARZ,08/11/2019,744.00,52000-WITH DRIVER-HIRE OF VEHICLES,HOME TO SCHOOL TRANSPORT,Transport,Revenue
Walsall Council,http://opendatacommunities.org/id/metropolitan-district-council/walsall,WC110-632,30/11/2019,Childrens,APP CARZ,08/11/2019,"1,600.00",52000-WITH DRIVER-HIRE OF VEHICLES,HOME TO SCHOOL TRANSPORT,Transport,Revenue
Walsall Council,http://opendatacommunities.org/id/metropolitan-district-council/walsall,WC110-633,30/11/2019,Childrens,APPLE TRANSCRIPTION LIMITED,18/11/2019,213.50,73014-LEGAL FEES-PRIV CONTRACTOR FEES,GENERAL MANAGEMENT SUPPORT (INC LEGAL),Third Party Payments,Revenue
Walsall Council,http://opendatacommunities.org/id/metropolitan-district-council/walsall,WC110-634,30/11/2019,Childrens,AQUAID (BIRMINGHAM CENTRAL),01/11/2019,408.00,61009-BEVERAGES-PROVISIONS,PELSALL EDC,Supplies & Services,Revenue
Walsall Council,http://opendatacommunities.org/id/metropolitan-district-council/walsall,WC110-635,30/11/2019,Economy & Environment,AQUAMO LTD,01/11/2019,303.48,60008-REPAIR & MAINTENANCE OF FURNITURE & EQUIPMENT,DARLASTON LEISURE CENTRE,Supplies & Services,Revenue
Walsall Council,http://opendatacommunities.org/id/metropolitan-district-council/walsall,WC110-636,30/11/2019,Adult Social Care,ARBORETUM NURSING HOME.,08/11/2019,"2,143.72",73502-NURSING,PHYSICAL SUPPORT,Third Party Payments,Revenue
Walsall Council,http://opendatacommunities.org/id/metropolitan-district-council/walsall,WC110-637,30/11/2019,Adult Social Care,ARBORETUM NURSING HOME.,08/11/2019,"2,143.72",73502-NURSING,PHYSICAL SUPPORT,Third Party Payments,Revenue
Walsall Council,http://opendatacommunities.org/id/metropolitan-district-council/walsall,WC110-638,30/11/2019,Adult Social Care,ARBORETUM NURSING HOME.,08/11/2019,"2,143.72",73502-NURSING,PHYSICAL SUPPORT,Third Party Payments,Revenue
Walsall Council,http://opendatacommunities.org/id/metropolitan-district-council/walsall,WC110-639,30/11/2019,Adult Social Care,ARBORETUM NURSING HOME.,08/11/2019,"2,223.72",73502-NURSING,PHYSICAL SUPPORT,Third Party Payments,Revenue
Walsall Council,http://opendatacommunities.org/id/metropolitan-district-council/walsall,WC110-640,30/11/2019,Adult Social Care,ARBORETUM NURSING HOME.,08/11/2019,"2,243.72",73502-NURSING,PHYSICAL SUPPORT,Third Party Payments,Revenue
Walsall Council,http://opendatacommunities.org/id/metropolitan-district-council/walsall,WC110-641,30/11/2019,Adult Social Care,ARBORETUM NURSING HOME.,08/11/2019,"2,263.72",73502-NURSING,PHYSICAL SUPPORT,Third Party Payments,Revenue
Walsall Council,http://opendatacommunities.org/id/metropolitan-district-council/walsall,WC110-642,30/11/2019,Adult Social Care,ARBORETUM NURSING HOME.,08/11/2019,"2,263.72",73502-NURSING,PHYSICAL SUPPORT,Third Party Payments,Revenue
Walsall Council,http://opendatacommunities.org/id/metropolitan-district-council/walsall,WC110-643,30/11/2019,Adult Social Care,ARBORETUM NURSING HOME.,08/11/2019,"2,263.72",73502-NURSING,PHYSICAL SUPPORT,Third Party Payments,Revenue
Walsall Council,http://opendatacommunities.org/id/metropolitan-district-council/walsall,WC110-644,30/11/2019,Adult Social Care,ARBORETUM NURSING HOME.,08/11/2019,"2,303.72",73502-NURSING,PHYSICAL SUPPORT,Third Party Payments,Revenue
Walsall Council,http://opendatacommunities.org/id/metropolitan-district-council/walsall,WC110-645,30/11/2019,Adult Social Care,ARBORETUM NURSING HOME.,08/11/2019,"2,303.72",73502-NURSING,SOCIAL SUPPORT,Third Party Payments,Revenue
Walsall Council,http://opendatacommunities.org/id/metropolitan-district-council/walsall,WC110-646,30/11/2019,Adult Social Care,ARBORETUM NURSING HOME.,08/11/2019,"2,303.72",73502-NURSING,PHYSICAL SUPPORT,Third Party Payments,Revenue
Walsall Council,http://opendatacommunities.org/id/metropolitan-district-council/walsall,WC110-647,30/11/2019,Adult Social Care,ARBORETUM NURSING HOME.,08/11/2019,"2,478.08",73503-NURSING EMI,PHYSICAL SUPPORT,Third Party Payments,Revenue
Walsall Council,http://opendatacommunities.org/id/metropolitan-district-council/walsall,WC110-648,30/11/2019,Adult Social Care,ARBORETUM NURSING HOME.,25/11/2019,"13,410.00",73025-PROFESSIONAL SERVICES-PRIV CONTRACTOR & OTHER AGENCIES,TRANSITIONAL CARE SUPPORT TEAM,Third Party Payments,Revenue
Walsall Council,http://opendatacommunities.org/id/metropolitan-district-council/walsall,WC110-649,30/11/2019,Economy & Environment,ARCADIS,01/11/2019,"1,000.00",63102-CONSULTANTS FEES - CORPORATE,UNCAPITALISED SPEND,Supplies & Services,Revenue
Walsall Council,http://opendatacommunities.org/id/metropolitan-district-council/walsall,WC110-650,30/11/2019,Economy & Environment,ARCADIS,01/11/2019,"8,750.00",63000-PROFESSIONAL FEES AND SERVICES,UNCAPITALISED SPEND,Supplies & Services,Revenue
Walsall Council,http://opendatacommunities.org/id/metropolitan-district-council/walsall,WC110-651,30/11/2019,Childrens,ASBESTOS ABATEMENT SERVICES,11/11/2019,300.00,01006-SITE WORKS MAIN CONTRACTORS,CFR 1297 ST MICHAELS PRIMARY SCHOOL EXPANSION,Capital,Capital
Walsall Council,http://opendatacommunities.org/id/metropolitan-district-council/walsall,WC110-652,30/11/2019,Childrens,ASBESTOS ABATEMENT SERVICES,14/11/2019,"1,589.00",01006-SITE WORKS MAIN CONTRACTORS,CFR 1297 SHORT HEATH/ROSEDALE/LANE HEAD FED PRIMARY SCHOOL EXPANSION,Capital,Capital
Walsall Council,http://opendatacommunities.org/id/metropolitan-district-council/walsall,WC110-653,30/11/2019,Resources and Transformation,ASCENDANT SOLUTIONS LTD,11/11/2019,"9,000.00",30030-EXTERNAL TRAINING,REVENUES,Employees,Revenue
Walsall Council,http://opendatacommunities.org/id/metropolitan-district-council/walsall,WC110-654,30/11/2019,Economy & Environment,ASDA PHARMACY,27/11/2019,573.10,71007-CONTRIBUTION TO PCT,PUBLIC HEALTH BUSINESS SUPPORT,Third Party Payments,Revenue
Walsall Council,http://opendatacommunities.org/id/metropolitan-district-council/walsall,WC110-655,30/11/2019,Childrens,ASDAN LIMITED,15/11/2019,332.00,63000-PROFESSIONAL FEES AND SERVICES,VIRTUAL SCHOOL CENTRAL PUPIL PREMIUM,Supplies & Services,Revenue
Walsall Council,http://opendatacommunities.org/id/metropolitan-district-council/walsall,WC110-656,30/11/2019,Adult Social Care,ASH GRANGE CARE HOME,12/11/2019,268.08,73501-RESIDENTIAL EMI,PHYSICAL SUPPORT,Third Party Payments,Revenue
Walsall Council,http://opendatacommunities.org/id/metropolitan-district-council/walsall,WC110-657,30/11/2019,Adult Social Care,ASH GRANGE CARE HOME,08/11/2019,"1,774.96",73500-RESIDENTIAL,SUPPORT WITH MEMORY & COGNITION,Third Party Payments,Revenue
Walsall Council,http://opendatacommunities.org/id/metropolitan-district-council/walsall,WC110-658,30/11/2019,Adult Social Care,ASH GRANGE CARE HOME,08/11/2019,"1,774.96",73500-RESIDENTIAL,MENTAL HEALTH SUPPORT,Third Party Payments,Revenue
Walsall Council,http://opendatacommunities.org/id/metropolitan-district-council/walsall,WC110-659,30/11/2019,Adult Social Care,ASH GRANGE CARE HOME,27/11/2019,"1,821.43",73025-PROFESSIONAL SERVICES-PRIV CONTRACTOR & OTHER AGENCIES,TRANSITIONAL CARE SUPPORT TEAM,Third Party Payments,Revenue
Walsall Council,http://opendatacommunities.org/id/metropolitan-district-council/walsall,WC110-660,30/11/2019,Adult Social Care,ASH GRANGE CARE HOME,08/11/2019,"2,143.72",73502-NURSING,MENTAL HEALTH SUPPORT,Third Party Payments,Revenue
Walsall Council,http://opendatacommunities.org/id/metropolitan-district-council/walsall,WC110-661,30/11/2019,Adult Social Care,ASH GRANGE CARE HOME,08/11/2019,"2,143.72",73502-NURSING,PHYSICAL SUPPORT,Third Party Payments,Revenue
Walsall Council,http://opendatacommunities.org/id/metropolitan-district-council/walsall,WC110-662,30/11/2019,Adult Social Care,ASH GRANGE CARE HOME,08/11/2019,"2,143.72",73502-NURSING,PHYSICAL SUPPORT,Third Party Payments,Revenue
Walsall Council,http://opendatacommunities.org/id/metropolitan-district-council/walsall,WC110-663,30/11/2019,Adult Social Care,ASH GRANGE CARE HOME,08/11/2019,"2,143.72",73502-NURSING,PHYSICAL SUPPORT,Third Party Payments,Revenue
Walsall Council,http://opendatacommunities.org/id/metropolitan-district-council/walsall,WC110-664,30/11/2019,Adult Social Care,ASH GRANGE CARE HOME,08/11/2019,"2,143.72",73502-NURSING,PHYSICAL SUPPORT,Third Party Payments,Revenue
Walsall Council,http://opendatacommunities.org/id/metropolitan-district-council/walsall,WC110-665,30/11/2019,Adult Social Care,ASH GRANGE CARE HOME,08/11/2019,"2,143.72",73502-NURSING,PHYSICAL SUPPORT,Third Party Payments,Revenue
Walsall Council,http://opendatacommunities.org/id/metropolitan-district-council/walsall,WC110-666,30/11/2019,Adult Social Care,ASH GRANGE CARE HOME,08/11/2019,"2,143.72",73502-NURSING,PHYSICAL SUPPORT,Third Party Payments,Revenue
Walsall Council,http://opendatacommunities.org/id/metropolitan-district-council/walsall,WC110-667,30/11/2019,Adult Social Care,ASH GRANGE CARE HOME,08/11/2019,"2,143.72",73502-NURSING,MENTAL HEALTH SUPPORT,Third Party Payments,Revenue
Walsall Council,http://opendatacommunities.org/id/metropolitan-district-council/walsall,WC110-668,30/11/2019,Adult Social Care,ASH GRANGE CARE HOME,08/11/2019,"2,143.72",73502-NURSING,PHYSICAL SUPPORT,Third Party Payments,Revenue
Walsall Council,http://opendatacommunities.org/id/metropolitan-district-council/walsall,WC110-669,30/11/2019,Adult Social Care,ASH GRANGE CARE HOME,08/11/2019,"2,143.72",73502-NURSING,MENTAL HEALTH SUPPORT,Third Party Payments,Revenue
Walsall Council,http://opendatacommunities.org/id/metropolitan-district-council/walsall,WC110-670,30/11/2019,Adult Social Care,ASH GRANGE CARE HOME,08/11/2019,"2,143.72",73502-NURSING,SUPPORT WITH MEMORY & COGNITION,Third Party Payments,Revenue
Walsall Council,http://opendatacommunities.org/id/metropolitan-district-council/walsall,WC110-671,30/11/2019,Adult Social Care,ASH GRANGE CARE HOME,08/11/2019,"2,143.72",73502-NURSING,PHYSICAL SUPPORT,Third Party Payments,Revenue
Walsall Council,http://opendatacommunities.org/id/metropolitan-district-council/walsall,WC110-672,30/11/2019,Adult Social Care,ASH GRANGE CARE HOME,08/11/2019,"2,143.72",73502-NURSING,PHYSICAL SUPPORT,Third Party Payments,Revenue
Walsall Council,http://opendatacommunities.org/id/metropolitan-district-council/walsall,WC110-673,30/11/2019,Adult Social Care,ASH GRANGE CARE HOME,08/11/2019,"2,143.72",73502-NURSING,PHYSICAL SUPPORT,Third Party Payments,Revenue
Walsall Council,http://opendatacommunities.org/id/metropolitan-district-council/walsall,WC110-674,30/11/2019,Adult Social Care,ASH GRANGE CARE HOME,08/11/2019,"2,263.72",73502-NURSING,PHYSICAL SUPPORT,Third Party Payments,Revenue
Walsall Council,http://opendatacommunities.org/id/metropolitan-district-council/walsall,WC110-675,30/11/2019,Adult Social Care,ASH GRANGE CARE HOME,08/11/2019,"2,303.72",73502-NURSING,PHYSICAL SUPPORT,Third Party Payments,Revenue
Walsall Council,http://opendatacommunities.org/id/metropolitan-district-council/walsall,WC110-676,30/11/2019,Adult Social Care,ASH GRANGE CARE HOME,08/11/2019,"2,343.72",73502-NURSING,PHYSICAL SUPPORT,Third Party Payments,Revenue
Walsall Council,http://opendatacommunities.org/id/metropolitan-district-council/walsall,WC110-677,30/11/2019,Adult Social Care,ASH GRANGE CARE HOME,08/11/2019,"2,343.72",73502-NURSING,PHYSICAL SUPPORT,Third Party Payments,Revenue
Walsall Council,http://opendatacommunities.org/id/metropolitan-district-council/walsall,WC110-678,30/11/2019,Adult Social Care,ASH GRANGE CARE HOME,08/11/2019,"2,343.72",73502-NURSING,PHYSICAL SUPPORT,Third Party Payments,Revenue
Walsall Council,http://opendatacommunities.org/id/metropolitan-district-council/walsall,WC110-679,30/11/2019,Adult Social Care,ASH GRANGE CARE HOME,08/11/2019,"2,358.08",73503-NURSING EMI,PHYSICAL SUPPORT,Third Party Payments,Revenue
Walsall Council,http://opendatacommunities.org/id/metropolitan-district-council/walsall,WC110-680,30/11/2019,Adult Social Care,ASH GRANGE CARE HOME,08/11/2019,"2,358.08",73503-NURSING EMI,PHYSICAL SUPPORT,Third Party Payments,Revenue
Walsall Council,http://opendatacommunities.org/id/metropolitan-district-council/walsall,WC110-681,30/11/2019,Adult Social Care,ASH GRANGE CARE HOME,08/11/2019,"2,423.72",73502-NURSING,PHYSICAL SUPPORT,Third Party Payments,Revenue
Walsall Council,http://opendatacommunities.org/id/metropolitan-district-council/walsall,WC110-682,30/11/2019,Adult Social Care,ASH GRANGE CARE HOME,08/11/2019,"2,423.72",73502-NURSING,SOCIAL SUPPORT,Third Party Payments,Revenue
Walsall Council,http://opendatacommunities.org/id/metropolitan-district-council/walsall,WC110-683,30/11/2019,Adult Social Care,ASH GRANGE CARE HOME,08/11/2019,"2,463.72",73502-NURSING,PHYSICAL SUPPORT,Third Party Payments,Revenue
Walsall Council,http://opendatacommunities.org/id/metropolitan-district-council/walsall,WC110-684,30/11/2019,Adult Social Care,ASH GRANGE CARE HOME,08/11/2019,"2,520.68",73500-RESIDENTIAL,LEARNING DISABILITY SUPPORT,Third Party Payments,Revenue
Walsall Council,http://opendatacommunities.org/id/metropolitan-district-council/walsall,WC110-685,30/11/2019,Adult Social Care,ASH GRANGE CARE HOME,08/11/2019,"2,638.08",73503-NURSING EMI,PHYSICAL SUPPORT,Third Party Payments,Revenue
Walsall Council,http://opendatacommunities.org/id/metropolitan-district-council/walsall,WC110-686,30/11/2019,Adult Social Care,ASH GRANGE CARE HOME,08/11/2019,"2,752.04",73502-NURSING,SOCIAL SUPPORT,Third Party Payments,Revenue
Walsall Council,http://opendatacommunities.org/id/metropolitan-district-council/walsall,WC110-687,30/11/2019,Adult Social Care,REDACTED,01/11/2019,"1,221.60",73506-DIRECT PAYMENT,LEARNING DISABILITY SUPPORT,Third Party Payments,Revenue
Walsall Council,http://opendatacommunities.org/id/metropolitan-district-council/walsall,WC110-688,30/11/2019,Economy & Environment,ASKEWS AND HOLTS LIBRARY SERVICES LTD,01/11/2019,651.53,60501-LIBRARY BOOKS,LIBRARY MANAGEMENT,Supplies & Services,Revenue
Walsall Council,http://opendatacommunities.org/id/metropolitan-district-council/walsall,WC110-689,30/11/2019,Economy & Environment,ASKEWS AND HOLTS LIBRARY SERVICES LTD,13/11/2019,792.71,60501-LIBRARY BOOKS,LIBRARY MANAGEMENT,Supplies & Services,Revenue
Walsall Council,http://opendatacommunities.org/id/metropolitan-district-council/walsall,WC110-690,30/11/2019,Economy & Environment,ASKEWS AND HOLTS LIBRARY SERVICES LTD,27/11/2019,"1,042.66",60501-LIBRARY BOOKS,LIBRARY MANAGEMENT,Supplies & Services,Revenue
Walsall Council,http://opendatacommunities.org/id/metropolitan-district-council/walsall,WC110-691,30/11/2019,Economy & Environment,ASKEWS AND HOLTS LIBRARY SERVICES LTD,27/11/2019,"1,227.51",60501-LIBRARY BOOKS,LIBRARY MANAGEMENT,Supplies & Services,Revenue
Walsall Council,http://opendatacommunities.org/id/metropolitan-district-council/walsall,WC110-692,30/11/2019,Economy & Environment,ASKEWS AND HOLTS LIBRARY SERVICES LTD,11/11/2019,"1,406.13",60501-LIBRARY BOOKS,LIBRARY MANAGEMENT,Supplies & Services,Revenue
Walsall Council,http://opendatacommunities.org/id/metropolitan-district-council/walsall,WC110-693,30/11/2019,Economy & Environment,ASKEWS AND HOLTS LIBRARY SERVICES LTD,01/11/2019,"2,710.13",60501-LIBRARY BOOKS,LIBRARY MANAGEMENT,Supplies & Services,Revenue
Walsall Council,http://opendatacommunities.org/id/metropolitan-district-council/walsall,WC110-694,30/11/2019,Economy & Environment,ASKEWS AND HOLTS LIBRARY SERVICES LTD,01/11/2019,"2,932.77",60501-LIBRARY BOOKS,LIBRARY MANAGEMENT,Supplies & Services,Revenue
Walsall Council,http://opendatacommunities.org/id/metropolitan-district-council/walsall,WC110-695,30/11/2019,Adult Social Care,REDACTED,01/11/2019,775.20,73506-DIRECT PAYMENT,PHYSICAL SUPPORT,Third Party Payments,Revenue
Walsall Council,http://opendatacommunities.org/id/metropolitan-district-council/walsall,WC110-696,30/11/2019,Childrens,ASPIRE PEOPLE LTD.,12/11/2019,440.00,63000-PROFESSIONAL FEES AND SERVICES,ADMISSIONS & PUPIL PLACE PLANNING,Supplies & Services,Revenue
Walsall Council,http://opendatacommunities.org/id/metropolitan-district-council/walsall,WC110-697,30/11/2019,Childrens,ASPIRE PEOPLE LTD.,12/11/2019,550.00,63000-PROFESSIONAL FEES AND SERVICES,ADMISSIONS & PUPIL PLACE PLANNING,Supplies & Services,Revenue
Walsall Council,http://opendatacommunities.org/id/metropolitan-district-council/walsall,WC110-698,30/11/2019,Childrens,ASPIRE PEOPLE LTD.,12/11/2019,550.00,63000-PROFESSIONAL FEES AND SERVICES,ADMISSIONS & PUPIL PLACE PLANNING,Supplies & Services,Revenue
Walsall Council,http://opendatacommunities.org/id/metropolitan-district-council/walsall,WC110-699,30/11/2019,Childrens,ASPIRE PEOPLE LTD.,12/11/2019,550.00,63000-PROFESSIONAL FEES AND SERVICES,ADMISSIONS & PUPIL PLACE PLANNING,Supplies & Services,Revenue
Walsall Council,http://opendatacommunities.org/id/metropolitan-district-council/walsall,WC110-700,30/11/2019,Childrens,ASPIRE PEOPLE LTD.,12/11/2019,550.00,63000-PROFESSIONAL FEES AND SERVICES,ADMISSIONS & PUPIL PLACE PLANNING,Supplies & Services,Revenue
Walsall Council,http://opendatacommunities.org/id/metropolitan-district-council/walsall,WC110-701,30/11/2019,Childrens,ASPIRE PEOPLE LTD.,12/11/2019,550.00,63000-PROFESSIONAL FEES AND SERVICES,ADMISSIONS & PUPIL PLACE PLANNING,Supplies & Services,Revenue
Walsall Council,http://opendatacommunities.org/id/metropolitan-district-council/walsall,WC110-702,30/11/2019,Adult Social Care,ASSURED HEALTHCARE SOLUTIONS (PARK FARM LODGE),08/11/2019,"2,034.44",73500-RESIDENTIAL,PHYSICAL SUPPORT,Third Party Payments,Revenue
Walsall Council,http://opendatacommunities.org/id/metropolitan-district-council/walsall,WC110-703,30/11/2019,Economy & Environment,ATHWAL NEWS LTD,20/11/2019,346.14,60501-LIBRARY BOOKS,LIBRARY MANAGEMENT,Supplies & Services,Revenue
Walsall Council,http://opendatacommunities.org/id/metropolitan-district-council/walsall,WC110-704,30/11/2019,Economy & Environment,ATHWAL NEWS LTD,27/11/2019,411.73,60501-LIBRARY BOOKS,LIBRARY MANAGEMENT,Supplies & Services,Revenue
Walsall Council,http://opendatacommunities.org/id/metropolitan-district-council/walsall,WC110-705,30/11/2019,Economy & Environment,ATHWAL NEWS LTD,20/11/2019,427.93,60501-LIBRARY BOOKS,LIBRARY MANAGEMENT,Supplies & Services,Revenue
Walsall Council,http://opendatacommunities.org/id/metropolitan-district-council/walsall,WC110-706,30/11/2019,Economy & Environment,ATKINS LIMITED,18/11/2019,690.00,01001-OTHER CONSULTANTS FEES,CFR 1366 M6 J10 DESIGNATED FUNDS NMU ROUTE,Capital,Capital
Walsall Council,http://opendatacommunities.org/id/metropolitan-district-council/walsall,WC110-707,30/11/2019,Economy & Environment,ATKINS LIMITED,06/11/2019,"16,136.67",73025-PROFESSIONAL SERVICES-PRIV CONTRACTOR & OTHER AGENCIES,SECTION 38 OF HIGHWAYS ACT - SUPERVISION,Third Party Payments,Revenue
Walsall Council,http://opendatacommunities.org/id/metropolitan-district-council/walsall,WC110-708,30/11/2019,Resources and Transformation,AURORA GRAPHICS & DISPLAYS LTD,26/11/2019,467.94,62008-OUTWORK PRINT & DESIGN,PRINTING SERVICES,Supplies & Services,Revenue
Walsall Council,http://opendatacommunities.org/id/metropolitan-district-council/walsall,WC110-709,30/11/2019,Childrens,AUSCRIPT LIMITED,27/11/2019,303.39,73014-LEGAL FEES-PRIV CONTRACTOR FEES,GENERAL MANAGEMENT SUPPORT (INC LEGAL),Third Party Payments,Revenue
Walsall Council,http://opendatacommunities.org/id/metropolitan-district-council/walsall,WC110-710,30/11/2019,Adult Social Care,AUTISM WEST MIDLANDS,08/11/2019,"7,172.48",73500-RESIDENTIAL,LEARNING DISABILITY SUPPORT,Third Party Payments,Revenue
Walsall Council,http://opendatacommunities.org/id/metropolitan-district-council/walsall,WC110-711,30/11/2019,Adult Social Care,AUTISM WEST MIDLANDS,04/11/2019,"10,833.00",70000-SOCIAL SERVICES-FEES TO VOLUNTARY BODIES,COMPLEX NEEDS SLA,Third Party Payments,Revenue
Walsall Council,http://opendatacommunities.org/id/metropolitan-district-council/walsall,WC110-712,30/11/2019,Adult Social Care,AUTISM WEST MIDLANDS 001,08/11/2019,"5,542.84",73500-RESIDENTIAL,LEARNING DISABILITY SUPPORT,Third Party Payments,Revenue
Walsall Council,http://opendatacommunities.org/id/metropolitan-district-council/walsall,WC110-713,30/11/2019,Economy & Environment,AUTORITE INDUSTRIES (WILLENHALL)LTD,20/11/2019,325.00,73025-PROFESSIONAL SERVICES-PRIV CONTRACTOR & OTHER AGENCIES,FLEET,Third Party Payments,Revenue
Walsall Council,http://opendatacommunities.org/id/metropolitan-district-council/walsall,WC110-714,30/11/2019,Adult Social Care,REDACTED,01/11/2019,"3,182.40",73506-DIRECT PAYMENT,LEARNING DISABILITY SUPPORT,Third Party Payments,Revenue
Walsall Council,http://opendatacommunities.org/id/metropolitan-district-council/walsall,WC110-715,30/11/2019,Resources and Transformation,AZTEC CONSTRUCTION (MIDLANDS) LTD,22/11/2019,"5,666.66",01045-PRIVATE GRANTS,CFR 1359 DISABLED FACILITIES GRANT,Capital,Capital
Walsall Council,http://opendatacommunities.org/id/metropolitan-district-council/walsall,WC110-716,30/11/2019,Childrens,REDACTED,05/11/2019,464.00,76000-TRANSFER PAYMENTS - SOCIAL SERVICES CLIENTS,TRANSITION AND LEAVING CARE PLACEMENTS,Transfer Payments,Revenue
Walsall Council,http://opendatacommunities.org/id/metropolitan-district-council/walsall,WC110-717,30/11/2019,Resources and Transformation,BAART HARRIES NEWALL,01/11/2019,"1,710.00",40000-OPERATIONAL MAINTENANCE,RECHARGEABLE - NON SCHOOLS MAINTENANCE,Premises,Revenue
Walsall Council,http://opendatacommunities.org/id/metropolitan-district-council/walsall,WC110-718,30/11/2019,Adult Social Care,BACK CARE SOLUTIONS LTD,25/11/2019,809.80,60006-NEW-FURNITURE & EQUIPMENT,INTERMEDIATE CARE SERVICE,Supplies & Services,Revenue
Walsall Council,http://opendatacommunities.org/id/metropolitan-district-council/walsall,WC110-719,30/11/2019,Adult Social Care,BACK CARE SOLUTIONS LTD,14/11/2019,874.50,60006-NEW-FURNITURE & EQUIPMENT,INTERMEDIATE CARE SERVICE,Supplies & Services,Revenue
Walsall Council,http://opendatacommunities.org/id/metropolitan-district-council/walsall,WC110-720,30/11/2019,Adult Social Care,BACK CARE SOLUTIONS LTD,14/11/2019,"1,118.00",60006-NEW-FURNITURE & EQUIPMENT,INTERMEDIATE CARE SERVICE,Supplies & Services,Revenue
Walsall Council,http://opendatacommunities.org/id/metropolitan-district-council/walsall,WC110-721,30/11/2019,Economy & Environment,BAKER HALL PARTNERSHIP,13/11/2019,"1,163.50",63000-PROFESSIONAL FEES AND SERVICES,BUILDING CONTROL REVENUE FUNDED,Supplies & Services,Revenue
Walsall Council,http://opendatacommunities.org/id/metropolitan-district-council/walsall,WC110-722,30/11/2019,Adult Social Care,REDACTED,01/11/2019,"3,585.24",73506-DIRECT PAYMENT,LEARNING DISABILITY SUPPORT,Third Party Payments,Revenue
Walsall Council,http://opendatacommunities.org/id/metropolitan-district-council/walsall,WC110-723,30/11/2019,Childrens,BALTIMORE CONSULTING LTD,11/11/2019,"2,281.50",34305-AGENCY STAFF-EMPLOYEES,GENERAL MANAGEMENT SUPPORT (INC LEGAL),Employees,Revenue
Walsall Council,http://opendatacommunities.org/id/metropolitan-district-council/walsall,WC110-724,30/11/2019,Childrens,BALTIMORE CONSULTING LTD,15/11/2019,"2,281.50",34305-AGENCY STAFF-EMPLOYEES,GENERAL MANAGEMENT SUPPORT (INC LEGAL),Employees,Revenue
Walsall Council,http://opendatacommunities.org/id/metropolitan-district-council/walsall,WC110-725,30/11/2019,Adult Social Care,BALTIMORE CONSULTING LTD,15/11/2019,"3,286.00",63102-CONSULTANTS FEES - CORPORATE,SENIOR MANAGEMENT TEAM,Supplies & Services,Revenue
Walsall Council,http://opendatacommunities.org/id/metropolitan-district-council/walsall,WC110-726,30/11/2019,Adult Social Care,BALTIMORE CONSULTING LTD,05/11/2019,"4,107.50",63102-CONSULTANTS FEES - CORPORATE,SENIOR MANAGEMENT TEAM,Supplies & Services,Revenue
Walsall Council,http://opendatacommunities.org/id/metropolitan-district-council/walsall,WC110-727,30/11/2019,Adult Social Care,BALTIMORE CONSULTING LTD,25/11/2019,"4,107.50",63102-CONSULTANTS FEES - CORPORATE,SENIOR MANAGEMENT TEAM,Supplies & Services,Revenue
Walsall Council,http://opendatacommunities.org/id/metropolitan-district-council/walsall,WC110-728,30/11/2019,Adult Social Care,REDACTED,01/11/2019,"8,311.00",73506-DIRECT PAYMENT,PHYSICAL SUPPORT,Third Party Payments,Revenue
Walsall Council,http://opendatacommunities.org/id/metropolitan-district-council/walsall,WC110-729,30/11/2019,Childrens,REDACTED,14/11/2019,100.00,74504-HOLIDAY/CHRISTMAS ALLOWANCE-FOSTER CARERS,FAMILY & FRIENDS FOSTER CARE PROVISION,Transfer Payments,Revenue
Walsall Council,http://opendatacommunities.org/id/metropolitan-district-council/walsall,WC110-730,30/11/2019,Childrens,REDACTED,14/11/2019,340.00,74508-INTERNAL FOSTER CARERS-CARER FEES,FAMILY & FRIENDS FOSTER CARE PROVISION,Transfer Payments,Revenue
Walsall Council,http://opendatacommunities.org/id/metropolitan-district-council/walsall,WC110-731,30/11/2019,Childrens,REDACTED,14/11/2019,540.00,74501-MAINTENANCE ALLOWANCE-FOSTER CARERS,FAMILY & FRIENDS FOSTER CARE PROVISION,Transfer Payments,Revenue
Walsall Council,http://opendatacommunities.org/id/metropolitan-district-council/walsall,WC110-732,30/11/2019,Economy & Environment,BARCHAM TREES PLC,25/11/2019,842.00,41001-GROUNDS MAINTENANCE,ARBORETUM,Premises,Revenue
Walsall Council,http://opendatacommunities.org/id/metropolitan-district-council/walsall,WC110-733,30/11/2019,Adult Social Care,BARCHESTER HEALTHCARE HOMES LTD (EDGBASTON BEAUMONT),12/11/2019,"1,300.00",73502-NURSING,PHYSICAL SUPPORT,Third Party Payments,Revenue
Walsall Council,http://opendatacommunities.org/id/metropolitan-district-council/walsall,WC110-734,30/11/2019,Childrens,BARNARDOS SERVICES LTD,20/11/2019,"1,395.00",30030-EXTERNAL TRAINING,GENERAL MANAGEMENT SUPPORT (INC LEGAL),Employees,Revenue
Walsall Council,http://opendatacommunities.org/id/metropolitan-district-council/walsall,WC110-735,30/11/2019,Centrally Held,BARNSLEY M B C,05/11/2019,"3,000.00",64500-PUBLICATIONS/ORGANISATIONS-SUBSCRIPTIONS,CORPORATE EXPENSES,Supplies & Services,Revenue
Walsall Council,http://opendatacommunities.org/id/metropolitan-district-council/walsall,WC110-736,30/11/2019,Childrens,BARR BEACON SCHOOL TRUST,01/11/2019,627.72,66502-TOP UP FUNDING -GRANTS TO SCHOOLS,BARR BEACON SCHOOL TRUST (ACADEMY),Third Party Payments,Revenue
Walsall Council,http://opendatacommunities.org/id/metropolitan-district-council/walsall,WC110-737,30/11/2019,Adult Social Care,BARTHOLAMEW LODGE CARE HOME,08/11/2019,"2,937.88",73503-NURSING EMI,PHYSICAL SUPPORT,Third Party Payments,Revenue
Walsall Council,http://opendatacommunities.org/id/metropolitan-district-council/walsall,WC110-738,30/11/2019,Resources and Transformation,BASE 25,11/11/2019,"1,645.00",30030-EXTERNAL TRAINING,EARLY INTERVENTION YOUTH FUND,Employees,Revenue
Walsall Council,http://opendatacommunities.org/id/metropolitan-district-council/walsall,WC110-739,30/11/2019,Economy & Environment,BAT FABRICATIONS LTD,27/11/2019,420.00,73025-PROFESSIONAL SERVICES-PRIV CONTRACTOR & OTHER AGENCIES,DEPOT,Third Party Payments,Revenue
Walsall Council,http://opendatacommunities.org/id/metropolitan-district-council/walsall,WC110-740,30/11/2019,Economy & Environment,BATLEYS,22/11/2019,265.50,61009-BEVERAGES-PROVISIONS,WALSALL ARENA AND ARTS CENTRE,Supplies & Services,Revenue
Walsall Council,http://opendatacommunities.org/id/metropolitan-district-council/walsall,WC110-741,30/11/2019,Economy & Environment,BATLEYS,27/11/2019,694.50,61009-BEVERAGES-PROVISIONS,WALSALL ARENA AND ARTS CENTRE,Supplies & Services,Revenue
Walsall Council,http://opendatacommunities.org/id/metropolitan-district-council/walsall,WC110-742,30/11/2019,Economy & Environment,BATLEYS,18/11/2019,833.15,61009-BEVERAGES-PROVISIONS,WALSALL ARENA AND ARTS CENTRE,Supplies & Services,Revenue
Walsall Council,http://opendatacommunities.org/id/metropolitan-district-council/walsall,WC110-743,30/11/2019,Childrens,BEADEN POWERLEC LIMITED,18/11/2019,399.00,01006-SITE WORKS MAIN CONTRACTORS,CFR 1297 SHEPWELL SCHOOL EXPANSION,Capital,Capital
Walsall Council,http://opendatacommunities.org/id/metropolitan-district-council/walsall,WC110-744,30/11/2019,Adult Social Care,BELVIDERE COURT,08/11/2019,"2,104.04",73502-NURSING,MENTAL HEALTH SUPPORT,Third Party Payments,Revenue
Walsall Council,http://opendatacommunities.org/id/metropolitan-district-council/walsall,WC110-745,30/11/2019,Adult Social Care,BELVIDERE COURT,08/11/2019,"2,314.44",73503-NURSING EMI,PHYSICAL SUPPORT,Third Party Payments,Revenue
Walsall Council,http://opendatacommunities.org/id/metropolitan-district-council/walsall,WC110-746,30/11/2019,Adult Social Care,BELVIDERE COURT,08/11/2019,"2,800.00",73500-RESIDENTIAL,MENTAL HEALTH SUPPORT,Third Party Payments,Revenue
Walsall Council,http://opendatacommunities.org/id/metropolitan-district-council/walsall,WC110-747,30/11/2019,Adult Social Care,REDACTED,01/11/2019,"2,569.64",73506-DIRECT PAYMENT,LEARNING DISABILITY SUPPORT,Third Party Payments,Revenue
Walsall Council,http://opendatacommunities.org/id/metropolitan-district-council/walsall,WC110-748,30/11/2019,Childrens,BENTLEY CHILD CARE,22/11/2019,523.00,63120-CRECHE FACILITIES-SERVICES-FEES,SAFEGUARDING & FAMILY SUPPORT,Supplies & Services,Revenue
Walsall Council,http://opendatacommunities.org/id/metropolitan-district-council/walsall,WC110-749,30/11/2019,Adult Social Care,BENTLEY COURT PRIORY,08/11/2019,"2,143.72",73502-NURSING,PHYSICAL SUPPORT,Third Party Payments,Revenue
Walsall Council,http://opendatacommunities.org/id/metropolitan-district-council/walsall,WC110-750,30/11/2019,Adult Social Care,BENTLEY COURT PRIORY,08/11/2019,"2,358.08",73503-NURSING EMI,MENTAL HEALTH SUPPORT,Third Party Payments,Revenue
Walsall Council,http://opendatacommunities.org/id/metropolitan-district-council/walsall,WC110-751,30/11/2019,Adult Social Care,BENTLEY COURT PRIORY,08/11/2019,"2,358.08",73503-NURSING EMI,PHYSICAL SUPPORT,Third Party Payments,Revenue
Walsall Council,http://opendatacommunities.org/id/metropolitan-district-council/walsall,WC110-752,30/11/2019,Adult Social Care,BENTLEY COURT PRIORY,08/11/2019,"2,358.08",73503-NURSING EMI,SOCIAL SUPPORT,Third Party Payments,Revenue
Walsall Council,http://opendatacommunities.org/id/metropolitan-district-council/walsall,WC110-753,30/11/2019,Adult Social Care,BENTLEY COURT PRIORY,08/11/2019,"2,358.08",73503-NURSING EMI,PHYSICAL SUPPORT,Third Party Payments,Revenue
Walsall Council,http://opendatacommunities.org/id/metropolitan-district-council/walsall,WC110-754,30/11/2019,Adult Social Care,BENTLEY COURT PRIORY,08/11/2019,"2,358.08",73503-NURSING EMI,PHYSICAL SUPPORT,Third Party Payments,Revenue
Walsall Council,http://opendatacommunities.org/id/metropolitan-district-council/walsall,WC110-755,30/11/2019,Adult Social Care,BENTLEY COURT PRIORY,08/11/2019,"2,358.08",73503-NURSING EMI,SUPPORT WITH MEMORY & COGNITION,Third Party Payments,Revenue
Walsall Council,http://opendatacommunities.org/id/metropolitan-district-council/walsall,WC110-756,30/11/2019,Adult Social Care,REDACTED,01/11/2019,"1,777.92",73506-DIRECT PAYMENT,PHYSICAL SUPPORT,Third Party Payments,Revenue
Walsall Council,http://opendatacommunities.org/id/metropolitan-district-council/walsall,WC110-757,30/11/2019,Childrens,REDACTED,01/11/2019,100.00,74503-BIRTHDAY ALLOWANCE-FOSTER CARERS,INTERNAL FOSTER CARE PROVISION,Transfer Payments,Revenue
Walsall Council,http://opendatacommunities.org/id/metropolitan-district-council/walsall,WC110-758,30/11/2019,Childrens,REDACTED,28/11/2019,100.00,74504-HOLIDAY/CHRISTMAS ALLOWANCE-FOSTER CARERS,INTERNAL FOSTER CARE PROVISION,Transfer Payments,Revenue
Walsall Council,http://opendatacommunities.org/id/metropolitan-district-council/walsall,WC110-759,30/11/2019,Childrens,REDACTED,28/11/2019,100.00,74504-HOLIDAY/CHRISTMAS ALLOWANCE-FOSTER CARERS,INTERNAL FOSTER CARE PROVISION,Transfer Payments,Revenue
Walsall Council,http://opendatacommunities.org/id/metropolitan-district-council/walsall,WC110-760,30/11/2019,Childrens,REDACTED,01/11/2019,540.00,74501-MAINTENANCE ALLOWANCE-FOSTER CARERS,INTERNAL FOSTER CARE PROVISION,Transfer Payments,Revenue
Walsall Council,http://opendatacommunities.org/id/metropolitan-district-council/walsall,WC110-761,30/11/2019,Childrens,REDACTED,01/11/2019,540.00,74501-MAINTENANCE ALLOWANCE-FOSTER CARERS,INTERNAL FOSTER CARE PROVISION,Transfer Payments,Revenue
Walsall Council,http://opendatacommunities.org/id/metropolitan-district-council/walsall,WC110-762,30/11/2019,Childrens,REDACTED,28/11/2019,540.00,74501-MAINTENANCE ALLOWANCE-FOSTER CARERS,INTERNAL FOSTER CARE PROVISION,Transfer Payments,Revenue
Walsall Council,http://opendatacommunities.org/id/metropolitan-district-council/walsall,WC110-763,30/11/2019,Childrens,REDACTED,28/11/2019,540.00,74501-MAINTENANCE ALLOWANCE-FOSTER CARERS,INTERNAL FOSTER CARE PROVISION,Transfer Payments,Revenue
Walsall Council,http://opendatacommunities.org/id/metropolitan-district-council/walsall,WC110-764,30/11/2019,Childrens,REDACTED,01/11/2019,"1,600.00",74508-INTERNAL FOSTER CARERS-CARER FEES,INTERNAL FOSTER CARE PROVISION,Transfer Payments,Revenue
Walsall Council,http://opendatacommunities.org/id/metropolitan-district-council/walsall,WC110-765,30/11/2019,Childrens,REDACTED,28/11/2019,"1,600.00",74508-INTERNAL FOSTER CARERS-CARER FEES,INTERNAL FOSTER CARE PROVISION,Transfer Payments,Revenue
Walsall Council,http://opendatacommunities.org/id/metropolitan-district-council/walsall,WC110-766,30/11/2019,Adult Social Care,REDACTED,01/11/2019,"1,974.00",73506-DIRECT PAYMENT,PHYSICAL SUPPORT,Third Party Payments,Revenue
Walsall Council,http://opendatacommunities.org/id/metropolitan-district-council/walsall,WC110-767,30/11/2019,Economy & Environment,BESCOT STADIUM SUNDAY MARKET LTD,22/11/2019,"2,600.00",73025-PROFESSIONAL SERVICES-PRIV CONTRACTOR & OTHER AGENCIES,WILLENHALL MARKET,Third Party Payments,Revenue
Walsall Council,http://opendatacommunities.org/id/metropolitan-district-council/walsall,WC110-768,30/11/2019,Economy & Environment,BESCOT STADIUM SUNDAY MARKET LTD,13/11/2019,"3,250.00",73025-PROFESSIONAL SERVICES-PRIV CONTRACTOR & OTHER AGENCIES,WILLENHALL MARKET,Third Party Payments,Revenue
Walsall Council,http://opendatacommunities.org/id/metropolitan-district-council/walsall,WC110-769,30/11/2019,Adult Social Care,BESS CARE LIMITED,11/11/2019,415.80,73507-DOMICILIARY CARE,PHYSICAL SUPPORT,Third Party Payments,Revenue
Walsall Council,http://opendatacommunities.org/id/metropolitan-district-council/walsall,WC110-770,30/11/2019,Adult Social Care,BETHPHAGE.,29/11/2019,569.04,73507-DOMICILIARY CARE,LEARNING DISABILITY SUPPORT,Third Party Payments,Revenue
Walsall Council,http://opendatacommunities.org/id/metropolitan-district-council/walsall,WC110-771,30/11/2019,Adult Social Care,BETHPHAGE.,11/11/2019,616.20,73507-DOMICILIARY CARE,LEARNING DISABILITY SUPPORT,Third Party Payments,Revenue
Walsall Council,http://opendatacommunities.org/id/metropolitan-district-council/walsall,WC110-772,30/11/2019,Adult Social Care,BETHPHAGE.,11/11/2019,900.88,73508-COMMUNITY SUPPORTED LIVING/SUPPORTED ACCOMMODATION,LEARNING DISABILITY SUPPORT,Third Party Payments,Revenue
Walsall Council,http://opendatacommunities.org/id/metropolitan-district-council/walsall,WC110-773,30/11/2019,Adult Social Care,BETHPHAGE.,11/11/2019,"1,322.24",73507-DOMICILIARY CARE,LEARNING DISABILITY SUPPORT,Third Party Payments,Revenue
Walsall Council,http://opendatacommunities.org/id/metropolitan-district-council/walsall,WC110-774,30/11/2019,Adult Social Care,BETHPHAGE.,11/11/2019,"1,336.76",73507-DOMICILIARY CARE,LEARNING DISABILITY SUPPORT,Third Party Payments,Revenue
Walsall Council,http://opendatacommunities.org/id/metropolitan-district-council/walsall,WC110-775,30/11/2019,Adult Social Care,BETHPHAGE.,29/11/2019,"4,040.51",73507-DOMICILIARY CARE,LEARNING DISABILITY SUPPORT,Third Party Payments,Revenue
Walsall Council,http://opendatacommunities.org/id/metropolitan-district-council/walsall,WC110-776,30/11/2019,Adult Social Care,BETHPHAGE.,11/11/2019,"5,805.64",73508-COMMUNITY SUPPORTED LIVING/SUPPORTED ACCOMMODATION,MENTAL HEALTH SUPPORT,Third Party Payments,Revenue
Walsall Council,http://opendatacommunities.org/id/metropolitan-district-council/walsall,WC110-777,30/11/2019,Adult Social Care,REDACTED,01/11/2019,949.52,73506-DIRECT PAYMENT,PHYSICAL SUPPORT,Third Party Payments,Revenue
Walsall Council,http://opendatacommunities.org/id/metropolitan-district-council/walsall,WC110-778,30/11/2019,Resources and Transformation,BFA SAFETY TRAINING,11/11/2019,390.00,30030-EXTERNAL TRAINING,HEALTH & SAFETY,Employees,Revenue
Walsall Council,http://opendatacommunities.org/id/metropolitan-district-council/walsall,WC110-779,30/11/2019,Resources and Transformation,BFA SAFETY TRAINING,11/11/2019,525.00,30030-EXTERNAL TRAINING,HEALTH & SAFETY,Employees,Revenue
Walsall Council,http://opendatacommunities.org/id/metropolitan-district-council/walsall,WC110-780,30/11/2019,Economy & Environment,BIFFA WASTE SERVICES LTD,26/11/2019,189.00,73029-HAZARDOUS WASTE REMOVAL/DISPOSAL-PRIV CONTRACTOR FEES,WASTE DISPOSAL - RESIDUAL,Third Party Payments,Revenue
Walsall Council,http://opendatacommunities.org/id/metropolitan-district-council/walsall,WC110-781,30/11/2019,Economy & Environment,BIFFA WASTE SERVICES LTD,26/11/2019,299.63,73039-LANDFILL TAX-PRIV CONTRACTOR FEES,WASTE DISPOSAL - RESIDUAL,Third Party Payments,Revenue
Walsall Council,http://opendatacommunities.org/id/metropolitan-district-council/walsall,WC110-782,30/11/2019,Resources and Transformation,BIG BLUE DOOR LTD,14/11/2019,"10,400.00",63800-COMPUTER EQUIPMENT AND SUPPLIES,RECHARGEABLE EQUIPMENT,Supplies & Services,Revenue
Walsall Council,http://opendatacommunities.org/id/metropolitan-district-council/walsall,WC110-783,30/11/2019,Resources and Transformation,BIG BLUE DOOR LTD,14/11/2019,"10,400.00",63800-COMPUTER EQUIPMENT AND SUPPLIES,RECHARGEABLE EQUIPMENT,Supplies & Services,Revenue
Walsall Council,http://opendatacommunities.org/id/metropolitan-district-council/walsall,WC110-784,30/11/2019,Resources and Transformation,BIG BLUE DOOR LTD,18/11/2019,"10,400.00",63800-COMPUTER EQUIPMENT AND SUPPLIES,RECHARGEABLE EQUIPMENT,Supplies & Services,Revenue
Walsall Council,http://opendatacommunities.org/id/metropolitan-district-council/walsall,WC110-785,30/11/2019,Childrens,REDACTED,05/11/2019,517.92,73506-DIRECT PAYMENT,FAMILY SUPPORT - DIRECT PAYMENTS,Third Party Payments,Revenue
Walsall Council,http://opendatacommunities.org/id/metropolitan-district-council/walsall,WC110-786,30/11/2019,Childrens,REDACTED,05/11/2019,816.00,73506-DIRECT PAYMENT,FAMILY SUPPORT - DIRECT PAYMENTS,Third Party Payments,Revenue
Walsall Council,http://opendatacommunities.org/id/metropolitan-district-council/walsall,WC110-787,30/11/2019,Centrally Held,BINDMANS LLP,27/11/2019,"11,405.60",73014-LEGAL FEES-PRIV CONTRACTOR FEES,CORPORATE EXPENSES,Third Party Payments,Revenue
Walsall Council,http://opendatacommunities.org/id/metropolitan-district-council/walsall,WC110-788,30/11/2019,Childrens,BIRMINGHAM CITY COUNCIL,01/11/2019,"1,691.00",66502-TOP UP FUNDING -GRANTS TO SCHOOLS,MAINTAINED PROVIDERS,Third Party Payments,Revenue
Walsall Council,http://opendatacommunities.org/id/metropolitan-district-council/walsall,WC110-789,30/11/2019,Childrens,BIRMINGHAM CITY COUNCIL,01/11/2019,"2,649.00",66502-TOP UP FUNDING -GRANTS TO SCHOOLS,MAINTAINED PROVIDERS,Third Party Payments,Revenue
Walsall Council,http://opendatacommunities.org/id/metropolitan-district-council/walsall,WC110-790,30/11/2019,Childrens,BIRMINGHAM CITY COUNCIL,27/11/2019,"2,727.56",66502-TOP UP FUNDING -GRANTS TO SCHOOLS,MAINTAINED PROVIDERS,Third Party Payments,Revenue
Walsall Council,http://opendatacommunities.org/id/metropolitan-district-council/walsall,WC110-791,30/11/2019,Childrens,BIRMINGHAM CITY COUNCIL,01/11/2019,"5,884.61",66502-TOP UP FUNDING -GRANTS TO SCHOOLS,MAINTAINED PROVIDERS,Third Party Payments,Revenue
Walsall Council,http://opendatacommunities.org/id/metropolitan-district-council/walsall,WC110-792,30/11/2019,Childrens,BIRMINGHAM CITY COUNCIL,01/11/2019,"5,884.61",66502-TOP UP FUNDING -GRANTS TO SCHOOLS,MAINTAINED PROVIDERS,Third Party Payments,Revenue
Walsall Council,http://opendatacommunities.org/id/metropolitan-district-council/walsall,WC110-793,30/11/2019,Childrens,BIRMINGHAM CITY COUNCIL,01/11/2019,"5,884.61",66502-TOP UP FUNDING -GRANTS TO SCHOOLS,MAINTAINED PROVIDERS,Third Party Payments,Revenue
Walsall Council,http://opendatacommunities.org/id/metropolitan-district-council/walsall,WC110-794,30/11/2019,Childrens,BIRMINGHAM CITY COUNCIL,01/11/2019,"5,884.61",66502-TOP UP FUNDING -GRANTS TO SCHOOLS,MAINTAINED PROVIDERS,Third Party Payments,Revenue
Walsall Council,http://opendatacommunities.org/id/metropolitan-district-council/walsall,WC110-795,30/11/2019,Childrens,BIRMINGHAM CITY COUNCIL,01/11/2019,"5,884.61",66502-TOP UP FUNDING -GRANTS TO SCHOOLS,MAINTAINED PROVIDERS,Third Party Payments,Revenue
Walsall Council,http://opendatacommunities.org/id/metropolitan-district-council/walsall,WC110-796,30/11/2019,Childrens,BIRMINGHAM CITY COUNCIL,01/11/2019,"7,829.50",66502-TOP UP FUNDING -GRANTS TO SCHOOLS,MAINTAINED PROVIDERS,Third Party Payments,Revenue
Walsall Council,http://opendatacommunities.org/id/metropolitan-district-council/walsall,WC110-797,30/11/2019,Economy & Environment,BLACK COUNTRY CONSORTIUM LIMITED,26/11/2019,"81,687.45",65500-GRANTS TO ASSOCIATIONS,GROWTH HUB,Third Party Payments,Revenue
Walsall Council,http://opendatacommunities.org/id/metropolitan-district-council/walsall,WC110-798,30/11/2019,Economy & Environment,BLACK COUNTRY DANCE HUB,20/11/2019,"2,262.00",63000-PROFESSIONAL FEES AND SERVICES,WALSALL ARENA AND ARTS CENTRE,Supplies & Services,Revenue
Walsall Council,http://opendatacommunities.org/id/metropolitan-district-council/walsall,WC110-799,30/11/2019,Resources and Transformation,BLACK COUNTRY INNOVATE CIC,19/11/2019,"3,360.00",66500-GRANTS TO OTHER ORGS,LET'S TALK ABOUT IT PROJECT,Third Party Payments,Revenue
Walsall Council,http://opendatacommunities.org/id/metropolitan-district-council/walsall,WC110-800,30/11/2019,Resources and Transformation,BLACK COUNTRY TOURING,20/11/2019,400.00,62523-EVENTS AND VISUAL ARTS,COHESION,Supplies & Services,Revenue
Walsall Council,http://opendatacommunities.org/id/metropolitan-district-council/walsall,WC110-801,30/11/2019,Economy & Environment,BLACK COUNTRY TRAINING LTD T/A BRITISH HGV TRAINING GROUP,27/11/2019,"1,416.00",30030-EXTERNAL TRAINING,FLEET,Employees,Revenue
Walsall Council,http://opendatacommunities.org/id/metropolitan-district-council/walsall,WC110-802,30/11/2019,Childrens,BLACK COUNTRY WOMENS AID,25/11/2019,"18,466.27",63000-PROFESSIONAL FEES AND SERVICES,TOXIC TRIO,Supplies & Services,Revenue
Walsall Council,http://opendatacommunities.org/id/metropolitan-district-council/walsall,WC110-803,30/11/2019,Economy & Environment,BLACK MAGIC STUDIO,13/11/2019,450.00,30030-EXTERNAL TRAINING,YEI (IMPACT) PROGRAMME,Employees,Revenue
Walsall Council,http://opendatacommunities.org/id/metropolitan-district-council/walsall,WC110-804,30/11/2019,Economy & Environment,BLACK MAGIC STUDIO,13/11/2019,450.00,30030-EXTERNAL TRAINING,YEI ESF FUNDING,Employees,Revenue
Walsall Council,http://opendatacommunities.org/id/metropolitan-district-council/walsall,WC110-805,30/11/2019,Childrens,BLOXWICH ACADEMY,01/11/2019,"8,269.33",66502-TOP UP FUNDING -GRANTS TO SCHOOLS,BLOXWICH ACADEMY,Third Party Payments,Revenue
Walsall Council,http://opendatacommunities.org/id/metropolitan-district-council/walsall,WC110-806,30/11/2019,Resources and Transformation,BLOXWICH COMMUNITY PARTNERSHIP.,13/11/2019,325.00,63128-HIRE OF ROOM-SERVICES-FEES,INTEGRATED COMMUNITIES PROGRAMME,Supplies & Services,Revenue
Walsall Council,http://opendatacommunities.org/id/metropolitan-district-council/walsall,WC110-807,30/11/2019,Resources and Transformation,BLOXWICH COMMUNITY PARTNERSHIP.,15/11/2019,425.83,61002-DRY FOODS-PROVISIONS,TOWN HALL RESTAURANT BISTRO,Supplies & Services,Revenue
Walsall Council,http://opendatacommunities.org/id/metropolitan-district-council/walsall,WC110-808,30/11/2019,Childrens,BLOXWICH COMMUNITY PARTNERSHIP.,18/11/2019,"3,283.08",60500-GENERAL MATERIALS,PUPIL REFERAL UNIT EXCLUSIONS,Supplies & Services,Revenue
Walsall Council,http://opendatacommunities.org/id/metropolitan-district-council/walsall,WC110-809,30/11/2019,Childrens,BLOXWICH COMMUNITY PARTNERSHIP.,18/11/2019,"6,163.08",60500-GENERAL MATERIALS,PUPIL REFERAL UNIT EXCLUSIONS,Supplies & Services,Revenue
